Workbook

Sheet Situation bancaire
C2: Situation bancaire
D5: 2015-12-31 | E5: 2016-12-31 | F5: 2017-12-31 | G5: 2018-12-31 | H5: 2019-12-31 | I5: 2020-12-31 | J5: 2021-12-31 | K5: 2022-12-31
B6: A | C6: Compte Courant | D6: 1619.66 | E6: 1647.55 | F6: 8289.38 | G6: 1454.03 | H6: 11413.08 | I6: 18369.92 | J6: 20209.35 | K6: 3642.55
B7: B | C7: Livret Association | D7: 41425.97 | E7: 43315.47 | F7: 57252.8 | G7: 39752.82 | H7: 33070.14 | I7: 33070.14 | J7: 39137.2 | K7: 15137.2
B8: C | C8: Comptes Pilotes | D8: 2630.13 | E8: 1474.74 | F8: 2040.89 | G8: 4698.95 | H8: 9607.09 | I8: 8674.16 | J8: 11629.03 | K8: 9888.93
C9: TOTAL ( A + B - C ) | D9: =D6+D7-D8 -> 40415.5 | E9: 43488.28 | F9: 63501.29 | G9: 36507.9 | H9: 34876.13 | I9: 42765.9 | J9: 47717.52 | K9: =K6+K7-K8 -> 8890.82
C11: Exercice 2022 : | D11: =+(K9-J9) -> -38826.7 | E11: NEGATIF | G11: Hors kit ULM: -43,69€
C12: Exercice 2021 : | D12: =+(J9-I9) -> 4951.62 | E12: POSITIF
C13: Exercice 2020 : | D13: =+(I9-H9) -> 7889.77
C14: Exercice 2019 : | D14: =+(H9-G9) -> -1631.77
C15: Exercice 2018 : | D15: =+(G9-F9) -> -26993.39
C16: Exercice 2017 : | D16: =+(F9-E9) -> 20013.01

Sheet Exercice
B1: Charges et produits | H1: Charges et produits | N1: Charges et produits | T1: Charges et produits | Z1: Charges et produits | AF1: Charges et produits | AL1: Charges et produits
B2: CHARGES | E2: PRODUITS | H2: CHARGES | K2: PRODUITS | N2: CHARGES | Q2: PRODUITS | T2: CHARGES | W2: PRODUITS | Z2: CHARGES | AC2: PRODUITS | AF2: CHARGES | AI2: PRODUITS | AL2: CHARGES | AO2: PRODUITS
B4: Assemblée Générale | C4: 514.1 | E4: Assemblée Générale | F4: 306 | H4: AG_2016 | I4: 658.4 | K4: AG_2016 | L4: 322.3 | N4: AG_2017 | O4: 492.2 | Q4: AG_2017 | R4: 321.3 | T4: AG_2018 | U4: 234.6 | W4: AG_2018 | X4: 0 | Z4: AG_2019 | AA4: 625 | AC4: AG_2019 | AD4: 525 | AF4: AG_2020 | AI4: AG_2020 | AL4: AG_2021 | AM4: 623.2 | AO4: AG_2021 | AP4: 475.04
B5: Soirée crêpes | C5: 186 | E5: Soirée crêpes | F5: 655 | H5: Soirée_crêpes | I5: 358.54 | K5: Soirée_crêpes | L5: 490 | N5: Soirée_crêpes | O5: 0 | Q5: Soirée_crêpes | R5: 0 | T5: Soirée_crêpes | U5: 328.8 | W5: Soirée_crêpes | X5: 1030 | Z5: Journée_crêpes | AA5: 305.83 | AC5: Journée_crêpes | AD5: 385 | AF5: Journée_crêpes | AI5: Journée_crêpes | AL5: Journée_crêpes | AM5: 410.6 | AO5: Journée_crêpes | AP5: 1380
B6: Cartes OACI | C6: 1520.17 | E6: Cartes OACI | F6: 1405.35 | H6: Cartes_OACI | I6: 1108.38 | K6: Cartes_OACI | L6: 1016.9 | N6: Cartes_OACI | O6: 1347.04 | Q6: Cartes_OACI | R6: 1271.75 | T6: Cartes_OACI | U6: 1386.94 | W6: Cartes_OACI | X6: 1282.5 | Z6: Cartes_OACI | AA6: 1270.22 | AC6: Cartes_OACI | AD6: 1085.5 | AF6: Cartes_OACI | AG6: 1206.15 | AI6: Cartes_OACI | AJ6: 1050 | AL6: Cartes_OACI | AM6: 1465.39 | AO6: Cartes_OACI | AP6: 1263.4
B7: Locations hangars 2016 | C7: 3360 | E7: Locations hangars 2014 | F7: 3360 | H7: Hangars_2017 | I7: 3800 | K7: Location_hangar | L7: 3800 | N7: Hangars_2018 | O7: 0 | Q7: Location_hangar | R7: 3720 | T7: Hangars_2018 | U7: 3600 | W7: Location_hangar | X7: 3880 | Z7: Hangars_2019 | AA7: 3600 | AC7: Location_hangar | AD7: 4020 | AF7: Hangars_2019 | AG7: 7600 | AI7: Location_hangar | AJ7: 3840 | AL7: Hangars_2019 | AM7: 4000 | AO7: Location_hangar | AP7: 3840
B8: Taxes d'atterrissages | C8: 43.64 | E8: Taxes d'atterrissages | F8: 43.64 | H8: Taxe_atterrissage | I8: 175.13 | K8: Taxe_atterrissage | L8: 175.13 | N8: Taxe_atterrissage | O8: 19.19 | Q8: Taxe_atterrissage | R8: 19.19 | T8: Taxe_atterrissage | U8: 65.79 | W8: Taxe_atterrissage | X8: 0 | Z8: Taxe_atterrissage | AA8: 100.24 | AC8: Taxe_atterrissage | AD8: 141.02 | AF8: Taxe_atterrissage | AG8: 9.35 | AI8: Taxe_atterrissage | AJ8: 9.35 | AL8: Taxe_atterrissage | AM8: 57.27 | AO8: Taxe_atterrissage | AP8: 35.51
B9: Essence - Approvision cuve | C9: 5516.46 | E9: Essence - Pilotes basés | F9: 1140.71 | H9: Essence_approvisionnement | I9: 7470.4 | K9: Essence_basés | L9: 1018.6 | N9: Essence_approvisionnement | O9: 26717.79 | Q9: Essence_basés | R9: 4038.66 | T9: Essence_approvisionnement | U9: 7878.52 | W9: Essence_basés | X9: 3977.46 | Z9: Essence_approvisionnement | AA9: 24702.13 | AC9: Essence_basés | AD9: 3490.22 | AF9: Essence_approvisionnement | AG9: 25383.82 | AI9: Essence_basés | AJ9: 4853.42 | AL9: Essence_approvisionnement | AM9: 22546.85 | AO9: Essence_basés | AP9: 4620.8
B10: Essence - Terrains extérieurs | C10: 2174.54 | E10: Essence - Avions extérieurs | F10: 715.75 | H10: Essence_prise_extérieur | I10: 2174.07 | K10: Essence_extérieur | L10: 6184.85 | N10: Essence_prise_extérieur | O10: 642.96 | Q10: Essence_extérieur | R10: 1213.71 | T10: Essence_prise_extérieur | U10: 488.55 | W10: Essence_extérieur | X10: 214.92 | Z10: Essence_prise_extérieur | AA10: 508.7 | AC10: Essence_extérieur | AD10: 671.99 | AF10: Essence_prise_extérieur | AG10: 521.07 | AI10: Essence_extérieur | AJ10: 1496.15 | AL10: Essence_prise_extérieur | AM10: 388.32 | AO10: Essence_extérieur | AP10: 5626.55
B11: Cartes Vac | C11: 81 | E11: Cotisations membres | F11: 245 | H11: Cartes_VAC | I11: 83 | K11: cotis_membre | L11: 420 | N11: Cartes_VAC | O11: 101.91 | Q11: cotis_membre | R11: 350 | T11: Cartes_VAC | U11: 130.49 | W11: cotis_membre | X11: 245 | Z11: Cartes_VAC | AA11: 107.49 | AC11: cotis_membre | AD11: 315 | AF11: Cartes_VAC | AG11: 109.43 | AI11: cotis_membre | AJ11: 445 | AL11: Cartes_VAC | AM11: 0 | AO11: cotis_membre | AP11: 590
B12: Entretien Océanair | C12: 14867.44 | E12: Cotisations pilotes | F12: 4770 | H12: Entretien_avion | I12: 2927.08 | K12: cotis_pilote | L12: 4167.5 | N12: Frais_déplacement | O12: 2262.6 | Q12: cotis_pilote | R12: 4114.2 | T12: Frais_déplacement | U12: 2174.6 | W12: cotis_pilote | X12: 3830 | Z12: Frais_déplacement | AA12: 661.2 | AC12: cotis_pilote | AD12: 4765 | AF12: Frais_déplacement | AG12: 1734.2 | AI12: cotis_pilote | AJ12: 5240 | AL12: Frais_déplacement | AM12: 289.8 | AO12: cotis_pilote | AP12: 4845
B13: Assurance de l'Océanair | C13: 2625 | E13: Vols Océanair en simple | F13: 15119 | H13: Assurance_avion | I13: 2555.13 | K13: Océanair_simple | L13: 16092.9987 | N13: Entretien_avion | O13: 13198.58 | Q13: Océanair_simple | R13: 13414.8 | T13: Entretien_avion | U13: 37325.61 | W13: Océanair_simple | X13: 15514.9 | Z13: Entretien_avion | AA13: 6063.21 | AC13: Océanair_simple | AD13: 15824.5 | AF13: Entretien_avion | AG13: 8708.7 | AI13: Océanair_simple | AJ13: 18457 | AL13: Entretien_avion | AM13: 10938.59 | AO13: Océanair_simple | AP13: 15899.52
B14: Frais de déplacement instructeur | C14: 1309 | E14: Vols Océanair en double | F14: 14262 | H14: Déplacement_Instructeur | I14: 1276 | K14: Océanair_double | L14: 10374 | N14: Assurance_avion | O14: 2603.92 | Q14: Océanair_double | R14: 7401.8 | T14: Assurance_avion | U14: 3323.4 | W14: Océanair_double | X14: 8320.2 | Z14: Assurance_avion | AA14: 2900.77 | AC14: Océanair_double | AD14: 10654 | AF14: Assurance_avion | AG14: 2981.09 | AI14: Océanair_double | AJ14: 15516 | AL14: Assurance_avion | AM14: 4712.53 | AO14: Océanair_double | AP14: 9252.4
B15: Cotisation FFA | C15: 2826 | E15: Cotisation FFA | F15: 2826 | H15: Cotisation_FFA | I15: 2947.5 | K15: Océanair_initiation | L15: 712 | N15: Déplacement_Instructeur | O15: 1309 | Q15: Océanair_initiation | R15: 723 | T15: Déplacement_Instructeur | U15: 1463 | W15: Océanair_initiation | X15: 1962.4 | Z15: Déplacement_Instructeur | AA15: 1725 | AC15: Océanair_initiation | AD15: 1806 | AF15: Déplacement_Instructeur | AG15: 2847.6 | AI15: Océanair_initiation | AJ15: 768 | AL15: Déplacement_Instructeur | AM15: 1872.6 | AO15: Océanair_initiation | AP15: 462.3
B16: Approvisionnement Bar | C16: 212.13 | E16: Caisse bar | F16: 460 | H16: Bar | I16: 344.14 | K16: Cotisation_FFA | L16: 2688 | N16: Cotisation_FFA | O16: 2879 | Q16: Cotisation_FFA | R16: 2617 | T16: Cotisation_FFA | U16: 2543 | W16: Cotisation_FFA | X16: 2661 | Z16: Cotisation_FFA | AA16: 3438 | AC16: Cotisation_FFA | AD16: 3258 | AF16: Cotisation_FFA | AG16: 3742.5 | AI16: Cotisation_FFA | AJ16: 3561 | AL16: Cotisation_FFA | AM16: 3481.5 | AO16: Cotisation_FFA | AP16: 3123
B17: Bourse | C17: 0 | E17: Bourse | F17: 0 | H17: Bourse | I17: 0 | K17: Caisse_Bar | L17: 450.18 | N17: Bar | O17: 353.41 | Q17: Caisse_Bar | R17: 645 | T17: Bar | U17: 655.05 | W17: Caisse_Bar | X17: 862 | Z17: Bar | AA17: 648.27 | AC17: Caisse_Bar | AD17: 805.05 | AF17: Bar | AG17: 884.09 | AI17: Caisse_Bar | AJ17: 1129.6 | AL17: Bar | AM17: 1289.65 | AO17: Caisse_Bar | AP17: 1065.5
B18: BIA | C18: 990 | E18: BIA | F18: 940 | H18: BIA | I18: 840 | K18: Bourse | L18: 0 | N18: Bourse | O18: 0 | Q18: Bourse | R18: 0 | T18: Bourse | U18: 0 | W18: Bourse | X18: 0 | Z18: Bourse | AA18: 1000 | AC18: Bourse | AD18: 1000 | AF18: Bourse | AG18: 0 | AI18: Bourse | AJ18: 0 | AL18: Bourse | AM18: 0 | AO18: Bourse | AP18: 0
B19: Nourriture | C19: 928.92 | E19: Nourriture | F19: 376 | H19: Nourriture | I19: 665.97 | K19: BIA | L19: 300 | N19: BIA | O19: 450 | Q19: BIA | R19: 700 | T19: BIA | U19: 167 | W19: BIA | X19: 367 | Z19: BIA | AA19: 0 | AC19: BIA | AD19: 0 | AF19: BIA | AG19: 0 | AI19: BIA | AJ19: 0 | AL19: BIA | AM19: 0 | AO19: BIA | AP19: 0
B20: Manuels et Carnets de vol | C20: 392.01 | E20: Manuels et Carnets de vol | F20: 312 | H20: Manuel_Carnet_de_vol | I20: 23.95 | K20: Nourriture | L20: 156 | N20: Nourriture | O20: 821.01 | Q20: Nourriture | R20: 205 | T20: Nourriture | U20: 1836.1 | W20: Nourriture | X20: 194 | Z20: Nourriture | AA20: 1445.65 | AC20: Nourriture | AD20: 822 | AF20: Nourriture | AG20: 1732.08 | AI20: Nourriture | AJ20: 898 | AL20: Nourriture | AM20: 1452 | AO20: Nourriture | AP20: 780
B21: Location avion extérieur | C21: 1472.5 | E21: Remboursement avion extérieur | F21: 1472.5 | H21: Location_Avion extérieur | I21: 800 | K21: Manuel_Carnet_de_vol | L21: 0 | N21: Manuel_Carnet_de_vol | O21: 182.4 | Q21: Manuel_Carnet_de_vol | R21: 160 | T21: Manuel_Carnet_de_vol | U21: 135 | W21: Manuel_Carnet_de_vol | X21: 135 | Z21: Manuel_Carnet_de_vol | AA21: 610.75 | AC21: Manuel_Carnet_de_vol | AD21: 554 | AF21: Manuel_Carnet_de_vol | AG21: 0 | AI21: Manuel_Carnet_de_vol | AJ21: 80 | AL21: Manuel_Carnet_de_vol | AM21: 294.03 | AO21: Manuel_Carnet_de_vol | AP21: 177
B22: Frais de déplacements autres | C22: 366.47 | E22: Dons | F22: 2395 | H22: Frais_déplacement | I22: 701.8 | K22: Don | L22: 200 | N22: Assurance_locaux | O22: 368 | Q22: Don | R22: 0 | T22: Assurance_locaux | U22: 380 | W22: Don | X22: 0 | Z22: Assurance_locaux | AA22: 1711 | AC22: Don | AD22: 5861.92 | AF22: Assurance_locaux | AG22: 1056 | AI22: Don | AJ22: 5100 | AL22: Assurance_locaux | AM22: 1096 | AO22: Don | AP22: 258.3
B23: Assurance locaux Aéroclub | C23: 347 | E23: Locations tables | F23: 54 | H23: Assurance_locaux | I23: 358 | K23: Intérêts_Livret | L23: 252.8 | N23: Cotisation_CRA20_RSA | O23: 120 | Q23: Intérêts_Livret | R23: 0 | T23: Cotisation_CRA20_RSA | U23: 287.5 | W23: Intérêts_Livret | X23: 70.14 | Z23: Cotisation_CRA20_RSA | AA23: 140 | AC23: Intérêts_Livret | AD23: 0 | AF23: Cotisation_CRA20_RSA | AG23: 190 | AI23: Intérêts_Livret | AJ23: 32.6 | AL23: Cotisation_CRA20_RSA | AM23: 150 | AO23: Intérêts_Livret | AP23: 0
B24: Cotisation CRA 20 et RSA | C24: 260 | E24: Intérêts livret association | F24: 315.47 | H24: Cotisation_CRA20_RSA | I24: 240 | K24: Location_tables | L24: 0 | N24: Papeterie | O24: 179.63 | Q24: Location_tables | R24: 74 | T24: Papeterie | U24: 148.21 | W24: Location_tables | X24: 0 | Z24: Papeterie | AA24: 235.79 | AC24: Location_tables | AD24: 0 | AF24: Papeterie | AG24: 246.22 | AI24: Location_tables | AJ24: 0 | AL24: Papeterie | AM24: 229.98 | AO24: Location_tables | AP24: 30
B25: Orange internet | C25: 543.86 | E25: Divers | F25: 233.5 | H25: Orange | I25: 550.65 | K25: Remboursement_Avion extérieur | L25: 800 | N25: Location_Avion extérieur | O25: 710.25 | Q25: Remboursement_Avion extérieur | R25: 406.25 | T25: Location_Avion extérieur | U25: 3971.52 | W25: Remboursement_Avion extérieur | X25: 390 | Z25: Location_Avion extérieur | AA25: 501 | AC25: Remboursement_Avion extérieur | AD25: 501 | AF25: Location_Avion extérieur | AG25: 0 | AI25: Remboursement_Avion extérieur | AJ25: 0 | AL25: Location_Avion extérieur | AM25: 170 | AO25: Remboursement_Avion extérieur | AP25: 170
B26: Papeterie | C26: 241.83 | E26: Vols initiation Océanair | F26: 140 | H26: Papeterie | I26: 23.7 | K26: Divers | L26: 2019.19 | N26: Orange | O26: 524.56 | Q26: Divers | R26: 1121.28 | T26: Free | U26: 153.64 | W26: Divers | X26: 696.06 | Z26: Free | AA26: 305.25 | AC26: Divers | AD26: 1573.38 | AF26: Free | AG26: 305.19 | AI26: Divers | AJ26: 1003.48 | AL26: Free | AM26: 299.88 | AO26: Divers | AP26: 974.77
B27: Divers | C27: 1701.11 | E27: Baptême en ULM | F27: 140 | H27: Divers | I27: 3966.45 | K27: ULM_simple | L27: 2856 | N27: Divers | O27: 1354.4 | Q27: ULM_simple | R27: 4603.6 | T27: Divers | U27: 2236 | W27: ULM_simple | X27: 5136 | Z27: Divers | AA27: 2346.89 | AC27: ULM_simple | AD27: 5410.8 | AF27: Divers | AG27: 830.34 | AI27: ULM_simple | AJ27: 7876.8 | AL27: Divers | AM27: 787.32 | AO27: ULM_simple | AP27: 6479.7
B28: Remboursements prêt ULM | C28: 2753.4 | E28: Vols ULM en simple | F28: 1809.8 | H28: ULM_Prêt_CIC | I28: 2753.4 | K28: ULM_double | L28: 8194.2 | N28: ULM_Prêt_CIC | O28: 2753.4 | Q28: ULM_double | R28: 8055.6 | T28: ULM_Prêt_CIC | U28: 2753.4 | W28: ULM_double | X28: 12002.2 | Z28: ULM_Prêt_CIC | AA28: 2753.4 | AC28: ULM_double | AD28: 6816.6 | AF28: ULM_Prêt_CIC | AG28: 2753.4 | AI28: ULM_double | AJ28: 11233.6 | AL28: ULM_Prêt_CIC | AM28: 1147.2 | AO28: ULM_double | AP28: 10820.1
B29: Entretien ULM | C29: 1065.01 | E29: Vols ULM en double | F29: 7344.6 | H29: ULM_entretien | I29: 557.67 | K29: ULM_baptême | L29: 159.2 | N29: ULM_entretien | O29: 18689.81 | Q29: ULM_baptême | R29: 120 | T29: ULM_entretien | U29: 1594.9 | W29: ULM_baptême | X29: 180.2 | Z29: ULM_entretien | AA29: 361.41 | AC29: ULM_initiation | AD29: 541.2 | AF29: ULM_entretien | AG29: 2210.52 | AI29: ULM_initiation | AJ29: 262.8 | AL29: ULM_entretien | AM29: 1266.45 | AO29: ULM_initiation | AP29: 307.85
B30: Essence pour ULM | C30: 1680.11 | E30: Subventions Océanair | F30: 2400 | H30: ULM_essence | I30: 2213.14 | K30: ULM_souscription_trésorerie | L30: 0 | N30: ULM_essence | O30: 937.01 | Q30: ULM_souscription_trésorerie | R30: 0 | T30: ULM_essence | U30: 0 | W30: ULM_souscription_trésorerie | X30: 0 | Z30: Entretien locaux | AA30: 200.25 | AC30: ULM_souscription_trésorerie | AD30: 0 | AF30: Entretien locaux | AG30: 238.48 | AI30: ULM_souscription_trésorerie | AJ30: 0 | AL30: Entretien locaux | AM30: 2977.02 | AO30: ULM_souscription_trésorerie | AP30: 0
B31: Assurance de l'ULM | C31: 1930 | H31: ULM_assurance | I31: 1333.94 | K31: Océanair_Subventions | L31: 0 | N31: ULM_assurance | O31: 1356.35 | Q31: Océanair_Subventions | R31: 0 | T31: ULM_assurance | U31: 1911.74 | W31: Océanair_Subventions | X31: 0 | Z31: ULM_assurance | AA31: 1600 | AC31: Océanair_Subventions | AD31: 0 | AF31: ULM_assurance | AG31: 1838.78 | AI31: Océanair_Subventions | AJ31: 0 | AL31: ULM_assurance | AM31: 2019.66 | AO31: Océanair_Subventions | AP31: 0
B32: Baptême en ULM remise | C32: 60 | H32: ULM_baptême_remise | I32: 30 | L32: 0 | N32: ULM_baptême_remise | O32: 35 | R32: 0 | T32: ULM_baptême_remise | U32: 0 | W32: Prêt CIC | X32: 15000 | Z32: ULM_baptême_remise | AA32: 0 | AC32: Prêt CIC | AF32: Kit ULM | AG32: 21400 | AI32: Prêt CIC kit ULM | AJ32: 21400 | AL32: Kit ULM | AM32: 38783.01
B33: Remboursement souscription ULM | C33: 1900 | H33: ULM_rembt_souscription | I33: 1900 | L33: 0 | N33: ULM_rembt_souscription | O33: 1900 | R33: 0 | T33: ULM_rembt_souscription | U33: 1800 | W33: ULM subvention | X33: 223.96 | Z33: ULM_rembt_souscription | AA33: 0 | AC33: ULM subvention | AF33: Mezzanine | AG33: 9702.21 | AI33: ULM subvention | AJ33: 2000 | AL33: Mezzanine | AM33: 1976.67 | AO33: ULM subvention
B34: Moteur Avion Océanair | C34: 8300.84 | H34: Moteur_avion | I34: 0 | L34: 0 | N34: Moteur_avion | O34: 0 | R34: 0 | T34: Prêt CIC | U34: 833.35 | X34: 0 | Z34: Prêt CIC | AA34: 3069.96 | AD34: 0 | AF34: Prêt CIC | AG34: 3069.96 | AJ34: 0 | AL34: Prêt CIC | AM34: 3069.96 | AP34: 0
AL35: Repas construction kit ULM | AM35: 2017.07
AL36: Prêt Kit ULM | AM36: 3652.23 | AO36: Repas construction kit ULM | AP36: 2301.45
AL37: Repas rassemblement ACAA | AM37: 853.11 | AO37: Repas rassemblement ACAA | AP37: 713
B38: TOTAL Charges | C38: =SUM(C4:C34) -> 60168.54 | E38: TOTAL Produits | F38: =SUM(F4:F34) -> 63241.32 | H38: TOTAL Charges | I38: =SUM(I4:I34) -> 42836.44 | K38: TOTAL Produits | L38: =SUM(L4:L34) -> 62849.8487 | N38: TOTAL Charges | O38: =SUM(O4:O34) -> 82309.42 | Q38: TOTAL Produits | R38: =SUM(R4:R34) -> 55296.14 | T38: TOTAL Charges | U38: =SUM(U4:U34) -> 79806.71 | W38: TOTAL Produits | X38: =SUM(X4:X34) -> 78174.94 | Z38: TOTAL Charges | AA38: =SUM(AA4:AA34) -> 62937.41 | AC38: TOTAL Produits | AD38: =SUM(AD4:AD34) -> 70827.18 | AF38: TOTAL Charges | AG38: =SUM(AG4:AG34) -> 101301.18 | AI38: TOTAL Produits | AJ38: =SUM(AJ4:AJ34) -> 106252.8 | AL38: TOTAL Charges | AM38: =SUM(AM4:AM37) -> 114317.89 | AO38: TOTAL Produits | AP38: =SUM(AP4:AP37) -> 75491.19
B40: Exercice 2016 (Produits - Charges) = + 3072,78 € | H40: Exercice 2017 (Produits - Charges) = + 20013,01€ | N40: Exercice 2018 (Produits - Charges) = - 27013,28 € | T40: Exercice 2019 (Produits - Charges) = | X40: =X38-U38 -> -1631.77 | Z40: Exercice 2020 (Produits - Charges) = | AD40: =AD38-AA38 -> 7889.77 | AF40: Exercice 2021 (Produits - Charges) = | AJ40: =AJ38-AG38 -> 4951.62 | AL40: Exercice 2022 (Produits - Charges) = | AP40: =AP38-AM38 -> -38826.7
T42: Info, 4060L essence en cuve | Z42: Info, env, 9500L essence en cuve | AF42: Info, env, 8675L essence en cuve soit 15600€ | AL42: Info: 5453L essence en cuve soit 15050€ au dernier prix d'achat
X43: =-X32 -> -15000 | AD43: =-AD32 -> 0 | AJ43: =-AJ32 -> -21400
X44: =+U34 -> 833.35 | AD44: =+AA34 -> 3069.96 | AJ44: =+AG34 -> 3069.96
X45: =+U28 -> 2753.4 | AD45: =+AA28 -> 2753.4 | AJ45: =+AG28 -> 2753.4
X46: =+Immos!C48 -> 36239.82 | AD46: =+Immos!I48 -> 0 | AJ46: =+Immos!O48 -> 0
X47: =-Immos!B71-'Resultat 2022'!I20 -> -14495.70464 | AD47: =-Immos!H71-'Resultat 2022'!O20 -> -153.8632435 | AJ47: =-Immos!N71-'Resultat 2022'!U20 -> 0
X48: =-'Resultat 2022'!I18 -> -8987.299073 | AD48: =-'Resultat 2022'!O18 -> 2895.0025 | AJ48: =-'Resultat 2022'!U18 -> 0
X49: =SUM(X40:X48) -> -288.2037148 | AD49: =SUM(AD40:AD48) -> 16454.26926 | AJ49: =SUM(AJ40:AJ48) -> -10625.02

Sheet Bilan AVION
B1: Charges et produits Océanair 2016 | I1: Charges et produits Océanair 2017 | O1: Charges et produits Océanair 2018 | U1: Charges et produits Océanair 2019 | AA1: Charges et produits Océanair 2020 | AG1: Charges et produits Océanair 2021 | AM1: Charges et produits Océanair 2022
B2: CHARGES | E2: PRODUITS | I2: CHARGES | L2: PRODUITS | O2: CHARGES | R2: PRODUITS | U2: CHARGES | X2: PRODUITS | AA2: CHARGES | AD2: PRODUITS | AG2: CHARGES | AJ2: PRODUITS | AM2: CHARGES | AP2: PRODUITS
B4: Assemblée Générale | E4: Assemblée Générale | I4: Assemblée Générale | L4: Assemblée Générale | O4: Assemblée Générale | R4: Assemblée Générale | U4: AG_2018 | X4: AG_2018 | Y4: 0 | AA4: AG_2019 | AD4: AG_2019 | AG4: AG_2019 | AJ4: AG_2019 | AM4: AG_2021 | AP4: AG_2021
B5: Soirée crêpes | E5: Soirée crêpes | I5: Soirée crêpes | L5: Soirée crêpes | O5: Soirée crêpes | R5: Soirée crêpes | U5: Soirée_crêpes | X5: Soirée_crêpes | AA5: Journée_crêpes | AD5: Journée_crêpes | AG5: Journée_crêpes | AJ5: Journée_crêpes | AM5: Journée_crêpes | AP5: Journée_crêpes
B6: Cartes OACI | C6: 114.82 | E6: Cartes OACI | I6: Cartes OACI | J6: =Exercice!I6-Exercice!L6 -> 91.48 | L6: Cartes OACI | O6: Cartes OACI | P6: =Exercice!O6-Exercice!R6 -> 75.29 | R6: Cartes OACI | U6: Cartes_OACI | X6: Cartes_OACI | AA6: Cartes_OACI | AD6: Cartes_OACI | AG6: Cartes_OACI | AJ6: Cartes_OACI | AM6: Cartes_OACI | AP6: Cartes_OACI
B7: Locations hangars 2014 | E7: Locations hangars 2014 | I7: Locations hangars 2014 | L7: Locations hangars 2014 | O7: Locations hangars 2018 | R7: Locations hangars 2018 | U7: Hangars_2018 | X7: Location_hangar | AA7: Hangars_2018 | AD7: Location_hangar | AG7: Hangars_2018 | AJ7: Location_hangar | AM7: Hangars_2018 | AP7: Location_hangar
B8: Taxes d'atterrissages | E8: Taxes d'atterrissages | I8: Taxes d'atterrissages | L8: Taxes d'atterrissages | O8: Taxes d'atterrissages | R8: Taxes d'atterrissages | U8: Taxe_atterrissage | V8: 65.79 | X8: Taxe_atterrissage | Y8: 0 | AA8: Taxe_atterrissage | AB8: 100.24 | AD8: Taxe_atterrissage | AE8: 141.02 | AG8: Taxe_atterrissage | AH8: 9.35 | AJ8: Taxe_atterrissage | AK8: 9.35 | AM8: Taxe_atterrissage | AP8: Taxe_atterrissage
B9: Essence - Approvision cuve | C9: 7866.43 | E9: Essence - Pilotes basés | I9: Essence - Approvision cuve | J9: 8283.15 | L9: Essence - Pilotes basés | O9: Essence - Approvision cuve | R9: Essence - Pilotes basés | U9: Essence_approvisionnement | X9: Essence_basés | AA9: Essence_approvisionnement | AD9: Essence_basés | AG9: Essence_approvisionnement | AJ9: Essence_basés | AM9: Essence_approvisionnement | AP9: Essence_basés
B10: Essence - Terrains extérieurs | C10: 2174.54 | E10: Essence - Avions extérieurs | I10: Essence - Terrains extérieurs | J10: =Exercice!I10 -> 2174.07 | L10: Essence - Avions extérieurs | O10: Essence - Terrains extérieurs | P10: =Exercice!O10 -> 642.96 | R10: Essence - Avions extérieurs | U10: Essence_prise_extérieur | V10: 488.55 | X10: Essence_extérieur | AA10: Essence_prise_extérieur | AB10: 508.7 | AD10: Essence_extérieur | AG10: Essence_prise_extérieur | AH10: 0 | AJ10: Essence_extérieur | AM10: Essence_prise_extérieur | AN10: =Exercice!AM10 -> 388.32 | AP10: Essence_extérieur
B11: Cartes Vac | C11: 81 | E11: Cotisations membres | I11: Cartes Vac | J11: =Exercice!I11 -> 83 | L11: Cotisations membres | O11: Cartes Vac | P11: =Exercice!O11 -> 101.91 | R11: Cotisations membres | U11: Cartes_VAC | X11: cotis_membre | AA11: Cartes_VAC | AD11: cotis_membre | AG11: Cartes_VAC | AJ11: cotis_membre | AM11: Cartes_VAC | AP11: cotis_membre
B12: Entretien Océanair | C12: 14867.44 | E12: Cotisations pilotes | I12: Entretien Océanair | J12: =Exercice!I12 -> 2927.08 | L12: Cotisations pilotes | O12: Entretien Océanair | P12: =Exercice!O13 -> 13198.58 | R12: Cotisations pilotes | U12: Frais_déplacement | X12: cotis_pilote | AA12: Frais_déplacement | AD12: cotis_pilote | AG12: Frais_déplacement | AJ12: cotis_pilote | AM12: Frais_déplacement | AP12: cotis_pilote
B13: Assurance de l'Océanair | C13: 2625 | E13: Vols Océanair en simple | F13: 15119 | I13: Assurance de l'Océanair | J13: =Exercice!I13 -> 2555.13 | L13: Vols Océanair en simple | M13: =Exercice!L13 -> 16092.9987 | O13: Assurance de l'Océanair | P13: 2603.92 | R13: Vols Océanair en simple | S13: =Exercice!R13 -> 13414.8 | U13: Entretien_avion | V13: 37325.61 | X13: Océanair_simple | Y13: 15514.9 | AA13: Entretien_avion | AB13: 6063.21 | AD13: Océanair_simple | AE13: 15824.5 | AG13: Entretien_avion | AH13: 8708.7 | AJ13: Océanair_simple | AK13: 18457 | AM13: Entretien_avion | AN13: 10938.59 | AP13: Océanair_simple | AQ13: =Exercice!AP13 -> 15899.52
B14: Frais de déplacement instructeur | C14: 759 | E14: Vols Océanair en double | F14: 14262 | I14: Frais de déplacement instructeur | J14: 594 | L14: Vols Océanair en double | M14: =Exercice!L14 -> 10374 | O14: Frais de déplacement instructeur | P14: 627 | R14: Vols Océanair en double | S14: =Exercice!R14 -> 7401.8 | U14: Assurance_avion | V14: 3323.4 | X14: Océanair_double | Y14: 8320.2 | AA14: Assurance_avion | AB14: 2900.77 | AD14: Océanair_double | AE14: 10654 | AG14: Assurance_avion | AH14: 2981.09 | AJ14: Océanair_double | AK14: 15516 | AM14: Assurance_avion | AN14: =Exercice!AM14 -> 4712.53 | AP14: Océanair_double | AQ14: =Exercice!AP14 -> 9252.4
B15: Cotisation FFA | E15: Cotisation FFA | I15: Cotisation FFA | L15: Cotisation FFA | O15: Cotisation FFA | P15: 2879 | R15: Cotisation FFA | S15: 2617 | U15: Déplacement_Instructeur | V15: 638 | X15: Océanair_initiation | Y15: 1962.4 | AA15: Déplacement_Instructeur | AB15: 660 | AD15: Océanair_initiation | AE15: 1806 | AG15: Déplacement_Instructeur | AH15: 990 | AJ15: Océanair_initiation | AK15: 768 | AM15: Déplacement_Instructeur | AN15: 528 | AP15: Océanair_initiation | AQ15: =Exercice!AP15 -> 462.3
B16: Approvisionnement Bar | E16: Caisse bar | I16: Approvisionnement Bar | L16: Caisse bar | O16: Approvisionnement Bar | R16: Caisse bar | U16: Cotisation_FFA | V16: 2543 | X16: Cotisation_FFA | Y16: 2661 | AA16: Cotisation_FFA | AB16: 3438 | AD16: Cotisation_FFA | AE16: 3258 | AG16: Cotisation_FFA | AH16: 0 | AJ16: Cotisation_FFA | AK16: 0 | AM16: Cotisation_FFA | AP16: Cotisation_FFA
B17: Bourse | E17: Bourse | I17: Bourse | L17: Bourse | O17: Bourse | R17: Bourse | U17: Bar | X17: Caisse_Bar | AA17: Bar | AD17: Caisse_Bar | AG17: Bar | AJ17: Caisse_Bar | AM17: Bar | AP17: Caisse_Bar
B18: BIA | C18: 990 | E18: BIA | F18: 940 | I18: BIA | J18: =Exercice!I18 -> 840 | L18: BIA | M18: =Exercice!L19 -> 300 | O18: BIA | P18: 450 | R18: BIA | S18: =Exercice!R19 -> 700 | U18: Bourse | V18: 0 | X18: Bourse | Y18: 0 | AA18: Bourse | AB18: 1000 | AD18: Bourse | AE18: 1000 | AG18: Bourse | AH18: 0 | AJ18: Bourse | AK18: 0 | AM18: Bourse | AN18: 0 | AP18: Bourse | AQ18: 0
B19: Nourriture | E19: Nourriture | I19: Nourriture | L19: Nourriture | O19: Nourriture | R19: Nourriture | U19: BIA | V19: 167 | X19: BIA | Y19: 367 | AA19: BIA | AB19: 0 | AD19: BIA | AE19: 0 | AG19: BIA | AH19: 0 | AJ19: BIA | AK19: 0 | AM19: BIA | AN19: 0 | AP19: BIA | AQ19: 0
B20: Manuels et Carnets de vol | E20: Manuels et Carnets de vol | I20: Manuels et Carnets de vol | L20: Manuels et Carnets de vol | O20: Manuels et Carnets de vol | P20: 22.4 | R20: Manuels et Carnets de vol | U20: Nourriture | X20: Nourriture | AA20: Nourriture | AD20: Nourriture | AG20: Nourriture | AJ20: Nourriture | AM20: Nourriture | AP20: Nourriture
B21: Location avion extérieur | C21: 1472.5 | E21: Remboursement avion extérieur | F21: 1472.5 | I21: Location avion extérieur | J21: =Exercice!I21 -> 800 | L21: Remboursement avion extérieur | M21: =Exercice!L25 -> 800 | O21: Location avion extérieur | P21: 710.25 | R21: Remboursement avion extérieur | S21: =Exercice!R25 -> 406.25 | U21: Manuel_Carnet_de_vol | V21: 135 | X21: Manuel_Carnet_de_vol | Y21: 135 | AA21: Manuel_Carnet_de_vol | AB21: 610.75 | AD21: Manuel_Carnet_de_vol | AE21: 554 | AG21: Manuel_Carnet_de_vol | AH21: 0 | AJ21: Manuel_Carnet_de_vol | AK21: 80 | AM21: Manuel_Carnet_de_vol | AN21: =Exercice!AM21 -> 294.03 | AP21: Manuel_Carnet_de_vol | AQ21: =Exercice!AP21 -> 177
B22: Frais de déplacements autres | C22: 284.87 | E22: Dons | I22: Frais de déplacements autres | J22: 237 | L22: Dons | O22: Frais de déplacements autres | R22: Dons | U22: Assurance_locaux | X22: Don | Y22: 0 | AA22: Assurance_locaux | AD22: Don | AG22: Assurance_locaux | AJ22: Don | AM22: Assurance_locaux | AP22: Don
B23: Assurance locaux Aéroclub | E23: Locations tables | I23: Assurance locaux Aéroclub | L23: Locations tables | O23: Assurance locaux Aéroclub | R23: Locations tables | U23: Cotisation_CRA20_RSA | V23: 287.5 | X23: Intérêts_Livret | AA23: Cotisation_CRA20_RSA | AB23: 140 | AD23: Intérêts_Livret | AE23: 0 | AG23: Cotisation_CRA20_RSA | AH23: 190 | AJ23: Intérêts_Livret | AK23: 0 | AM23: Cotisation_CRA20_RSA | AN23: =Exercice!AM23 -> 150 | AP23: Intérêts_Livret | AQ23: 0
B24: Cotisation CRA 20 et RSA | E24: Intérêts livret association | I24: Cotisation CRA 20 et RSA | L24: Intérêts livret association | O24: Cotisation CRA 20 et RSA | P24: 120 | R24: Intérêts livret association | U24: Papeterie | X24: Location_tables | Y24: 0 | AA24: Papeterie | AD24: Location_tables | AE24: 0 | AG24: Papeterie | AJ24: Location_tables | AK24: 0 | AM24: Papeterie | AP24: Location_tables | AQ24: 0
B25: Orange internet | E25: Divers | I25: Orange internet | L25: Divers | O25: Orange internet | R25: Divers | U25: Location_Avion extérieur | V25: 3971.52 | X25: Remboursement_Avion extérieur | Y25: 390 | AA25: Location_Avion extérieur | AB25: 501 | AD25: Remboursement_Avion extérieur | AE25: 501 | AG25: Location_Avion extérieur | AH25: 0 | AJ25: Remboursement_Avion extérieur | AK25: 0 | AM25: Location_Avion extérieur | AN25: =Exercice!AM25 -> 170 | AP25: Remboursement_Avion extérieur | AQ25: =Exercice!AP25 -> 170
B26: Papeterie | E26: Vols initiation Océanair | F26: 140 | I26: Papeterie | L26: Vols initiation Océanair | M26: =Exercice!L15 -> 712 | O26: Papeterie | R26: Vols initiation Océanair | S26: =Exercice!R15 -> 723 | U26: Free | X26: Divers | AA26: Free | AD26: Divers | AG26: Free | AJ26: Divers | AM26: Free | AP26: Divers
B27: Divers | E27: Baptême en ULM | I27: Divers | L27: Baptême en ULM | O27: Divers | R27: Baptême en ULM | U27: Divers | X27: ULM_simple | AA27: Divers | AD27: ULM_simple | AG27: Divers | AJ27: ULM_simple | AM27: Divers | AP27: ULM_simple
B28: Remboursements prêt ULM | E28: Vols ULM en simple | I28: Remboursements prêt ULM | L28: Vols ULM en simple | O28: Remboursements prêt ULM | R28: Vols ULM en simple | U28: ULM_Prêt_CIC | X28: ULM_double | AA28: ULM_Prêt_CIC | AD28: ULM_double | AG28: ULM_Prêt_CIC | AJ28: ULM_double | AM28: ULM_Prêt_CIC | AP28: ULM_double
B29: Entretien ULM | E29: Vols ULM en double | I29: Entretien ULM | L29: Vols ULM en double | O29: Entretien ULM | R29: Vols ULM en double | U29: ULM_entretien | X29: ULM_baptême | AA29: ULM_entretien | AD29: ULM_initiation | AG29: ULM_entretien | AJ29: ULM_initiation | AM29: ULM_entretien | AP29: ULM_initiation
B30: Essence pour ULM | E30: Subventions Océanair | F30: 2400 | I30: Essence pour ULM | L30: Subventions Océanair | M30: =Exercice!L31 -> 0 | O30: Essence pour ULM | R30: Subventions Océanair | S30: =Exercice!R31 -> 0 | U30: ULM_essence | V30: 0 | X30: ULM_souscription_trésorerie | Y30: 0 | AA30: Entretien locaux | AD30: ULM_souscription_trésorerie | AE30: 0 | AG30: Entretien locaux | AJ30: ULM_souscription_trésorerie | AK30: 0 | AM30: Entretien locaux | AP30: ULM_souscription_trésorerie | AQ30: 0
B31: Assurance de l'ULM | I31: Assurance de l'ULM | O31: Assurance de l'ULM | U31: ULM_assurance | X31: Océanair_Subventions | Y31: 0 | AA31: ULM_assurance | AD31: Océanair_Subventions | AE31: 0 | AG31: ULM_assurance | AJ31: Océanair_Subventions | AK31: 0 | AM31: ULM_assurance | AP31: Océanair_Subventions | AQ31: 0
B32: Baptême en ULM remise | I32: Baptême en ULM remise | O32: Baptême en ULM remise | U32: ULM_baptême_remise | V32: 0 | X32: Prêt CIC | AA32: ULM_baptême_remise | AD32: Prêt CIC | AG32: ULM_baptême_remise | AJ32: Prêt CIC | AM32: ULM_baptême_remise | AP32: Prêt CIC
B33: Remboursement souscription ULM | C33: 0 | I33: Remboursement souscription ULM | J33: 0 | O33: Remboursement souscription ULM | P33: 0 | U33: ULM_rembt_souscription | X33: ULM subvention | AA33: ULM_rembt_souscription | AD33: ULM subvention | AG33: ULM_rembt_souscription | AJ33: ULM subvention | AM33: ULM_rembt_souscription | AP33: ULM subvention
B34: Moteur Avion Océanair | C34: 8300.84 | I34: Moteur Avion Océanair | J34: =Exercice!I34 -> 0 | O34: Moteur Avion Océanair | P34: =Exercice!O34 -> 0 | U34: Prêt CIC | Y34: 0 | AA34: Prêt CIC | AE34: 0 | AG34: Prêt CIC | AK34: 0 | AM34: Prêt CIC | AQ34: 0
B35: TOTAL Charges | C35: =SUM(C4:C34) -> 39536.44 | E35: TOTAL Produits | F35: =SUM(F4:F34) -> 34333.5 | I35: TOTAL Charges | J35: =SUM(J4:J34) -> 18584.91 | L35: TOTAL Produits | M35: =SUM(M4:M34) -> 28278.9987 | O35: TOTAL Charges | P35: =SUM(P4:P34) -> 21431.31 | R35: TOTAL Produits | S35: =SUM(S4:S34) -> 25262.85 | U35: TOTAL Charges | V35: =SUM(V4:V34) -> 48945.37 | X35: TOTAL Produits | Y35: =SUM(Y4:Y34) -> 29350.5 | AA35: TOTAL Charges | AB35: =SUM(AB4:AB34) -> 15922.67 | AD35: TOTAL Produits | AE35: =SUM(AE4:AE34) -> 33738.52 | AG35: TOTAL Charges | AH35: =SUM(AH4:AH34) -> 12879.14 | AJ35: TOTAL Produits | AK35: =SUM(AK4:AK34) -> 34830.35 | AM35: TOTAL Charges | AN35: =SUM(AN4:AN34) -> 17181.47 | AP35: TOTAL Produits | AQ35: =SUM(AQ4:AQ34) -> 25961.22
B37: Exercice 2016 (Produits - Charges) = -5202,94 € | I37: Exercice 2017 (Produits - Charges) = +9694,09 € | O37: Exercice 2018 (Produits - Charges) = +3831,54 € | U37: Exercice 2019 (Produits - Charges) = | Y37: =Y35-V35 -> -19594.87 | AA37: Exercice 2020 (Produits - Charges) = | AE37: =AE35-AB35 -> 17815.85 | AG37: Exercice 2021 (Produits - Charges) = | AK37: =AK35-AH35 -> 21951.21 | AM37: Exercice 2022 (Produits - Charges) = | AQ37: =AQ35-AN35 -> 8779.75

Sheet Bilan ULM
B1: Charges et produits ULM 2016 | H1: Charges et produits ULM 2017 | N1: Charges et produits ULM 2018 | T1: Charges et produits ULM 2019 | Z1: Charges et produits ULM 2020 | AF1: Charges et produits ULM 2021 | AL1: Charges et produits ULM 2022
B2: CHARGES | E2: PRODUITS | H2: CHARGES | K2: PRODUITS | N2: CHARGES | Q2: PRODUITS | T2: CHARGES | W2: PRODUITS | Z2: CHARGES | AC2: PRODUITS | AF2: CHARGES | AI2: PRODUITS | AL2: CHARGES | AO2: PRODUITS
B4: Assemblée Générale | E4: Assemblée Générale | H4: Assemblée Générale | K4: Assemblée Générale | N4: Assemblée Générale | Q4: Assemblée Générale | T4: Assemblée Générale | W4: Assemblée Générale | Z4: AG_2019 | AC4: AG_2019 | AF4: AG_2019 | AI4: AG_2019 | AL4: AG_2019 | AO4: AG_2019
B5: Soirée crêpes | E5: Soirée crêpes | H5: Soirée crêpes | K5: Soirée crêpes | N5: Soirée crêpes | Q5: Soirée crêpes | T5: Soirée crêpes | W5: Soirée crêpes | Z5: Journée_crêpes | AC5: Journée_crêpes | AF5: Journée_crêpes | AI5: Journée_crêpes | AL5: Journée_crêpes | AO5: Journée_crêpes
B6: Cartes OACI | E6: Cartes OACI | H6: Cartes OACI | K6: Cartes OACI | N6: Cartes OACI | Q6: Cartes OACI | T6: Cartes OACI | W6: Cartes OACI | Z6: Cartes_OACI | AC6: Cartes_OACI | AF6: Cartes_OACI | AI6: Cartes_OACI | AL6: Cartes_OACI | AO6: Cartes_OACI
B7: Locations hangars 2016 | E7: Locations hangars 2016 | H7: Locations hangars 2017 | K7: Locations hangars 2017 | N7: Locations hangars 2018 | Q7: Locations hangars 2018 | T7: Locations hangars 2018 | W7: Locations hangars 2018 | Z7: Hangars_2018 | AC7: Location_hangar | AF7: Hangars_2018 | AI7: Location_hangar | AL7: Hangars_2018 | AO7: Location_hangar
B8: Taxes d'atterrissages | E8: Taxes d'atterrissages | H8: Taxes d'atterrissages | K8: Taxes d'atterrissages | N8: Taxes d'atterrissages | Q8: Taxes d'atterrissages | T8: Taxes d'atterrissages | W8: Taxes d'atterrissages | Z8: Taxe_atterrissage | AC8: Taxe_atterrissage | AF8: Taxe_atterrissage | AI8: Taxe_atterrissage | AL8: Taxe_atterrissage | AO8: Taxe_atterrissage
B9: Essence - Approvision cuve | E9: Essence - Pilotes basés | H9: Essence - Approvision cuve | K9: Essence - Pilotes basés | N9: Essence - Approvision cuve | Q9: Essence - Pilotes basés | T9: Essence - Approvision cuve | W9: Essence - Pilotes basés | Z9: Essence_approvisionnement | AC9: Essence_basés | AF9: Essence_approvisionnement | AI9: Essence_basés | AL9: Essence_approvisionnement | AO9: Essence_basés
B10: Essence - Terrains extérieurs | E10: Essence - Avions extérieurs | H10: Essence - Terrains extérieurs | K10: Essence - Avions extérieurs | N10: Essence - Terrains extérieurs | Q10: Essence - Avions extérieurs | T10: Essence - Terrains extérieurs | W10: Essence - Avions extérieurs | Z10: Essence_prise_extérieur | AC10: Essence_extérieur | AF10: Essence_prise_extérieur | AI10: Essence_extérieur | AL10: Essence_prise_extérieur | AO10: Essence_extérieur
B11: Cartes Vac | E11: Cotisations membres | H11: Cartes Vac | K11: Cotisations membres | N11: Cartes Vac | Q11: Cotisations membres | T11: Cartes Vac | W11: Cotisations membres | Z11: Cartes_VAC | AC11: cotis_membre | AF11: Cartes_VAC | AI11: cotis_membre | AL11: Cartes_VAC | AO11: cotis_membre
B12: Entretien Océanair | E12: Cotisations pilotes | H12: Entretien Océanair | K12: Cotisations pilotes | N12: Entretien Océanair | Q12: Cotisations pilotes | T12: Entretien Océanair | W12: Cotisations pilotes | Z12: Frais_déplacement | AC12: cotis_pilote | AF12: Frais_déplacement | AI12: cotis_pilote | AL12: Frais_déplacement | AO12: cotis_pilote
B13: Assurance de l'Océanair | E13: Vols Océanair en simple | H13: Assurance de l'Océanair | K13: Vols Océanair en simple | N13: Assurance de l'Océanair | Q13: Vols Océanair en simple | T13: Assurance de l'Océanair | W13: Vols Océanair en simple | Z13: Entretien_avion | AC13: Océanair_simple | AF13: Entretien_avion | AI13: Océanair_simple | AL13: Entretien_avion | AO13: Océanair_simple
B14: Frais de déplacement instructeur | C14: 550 | E14: Vols Océanair en double | H14: Frais de déplacement instructeur | I14: 682 | K14: Vols Océanair en double | N14: Frais de déplacement instructeur | O14: 682 | Q14: Vols Océanair en double | T14: Frais de déplacement instructeur | U14: 825 | W14: Vols Océanair en double | Z14: Assurance_avion | AC14: Océanair_double | AF14: Assurance_avion | AI14: Océanair_double | AL14: Assurance_avion | AO14: Océanair_double
B15: Cotisation FFA | E15: Cotisation FFA | H15: Cotisation FFA | K15: Cotisation FFA | N15: Cotisation FFA | Q15: Cotisation FFA | T15: Cotisation FFA | W15: Cotisation FFA | Z15: Déplacement_Instructeur | AA15: 1065 | AC15: Océanair_initiation | AF15: Déplacement_Instructeur | AG15: 1857.6 | AI15: Océanair_initiation | AL15: Déplacement_Instructeur | AM15: 1344.6 | AO15: Océanair_initiation
B16: Approvisionnement Bar | E16: Caisse bar | H16: Approvisionnement Bar | K16: Caisse bar | N16: Approvisionnement Bar | Q16: Caisse bar | T16: Approvisionnement Bar | W16: Caisse bar | Z16: Cotisation_FFA | AC16: Cotisation_FFA | AF16: Cotisation_FFA | AI16: Cotisation_FFA | AL16: Cotisation_FFA | AO16: Cotisation_FFA
B17: Bourse | E17: Bourse | H17: Bourse | K17: Bourse | N17: Bourse | Q17: Bourse | T17: Bourse | W17: Bourse | Z17: Bar | AC17: Caisse_Bar | AF17: Bar | AI17: Caisse_Bar | AL17: Bar | AO17: Caisse_Bar
B18: BIA | E18: BIA | H18: BIA | K18: BIA | N18: BIA | Q18: BIA | T18: BIA | W18: BIA | Z18: Bourse | AC18: Bourse | AF18: Bourse | AI18: Bourse | AL18: Bourse | AO18: Bourse
B19: Nourriture | E19: Nourriture | H19: Nourriture | K19: Nourriture | N19: Nourriture | Q19: Nourriture | T19: Nourriture | W19: Nourriture | Z19: BIA | AA19: 0 | AC19: BIA | AD19: 0 | AF19: BIA | AG19: 0 | AI19: BIA | AJ19: 0 | AL19: BIA | AM19: 0 | AO19: BIA | AP19: 0
B20: Manuels et Carnets de vol | E20: Manuels et Carnets de vol | H20: Manuels et Carnets de vol | K20: Manuels et Carnets de vol | N20: Manuels et Carnets de vol | Q20: Manuels et Carnets de vol | T20: Manuels et Carnets de vol | W20: Manuels et Carnets de vol | Z20: Nourriture | AC20: Nourriture | AF20: Nourriture | AI20: Nourriture | AL20: Nourriture | AO20: Nourriture
B21: Location avion extérieur | E21: Remboursement avion extérieur | H21: Location avion extérieur | K21: Remboursement avion extérieur | N21: Location avion extérieur | Q21: Remboursement avion extérieur | T21: Location avion extérieur | W21: Remboursement avion extérieur | Z21: Manuel_Carnet_de_vol | AC21: Manuel_Carnet_de_vol | AF21: Manuel_Carnet_de_vol | AI21: Manuel_Carnet_de_vol | AL21: Manuel_Carnet_de_vol | AO21: Manuel_Carnet_de_vol
B22: Frais de déplacements autres | C22: 81.6 | E22: Dons | H22: Frais de déplacements autres | I22: 223.8 | K22: Dons | N22: Frais de déplacements autres | Q22: Dons | T22: Frais de déplacements autres | W22: Dons | Z22: Assurance_locaux | AC22: Don | AF22: Assurance_locaux | AI22: Don | AL22: Assurance_locaux | AO22: Don
B23: Assurance locaux Aéroclub | E23: Locations tables | H23: Assurance locaux Aéroclub | K23: Locations tables | N23: Assurance locaux Aéroclub | Q23: Locations tables | T23: Assurance locaux Aéroclub | W23: Locations tables | Z23: Cotisation_CRA20_RSA | AC23: Intérêts_Livret | AF23: Cotisation_CRA20_RSA | AI23: Intérêts_Livret | AL23: Cotisation_CRA20_RSA | AO23: Intérêts_Livret
B24: Cotisation CRA 20 et RSA | E24: Intérêts livret association | H24: Cotisation CRA 20 et RSA | K24: Intérêts livret association | N24: Cotisation CRA 20 et RSA | Q24: Intérêts livret association | T24: Cotisation CRA 20 et RSA | W24: Intérêts livret association | Z24: Papeterie | AC24: Location_tables | AF24: Papeterie | AI24: Location_tables | AL24: Papeterie | AO24: Location_tables
B25: Orange internet | E25: Divers | H25: Orange internet | K25: Divers | N25: Orange internet | Q25: Divers | T25: Orange internet | W25: Divers | Z25: Location_Avion extérieur | AC25: Remboursement_Avion extérieur | AF25: Location_Avion extérieur | AI25: Remboursement_Avion extérieur | AL25: Location_Avion extérieur | AO25: Remboursement_Avion extérieur
B26: Papeterie | E26: Vols initiation Océanair | H26: Papeterie | K26: Vols initiation Océanair | N26: Papeterie | Q26: Vols initiation Océanair | T26: Papeterie | W26: Vols initiation Océanair | Z26: Free | AC26: Divers | AF26: Free | AI26: Divers | AL26: Free | AO26: Divers
B27: Divers | E27: Baptême en ULM | F27: 140 | H27: Divers | K27: Baptême en ULM | L27: =Exercice!L29 -> 159.2 | N27: Divers | Q27: Baptême en ULM | R27: =Exercice!R29 -> 120 | T27: Divers | W27: Baptême en ULM | X27: =Exercice!X29 -> 180.2 | Z27: Divers | AC27: ULM_simple | AD27: 5410.8 | AF27: Divers | AI27: ULM_simple | AJ27: 7876.8 | AL27: Divers | AO27: ULM_simple | AP27: =Exercice!AP27 -> 6479.7
B28: Remboursements prêt ULM | C28: 2753.4 | E28: Vols ULM en simple | F28: 1809.8 | H28: Remboursements prêt ULM | I28: =Exercice!I28 -> 2753.4 | K28: Vols ULM en simple | L28: =Exercice!L27 -> 2856 | N28: Remboursements prêt ULM | O28: =Exercice!O28 -> 2753.4 | Q28: Vols ULM en simple | R28: =Exercice!R27 -> 4603.6 | T28: Remboursements prêt ULM | U28: =Exercice!U28 -> 2753.4 | W28: Vols ULM en simple | X28: =Exercice!X27 -> 5136 | Z28: ULM_Prêt_CIC | AA28: 2753.4 | AC28: ULM_double | AD28: 6816.6 | AF28: ULM_Prêt_CIC | AG28: 2753.4 | AI28: ULM_double | AJ28: 11233.6 | AL28: ULM_Prêt_CIC | AM28: =Exercice!AM28 -> 1147.2 | AO28: ULM_double | AP28: =Exercice!AP28 -> 10820.1
B29: Entretien ULM | C29: 1065.01 | E29: Vols ULM en double | F29: 7344.6 | H29: Entretien ULM | I29: =Exercice!I29 -> 557.67 | K29: Vols ULM en double | L29: =Exercice!F29 -> 7344.6 | N29: Entretien ULM | O29: =Exercice!O29 -> 18689.81 | Q29: Vols ULM en double | R29: =Exercice!R28 -> 8055.6 | T29: Entretien ULM | U29: =Exercice!U29 -> 1594.9 | W29: Vols ULM en double | X29: =Exercice!X28 -> 12002.2 | Z29: ULM_entretien | AA29: 361.41 | AC29: ULM_initiation | AD29: 541.2 | AF29: ULM_entretien | AG29: 2210.52 | AI29: ULM_initiation | AJ29: 262.8 | AL29: ULM_entretien | AM29: =Exercice!AM29 -> 1266.45 | AO29: ULM_initiation | AP29: =Exercice!AP29 -> 307.85
B30: Essence pour ULM | C30: 1680.11 | E30: Subventions Océanair | H30: Essence pour ULM | I30: =Exercice!I30 -> 2213.14 | K30: Subventions Océanair | N30: Essence pour ULM | O30: =Exercice!O30 -> 937.01 | Q30: Subventions Océanair | T30: Essence pour ULM | U30: =Exercice!U30 -> 0 | W30: Subventions Océanair | Z30: Entretien locaux | AC30: ULM_souscription_trésorerie | AD30: 0 | AF30: Entretien locaux | AI30: ULM_souscription_trésorerie | AJ30: 0 | AL30: Entretien locaux | AO30: ULM_souscription_trésorerie | AP30: 0
B31: Assurance de l'ULM | C31: 1930 | H31: Assurance de l'ULM | I31: =Exercice!I31 -> 1333.94 | N31: Assurance de l'ULM | O31: =Exercice!O31 -> 1356.35 | T31: Assurance de l'ULM | U31: =Exercice!U31 -> 1911.74 | W31: Subventions ULM | X31: 223.96 | Z31: ULM_assurance | AA31: 1600 | AC31: Océanair_Subventions | AD31: 0 | AF31: ULM_assurance | AG31: 1838.78 | AI31: Océanair_Subventions | AJ31: 0 | AL31: ULM_assurance | AM31: =Exercice!AM31 -> 2019.66 | AO31: Océanair_Subventions | AP31: 0
B32: Baptême en ULM remise | C32: 60 | H32: Baptême en ULM remise | I32: =Exercice!I32 -> 30 | N32: Baptême en ULM remise | O32: =Exercice!O32 -> 35 | T32: Baptême en ULM remise | U32: =Exercice!U32 -> 0 | Z32: ULM_baptême_remise | AA32: 0 | AC32: Prêt CIC | AF32: Kit ULM | AG32: 21400 | AI32: Prêt CIC kit ULM | AJ32: 21400 | AL32: Kit ULM | AO32: Prêt CIC kit ULM
B33: Remboursement souscription ULM | C33: 0 | H33: Remboursement souscription ULM | I33: 0 | N33: Remboursement souscription ULM | O33: 0 | T33: Remboursement souscription ULM | U33: 0 | Z33: ULM_rembt_souscription | AA33: 0 | AC33: ULM subvention | AF33: ULM_rembt_souscription | AG33: 0 | AI33: ULM subvention | AJ33: 2000 | AL33: ULM_rembt_souscription | AM33: 0 | AO33: ULM subvention
B34: Moteur Avion Océanair | H34: Moteur Avion Océanair | N34: Moteur Avion Océanair | T34: Moteur Avion Océanair | Z34: Prêt CIC | AD34: 0 | AF34: Prêt CIC | AJ34: 0 | AL34: Prêt CIC | AP34: 0
B35: TOTAL Charges | C35: =SUM(C4:C34) -> 8120.12 | E35: TOTAL Produits | F35: =SUM(F4:F34) -> 9294.4 | H35: TOTAL Charges | I35: =SUM(I4:I34) -> 7793.95 | K35: TOTAL Produits | L35: =SUM(L4:L34) -> 10359.8 | N35: TOTAL Charges | O35: =SUM(O4:O34) -> 24453.57 | Q35: TOTAL Produits | R35: =SUM(R4:R34) -> 12779.2 | T35: TOTAL Charges | U35: =SUM(U4:U34) -> 7085.04 | W35: TOTAL Produits | X35: =SUM(X4:X34) -> 17542.36 | Z35: TOTAL Charges | AA35: =SUM(AA4:AA34) -> 5779.81 | AC35: TOTAL Produits | AD35: =SUM(AD4:AD34) -> 12768.6 | AF35: TOTAL Charges | AG35: =SUM(AG4:AG34) -> 30060.3 | AI35: TOTAL Produits | AJ35: =SUM(AJ4:AJ34) -> 42773.2 | AL35: TOTAL Charges | AM35: =SUM(AM4:AM34) -> 5777.91 | AO35: TOTAL Produits | AP35: =SUM(AP4:AP34) -> 17607.65
AA36: 0 | AG36: 0 | AM36: 0
B37: Exercice 2016 (Produits - Charges) = + 1174,28 € | H37: Exercice 2017 (Produits - Charges) = + 2565,85 € | N37: Exercice 2018 (Produits - Charges) = - 11673,72 € | T37: Exercice 2019 (Produits - Charges) = | X37: =X35-U35 -> 10457.32 | Z37: Exercice 2020 (Produits - Charges) = | AD37: =AD35-AA35 -> 6988.79 | AF37: Exercice 2021 (Produits - Charges) = | AJ37: =AJ35-AG35 -> 12712.9 | AL37: Exercice 2022 (Produits - Charges) = | AP37: =AP35-AM35 -> 11829.74

Sheet Bilan Savannah
B1: Charges et produits Savannah 2022
B2: CHARGES | E2: PRODUITS
B4: AG_2021 | E4: AG_2021
B5: Journée_crêpes | E5: Journée_crêpes
B6: Cartes_OACI | E6: Cartes_OACI
B7: Hangars_2019 | E7: Location_hangar
B8: Taxe_atterrissage | E8: Taxe_atterrissage
B9: Essence_approvisionnement | E9: Essence_basés
B10: Essence_prise_extérieur | E10: Essence_extérieur
B11: Cartes_VAC | E11: cotis_membre
B12: Frais_déplacement | E12: cotis_pilote
B13: Entretien_avion | E13: Océanair_simple
B14: Assurance_avion | E14: Océanair_double
B15: Déplacement_Instructeur | E15: Océanair_initiation
B16: Cotisation_FFA | E16: Cotisation_FFA
B17: Bar | E17: Caisse_Bar
B18: Bourse | C18: 0 | E18: Bourse | F18: 0
B19: BIA | C19: 0 | E19: BIA | F19: 0
B20: Nourriture | E20: Nourriture
B21: Manuel_Carnet_de_vol | E21: Manuel_Carnet_de_vol
B22: Assurance_locaux | E22: Don
B23: Cotisation_CRA20_RSA | E23: Intérêts_Livret
B24: Papeterie | E24: Location_tables
B25: Location_Avion extérieur | E25: Remboursement_Avion extérieur
B26: Free | E26: Divers
B27: Divers | E27: ULM_simple
B28: ULM_Prêt_CIC | E28: ULM_double
B29: ULM_entretien | E29: ULM_initiation
B30: Entretien locaux | E30: ULM_souscription_trésorerie | F30: 0
B31: ULM_assurance | E31: Océanair_Subventions | F31: 0
B32: Kit ULM | C32: 38783.01
B33: Mezzanine | E33: ULM subvention
B34: Prêt CIC | F34: 0
B35: Repas construction kit ULM | C35: 2017.07 | E35: Repas construction kit ULM | F35: 2301.45
B36: Prêt Kit ULM | C36: 3652.23
B37: Repas rassemblement ACAA | E37: Repas rassemblement ACAA
B38: TOTAL Charges | C38: =SUM(C4:C37) -> 44452.31 | E38: TOTAL Produits | F38: =SUM(F4:F37) -> 2301.45
B40: Exercice 2022 (Produits - Charges) = | F40: =F38-C38 -> -42150.86

Sheet Bilan CLUB
B1: Charges et produits Club 2016 | H1: Charges et produits Club 2017 | N1: Charges et produits Club 2018 | T1: Charges et produits Club 2019 | Z1: Charges et produits Club 2020 | AF1: Charges et produits Club 2021 | AL1: Charges et produits Club 2022
B2: CHARGES | E2: PRODUITS | H2: CHARGES | K2: PRODUITS | N2: CHARGES | Q2: PRODUITS | T2: CHARGES | W2: PRODUITS | Z2: CHARGES | AC2: PRODUITS | AF2: CHARGES | AI2: PRODUITS | AL2: CHARGES | AO2: PRODUITS
B4: Assemblée Générale | C4: 514.1 | E4: Assemblée Générale | F4: 306 | H4: Assemblée Générale | I4: =Exercice!I4 -> 658.4 | K4: Assemblée Générale | L4: =Exercice!L4 -> 322.3 | N4: Assemblée Générale | O4: =Exercice!O4 -> 492.2 | Q4: Assemblée Générale | R4: =Exercice!R4 -> 321.3 | T4: Assemblée Générale | U4: =Exercice!U4 -> 234.6 | W4: Assemblée Générale | X4: =Exercice!X4 -> 0 | Z4: AG_2019 | AA4: 625 | AC4: AG_2019 | AD4: 525 | AF4: AG_2020 | AG4: 0 | AI4: AG_2020 | AJ4: 0 | AL4: AG_2021 | AM4: =Exercice!AM4 -> 623.2 | AO4: AG_2021 | AP4: =Exercice!AP4 -> 475.04
B5: Soirée crêpes | C5: 186 | E5: Soirée crêpes | F5: 655 | H5: Soirée crêpes | I5: =Exercice!I5 -> 358.54 | K5: Soirée crêpes | L5: =Exercice!L5 -> 490 | N5: Soirée crêpes | O5: =Exercice!O5 -> 0 | Q5: Soirée crêpes | R5: =Exercice!R5 -> 0 | T5: Soirée crêpes | U5: =Exercice!U5 -> 328.8 | W5: Soirée crêpes | X5: =Exercice!X5 -> 1030 | Z5: Journée_crêpes | AA5: 305.83 | AC5: Journée_crêpes | AD5: 385 | AF5: Journée_crêpes | AG5: 0 | AI5: Journée_crêpes | AJ5: 0 | AL5: Journée_crêpes | AM5: =Exercice!AM5 -> 410.6 | AO5: Journée_crêpes | AP5: =Exercice!AP5 -> 1380
B6: Cartes OACI | E6: Cartes OACI | H6: Cartes OACI | K6: Cartes OACI | N6: Cartes OACI | Q6: Cartes OACI | T6: Cartes OACI | U6: 104.44 | W6: Cartes OACI | Z6: Cartes_OACI | AA6: 184.72 | AC6: Cartes_OACI | AF6: Cartes_OACI | AG6: 156.15 | AI6: Cartes_OACI | AL6: Cartes_OACI | AM6: =Exercice!AM6-Exercice!AP6 -> 201.99 | AO6: Cartes_OACI
B7: Locations hangars 2014 | E7: Locations hangars 2014 | H7: Locations hangars 2014 | K7: Locations hangars 2014 | N7: Locations hangars 2018 | Q7: Locations hangars 2018 | R7: 3720 | T7: Locations hangars 2018 | U7: 3600 | W7: Locations hangars 2018 | X7: 3880 | Z7: Hangars_2018 | AA7: 3600 | AC7: Location_hangar | AD7: 4020 | AF7: Hangars_2018 | AG7: 7600 | AI7: Location_hangar | AJ7: 3840 | AL7: Hangars_2018 | AM7: =Exercice!AM7 -> 4000 | AO7: Location_hangar | AP7: 3840
B8: Taxes d'atterrissages | E8: Taxes d'atterrissages | H8: Taxes d'atterrissages | K8: Taxes d'atterrissages | N8: Taxes d'atterrissages | Q8: Taxes d'atterrissages | T8: Taxes d'atterrissages | W8: Taxes d'atterrissages | Z8: Taxe_atterrissage | AC8: Taxe_atterrissage | AF8: Taxe_atterrissage | AI8: Taxe_atterrissage | AL8: Taxe_atterrissage | AM8: =Exercice!AM8-Exercice!AP8 -> 21.76 | AO8: Taxe_atterrissage
B9: Essence - Approvision cuve | E9: Essence - Pilotes basés | H9: Essence - Approvision cuve | K9: Essence - Pilotes basés | N9: Essence - Approvision cuve | Q9: Essence - Pilotes basés | T9: Essence - Approvision cuve | U9: 7878.52 | W9: Essence - Pilotes basés | X9: 3977.46 | Z9: Essence_approvisionnement | AA9: 24702.13 | AC9: Essence_basés | AD9: 3490.22 | AF9: Essence_approvisionnement | AG9: 25383.82 | AI9: Essence_basés | AJ9: 4853.42 | AL9: Essence_approvisionnement | AM9: =Exercice!AM9 -> 22546.85 | AO9: Essence_basés | AP9: =Exercice!AP9 -> 4620.8
B10: Essence - Terrains extérieurs | E10: Essence - Avions extérieurs | H10: Essence - Terrains extérieurs | K10: Essence - Avions extérieurs | N10: Essence - Terrains extérieurs | Q10: Essence - Avions extérieurs | R10: 1213.71 | T10: Essence - Terrains extérieurs | W10: Essence - Avions extérieurs | X10: 214.92 | Z10: Essence_prise_extérieur | AC10: Essence_extérieur | AD10: 671.99 | AF10: Essence_prise_extérieur | AG10: 521.07 | AI10: Essence_extérieur | AJ10: 1496.15 | AL10: Essence_prise_extérieur | AO10: Essence_extérieur | AP10: =Exercice!AP10 -> 5626.55
B11: Cartes Vac | E11: Cotisations membres | F11: 245 | H11: Cartes Vac | K11: Cotisations membres | L11: =Exercice!L11 -> 420 | N11: Cartes Vac | Q11: Cotisations membres | R11: =Exercice!R11 -> 350 | T11: Cartes Vac | U11: 130.49 | W11: Cotisations membres | X11: =Exercice!X11 -> 245 | Z11: Cartes_VAC | AA11: 107.49 | AC11: cotis_membre | AD11: 315 | AF11: Cartes_VAC | AG11: 109.43 | AI11: cotis_membre | AJ11: 445 | AL11: Cartes_VAC | AO11: cotis_membre | AP11: =Exercice!AP11 -> 590
B12: Entretien Océanair | E12: Cotisations pilotes | F12: 4770 | H12: Entretien Océanair | K12: Cotisations pilotes | L12: =Exercice!L12 -> 4167.5 | N12: Entretien Océanair | Q12: Cotisations pilotes | R12: =Exercice!R12 -> 4114.2 | T12: Entretien Océanair | W12: Cotisations pilotes | X12: =Exercice!X12 -> 3830 | Z12: Frais_déplacement | AA12: 661.2 | AC12: cotis_pilote | AD12: 4765 | AF12: Frais_déplacement | AG12: 1734.2 | AI12: cotis_pilote | AJ12: 5240 | AL12: Frais_déplacement | AM12: =Exercice!AM12 -> 289.8 | AO12: cotis_pilote | AP12: =Exercice!AP12 -> 4845
B13: Assurance de l'Océanair | E13: Vols Océanair en simple | H13: Assurance de l'Océanair | K13: Vols Océanair en simple | N13: Assurance de l'Océanair | Q13: Vols Océanair en simple | T13: Assurance de l'Océanair | W13: Vols Océanair en simple | Z13: Entretien_avion | AC13: Océanair_simple | AF13: Entretien_avion | AI13: Océanair_simple | AL13: Entretien_avion | AO13: Océanair_simple
B14: Frais de déplacement instructeur | E14: Vols Océanair en double | H14: Frais de déplacement instructeur | K14: Vols Océanair en double | N14: Frais de déplacement instructeur | Q14: Vols Océanair en double | T14: Frais de déplacement instructeur | W14: Vols Océanair en double | Z14: Assurance_avion | AC14: Océanair_double | AF14: Assurance_avion | AI14: Océanair_double | AL14: Assurance_avion | AO14: Océanair_double
B15: Cotisation FFA | E15: Cotisation FFA | H15: Cotisation FFA | K15: Cotisation FFA | N15: Cotisation FFA | Q15: Cotisation FFA | T15: Cotisation FFA | W15: Cotisation FFA | Z15: Déplacement_Instructeur | AC15: Océanair_initiation | AF15: Déplacement_Instructeur | AI15: Océanair_initiation | AL15: Déplacement_Instructeur | AO15: Océanair_initiation
B16: Approvisionnement Bar | C16: 212.13 | E16: Caisse bar | F16: 460 | H16: Approvisionnement Bar | I16: =Exercice!I16 -> 344.14 | K16: Caisse bar | L16: =Exercice!L17 -> 450.18 | N16: Approvisionnement Bar | O16: =Exercice!O17 -> 353.41 | Q16: Caisse bar | R16: =Exercice!R17 -> 645 | T16: Approvisionnement Bar | U16: =Exercice!U17 -> 655.05 | W16: Caisse bar | X16: =Exercice!X17 -> 862 | Z16: Cotisation_FFA | AC16: Cotisation_FFA | AF16: Cotisation_FFA | AG16: 181.5 | AI16: Cotisation_FFA | AL16: Cotisation_FFA | AM16: =Exercice!AM16-Exercice!AP16 -> 358.5 | AO16: Cotisation_FFA
B17: Bourse | E17: Bourse | H17: Bourse | K17: Bourse | N17: Bourse | Q17: Bourse | T17: Bourse | W17: Bourse | Z17: Bar | AA17: 648.27 | AC17: Caisse_Bar | AD17: 805.05 | AF17: Bar | AG17: 884.09 | AI17: Caisse_Bar | AJ17: 1129.6 | AL17: Bar | AM17: =Exercice!AM17 -> 1289.65 | AO17: Caisse_Bar | AP17: =Exercice!AP17 -> 1065.5
B18: BIA | E18: BIA | H18: BIA | K18: BIA | N18: BIA | Q18: BIA | T18: BIA | W18: BIA | Z18: Bourse | AC18: Bourse | AF18: Bourse | AI18: Bourse | AL18: Bourse | AO18: Bourse
B19: Nourriture | C19: 928.92 | E19: Nourriture | F19: 376 | H19: Nourriture | I19: =Exercice!I19 -> 665.97 | K19: Nourriture | L19: =Exercice!L20 -> 156 | N19: Nourriture | O19: =Exercice!O20 -> 821.01 | Q19: Nourriture | R19: =Exercice!R20 -> 205 | T19: Nourriture | U19: =Exercice!U20 -> 1836.1 | W19: Nourriture | X19: =Exercice!X20 -> 194 | Z19: BIA | AA19: 0 | AC19: BIA | AD19: 0 | AF19: BIA | AG19: 0 | AI19: BIA | AJ19: 0 | AL19: BIA | AM19: 0 | AO19: BIA | AP19: 0
B20: Manuels et Carnets de vol | C20: 392.01 | E20: Manuels et Carnets de vol | F20: 312 | H20: Manuels et Carnets de vol | I20: =Exercice!I20 -> 23.95 | K20: Manuels et Carnets de vol | L20: =Exercice!L21 -> 0 | N20: Manuels et Carnets de vol | O20: =Exercice!O21 -> 182.4 | Q20: Manuels et Carnets de vol | R20: =Exercice!R21 -> 160 | T20: Manuels et Carnets de vol | W20: Manuels et Carnets de vol | Z20: Nourriture | AA20: 1445.65 | AC20: Nourriture | AD20: 822 | AF20: Nourriture | AG20: 1732.08 | AI20: Nourriture | AJ20: 898 | AL20: Nourriture | AM20: =Exercice!AM20 -> 1452 | AO20: Nourriture | AP20: =Exercice!AP20 -> 780
B21: Location avion extérieur | E21: Remboursement avion extérieur | H21: Location avion extérieur | K21: Remboursement avion extérieur | N21: Location avion extérieur | Q21: Remboursement avion extérieur | T21: Location avion extérieur | W21: Remboursement avion extérieur | Z21: Manuel_Carnet_de_vol | AC21: Manuel_Carnet_de_vol | AF21: Manuel_Carnet_de_vol | AI21: Manuel_Carnet_de_vol | AL21: Manuel_Carnet_de_vol | AO21: Manuel_Carnet_de_vol
B22: Frais de déplacements autres | E22: Dons | F22: 2395 | H22: Frais de déplacements autres | I22: 105.6 | K22: Dons | L22: =Exercice!L22 -> 200 | N22: Frais de déplacements autres | O22: 2262.6 | Q22: Dons | R22: =Exercice!R22 -> 0 | T22: Frais de déplacements autres | U22: 2174.6 | W22: Dons | X22: =Exercice!X22 -> 0 | Z22: Assurance_locaux | AA22: 1711 | AC22: Don | AD22: 5861.92 | AF22: Assurance_locaux | AG22: 1056 | AI22: Don | AJ22: 5100 | AL22: Assurance_locaux | AM22: =Exercice!AM22 -> 1096 | AO22: Don | AP22: =Exercice!AP22 -> 258.3
B23: Assurance locaux Aéroclub | C23: 347 | E23: Locations tables | F23: 54 | H23: Assurance locaux Aéroclub | I23: =Exercice!I23 -> 358 | K23: Locations tables | L23: =Exercice!L24 -> 0 | N23: Assurance locaux Aéroclub | O23: =Exercice!O22 -> 368 | Q23: Locations tables | R23: =Exercice!R24 -> 74 | T23: Assurance locaux Aéroclub | U23: =Exercice!U22 -> 380 | W23: Locations tables | X23: =Exercice!X24 -> 0 | Z23: Cotisation_CRA20_RSA | AC23: Intérêts_Livret | AD23: 0 | AF23: Cotisation_CRA20_RSA | AI23: Intérêts_Livret | AJ23: 32.6 | AL23: Cotisation_CRA20_RSA | AO23: Intérêts_Livret | AP23: =Exercice!AP23 -> 0
B24: Cotisation CRA 20 et RSA | C24: 260 | E24: Intérêts livret association | F24: 315.47 | H24: Cotisation CRA 20 et RSA | I24: =Exercice!I24 -> 240 | K24: Intérêts livret association | L24: =Exercice!L23 -> 252.8 | N24: Cotisation CRA 20 et RSA | Q24: Intérêts livret association | R24: =Exercice!R23 -> 0 | T24: Cotisation CRA 20 et RSA | W24: Intérêts livret association | X24: =Exercice!X23 -> 70.14 | Z24: Papeterie | AA24: 235.79 | AC24: Location_tables | AD24: 0 | AF24: Papeterie | AG24: 246.22 | AI24: Location_tables | AJ24: 0 | AL24: Papeterie | AM24: =Exercice!AM24 -> 229.98 | AO24: Location_tables | AP24: =Exercice!AP24 -> 30
B25: Orange internet | C25: 543.86 | E25: Divers | F25: 233.5 | H25: Orange internet | I25: =Exercice!I25 -> 550.65 | K25: Divers | L25: =Exercice!L26 -> 2019.19 | N25: Orange internet | O25: =Exercice!O26 -> 524.56 | Q25: Divers | R25: =Exercice!R26 -> 1121.28 | T25: FREE | U25: =Exercice!U26 -> 153.64 | W25: Divers | X25: =Exercice!X26 -> 696.06 | Z25: Location_Avion extérieur | AC25: Remboursement_Avion extérieur | AF25: Location_Avion extérieur | AI25: Remboursement_Avion extérieur | AL25: Location_Avion extérieur | AO25: Remboursement_Avion extérieur
B26: Papeterie | C26: 241.83 | E26: Vols initiation Océanair | F26: 0 | H26: Papeterie | I26: =Exercice!I26 -> 23.7 | K26: Vols initiation Océanair | L26: 0 | N26: Papeterie | O26: =Exercice!O26 -> 524.56 | Q26: Vols initiation Océanair | R26: 0 | T26: Papeterie | U26: =Exercice!U24 -> 148.21 | W26: Vols initiation Océanair | X26: 0 | Z26: Free | AA26: 305.25 | AC26: Divers | AD26: 1473.38 | AF26: Free | AG26: 305.19 | AI26: Divers | AJ26: 1003.48 | AL26: Free | AM26: =Exercice!AM26 -> 299.88 | AO26: Divers | AP26: =Exercice!AP26 -> 974.77
B27: Divers | C27: 1701.11 | E27: Baptême en ULM | H27: Divers | I27: =Exercice!I27 -> 3966.45 | K27: Baptême en ULM | N27: Divers | O27: =Exercice!O27 -> 1354.4 | Q27: Baptême en ULM | T27: Divers | U27: =Exercice!U27 -> 2236 | W27: Baptême en ULM | Z27: Divers | AA27: 2346.89 | AC27: ULM_simple | AF27: Divers | AG27: 830.34 | AI27: ULM_simple | AL27: Divers | AM27: =Exercice!AM27 -> 787.32 | AO27: ULM_simple
B28: Remboursements prêt ULM | E28: Vols ULM en simple | H28: Remboursements prêt ULM | K28: Vols ULM en simple | N28: Remboursements prêt ULM | Q28: Vols ULM en simple | T28: Remboursements prêt ULM | W28: Vols ULM en simple | Z28: ULM_Prêt_CIC | AC28: ULM_double | AF28: ULM_Prêt_CIC | AI28: ULM_double | AL28: ULM_Prêt_CIC | AO28: ULM_double
B29: Entretien ULM | E29: Vols ULM en double | H29: Entretien ULM | K29: Vols ULM en double | N29: Entretien ULM | Q29: Vols ULM en double | T29: Entretien ULM | W29: Vols ULM en double | Z29: ULM_entretien | AC29: ULM_initiation | AF29: ULM_entretien | AI29: ULM_initiation | AL29: ULM_entretien | AO29: ULM_initiation
B30: Essence pour ULM | E30: Subventions Océanair | H30: Essence pour ULM | K30: Subventions Océanair | N30: Essence pour ULM | Q30: Subventions Océanair | T30: Essence pour ULM | W30: Subventions Océanair | Z30: Entretien locaux | AA30: 200.25 | AC30: ULM_souscription_trésorerie | AD30: 0 | AF30: Entretien locaux | AG30: 238.48 | AI30: ULM_souscription_trésorerie | AJ30: 0 | AL30: Entretien locaux | AM30: =Exercice!AM30 -> 2977.02 | AO30: ULM_souscription_trésorerie | AP30: 0
B31: Assurance de l'ULM | H31: Assurance de l'ULM | N31: Assurance de l'ULM | T31: Assurance de l'ULM | Z31: ULM_assurance | AC31: Océanair_Subventions | AD31: 0 | AF31: ULM_assurance | AI31: Océanair_Subventions | AJ31: 0 | AL31: ULM_assurance | AO31: Océanair_Subventions | AP31: 0
B32: Baptême en ULM remise | H32: Baptême en ULM remise | N32: Baptême en ULM remise | T32: Baptême en ULM remise | Z32: ULM_baptême_remise | AC32: Prêt CIC | AF32: ULM_baptême_remise | AI32: Prêt CIC | AL32: ULM_baptême_remise | AO32: Prêt CIC
B33: Remboursement souscription ULM | C33: 1900 | H33: Remboursement souscription ULM | I33: =Exercice!I33 -> 1900 | N33: Remboursement souscription ULM | O33: =Exercice!O33 -> 1900 | T33: Remboursement souscription ULM | U33: =Exercice!U33 -> 1800 | Z33: ULM_rembt_souscription | AC33: ULM subvention | AF33: Mezzanine | AG33: 9702.21 | AI33: ULM subvention | AL33: Mezzanine | AM33: =Exercice!AM33 -> 1976.67 | AO33: ULM subvention
B34: Moteur Avion Océanair | H34: Moteur Avion Océanair | N34: Moteur Avion Océanair | T34: Prêt CIC | U34: 833.35 | W34: Prêt CIC | X34: 15000 | Z34: Prêt CIC | AA34: 3069.96 | AD34: 0 | AF34: Prêt CIC | AG34: 3069.96 | AI34: Prêt kit ULM | AJ34: 0 | AL34: Prêt CIC | AM34: =Exercice!AM34 -> 3069.96 | AO34: Prêt kit ULM | AP34: 0
AL35: Repas rassemblement ACAA | AM35: 853.11 | AO35: Repas rassemblement ACAA | AP35: 713
B36: TOTAL Charges | C36: =SUM(C4:C34) -> 7226.96 | E36: TOTAL Produits | F36: =SUM(F4:F34) -> 10121.97 | H36: TOTAL Charges | I36: =SUM(I4:I34) -> 9195.4 | K36: TOTAL Produits | L36: =SUM(L4:L34) -> 8477.97 | N36: TOTAL Charges | O36: =SUM(O4:O34) -> 8783.14 | Q36: TOTAL Produits | R36: =SUM(R4:R34) -> 11924.49 | T36: TOTAL Charges | U36: =SUM(U4:U34) -> 22493.8 | W36: TOTAL Produits | X36: =SUM(X4:X34) -> 29999.58 | Z36: TOTAL Charges | AA36: =SUM(AA4:AA34) -> 40149.43 | AC36: TOTAL Produits | AD36: =SUM(AD4:AD34) -> 23134.56 | AF36: TOTAL Charges | AG36: =SUM(AG4:AG34) -> 53750.74 | AI36: TOTAL Produits | AJ36: =SUM(AJ4:AJ34) -> 24038.25 | AL36: TOTAL Charges | AM36: =SUM(AM4:AM35) -> 42484.29 | AO36: TOTAL Produits | AP36: =SUM(AP4:AP35) -> 25198.96
B38: Exercice 2016 (Produits - Charges) = + 2895,01 € | H38: Exercice 2017 (Produits - Charges) = - 717,43 € | N38: Exercice 2018 (Produits - Charges) = + 3141,35 € | T38: Exercice 2019 (Produits - Charges) = | X38: =+(X36-U36) -> 7505.78 | Z38: Exercice 2020 (Produits - Charges) = | AD38: =AD36-AA36 -> -17014.87 | AF38: Exercice 2021 (Produits - Charges) = | AJ38: =AJ36-AG36 -> -29712.49 | AL38: Exercice 2022 (Produits - Charges) = | AP38: =AP36-AM36 -> -17285.33
E39: Dont 1900 € Remboursement Souscription ULM | K39: Dont 1900 € Remboursement Souscription ULM | Q39: Dont 1900 € Remboursement Souscription ULM | W39: Dont 1800 € Remboursement Souscription ULM
E40: Solde + 4795,01 € | K40: Solde + 1182,57 € | Q40: Solde + 5041,35 € | W40: Solde + 9305,78 €

Sheet Bilan 2022
A1: AERO CLUB DU BOCAGE | D1: 2023-01-11
B3: BILAN
A5: 2013
A6: ACTIF | C6: PASSIF
A8: IMMOS | B8: =60000-2000-6000-6000-6000 -> 40000 | C8: KX PROPRES | D8: =SUM(D9:D10) -> 66531.22
C9: réserves | D9: 67301.27
A10: STOCK (carburant) | B10: =4700*2.05144+0.23 -> 9641.998 | C10: résultat | D10: -770.05
A12: DEBITEURS | B12: 0 | C12: DETTES | D12: =SUM(D13:D14) -> 4429.92
C13: emprunts | D13: 0
C14: fournisseurs | D14: 4429.92
A16: BANQUE | B16: =2601.47+21198.74 -> 23800.21 | C16: CREDITEURS | D16: 2481.07 | G16: =+B16-D16 -> 21319.14
B18: =SUM(B7:B17) -> 73442.208 | D18: =D8+D12+D16 -> 73442.21
A21: 2014
A22: ACTIF | C22: PASSIF
A24: IMMOS | C24: KX PROPRES | D24: =SUM(D25:D26) -> 67659.84
A25: - Océanair | B25: =60000-2000-6000-6000-6000-6000 -> 34000 | C25: réserves | D25: =D8 -> 66531.22
A26: - ULM 2014 | B26: =20000-2000 -> 18000 | C26: résultat | D26: =+'[2]Resultat 2014-2015'!E30 -> 1128.62
A28: STOCK (carburant) | B28: =+[3]STOCK!C7 -> 13033.00064 | G28: =20000-18669.29 -> 1330.71
A30: DEBITEURS | C30: DETTES | D30: =SUM(D31:D32) -> 28169.29
C31: emprunts | D31: =9500+ 18669.29 -> 28169.29 | F31: Nouvel emprunt / ULM + souscription
C32: fournisseurs | D32: 0 | F32: Facture entretien de 2014, non reçue et non payée au 31/12/2014 ? | G32: = non
A34: BANQUE | B34: =3999.04+30243.52 -> 34242.56 | C34: CREDITEURS | D34: 3446.43 | F34: COMPTE PILOTE | G34: =+B34-D34 -> 30796.13
B36: =SUM(B23:B35) -> 99275.56064 | D36: =D24+D30+D34 -> 99275.56 | F36: =+B36-D36 -> 0.000635999997
A40: 2015
A41: ACTIF | C41: PASSIF
A43: IMMOS | C43: KX PROPRES | D43: =SUM(D44:D45) -> 73772.46568
A44: - Océanair | B44: =60000-2000-6000-6000-6000-6000-6000 -> 28000 | C44: réserves | D44: =+D24 -> 67659.84
A45: - ULM 2014 | B45: =20000-2000-4000 -> 14000 | C45: résultat | D45: =+'[2]Resultat 2014-2015'!H30 -> 6112.625683
A47: STOCK (carburant) | B47: =+[2]Stock!C7 -> 15300.74568
A49: DEBITEURS | C49: DETTES | D49: =SUM(D50:D51) -> 23943.78
C50: emprunts | D50: =(9500-1900)+ 16343.78 -> 23943.78 | G50: =18669.29-16343.78 -> 2325.51
C51: fournisseurs | D51: 0 | F51: Facture entretien de 2015, non reçue et non payée au 31/12/2015 ? | G51: = non
A53: BANQUE | B53: =1619.66+41425.97 -> 43045.63 | C53: CREDITEURS | D53: 2630.13 | F53: COMPTE PILOTE
B55: =SUM(B42:B54) -> 100346.3757 | D55: =D43+D49+D53 -> 100346.3757 | G55: =+D55-B55 -> 0
A59: 2016
A60: ACTIF | C60: PASSIF
A62: IMMOS | C62: KX PROPRES | D62: =SUM(D63:D64) -> 75714.40737
A63: - Océanair | B63: =60000-2000-6000-6000-6000-6000-6000-6000 -> 22000 | C63: réserves | D63: =+D43 -> 73772.46568
A64: - ULM 2014 | B64: =20000-2000-4000-4000 -> 10000 | C64: résultat | D64: =+'[4]résultat 2016'!H30 -> 1941.941687
A65: - moteur avion 2016 | B65: =(8300.84+3300)-2320.17 -> 9280.67
A67: STOCK (carburant) | B67: =+[4]Stock!C7 -> 10606.56969
A69: DEBITEURS | C69: DETTES | D69: =SUM(D70:D71) -> 19661.11
C70: emprunts | D70: =(9500-1900-1900)+13961.11 -> 19661.11
C71: fournisseurs | D71: 0
A73: BANQUE | B73: 44963.02 | C73: CREDITEURS | D73: 1474.74
B75: =SUM(B61:B74) -> 96850.25969 | D75: =D62+D69+D73 -> 96850.25737 | E75: =+B75-D75 -> 0.002317199978
A79: 2017
A80: ACTIF | C80: PASSIF
A82: IMMOS | C82: KX PROPRES | D82: =SUM(D83:D84) -> 80119.70937
A83: - Océanair | B83: =60000-2000-6000-6000-6000-6000-6000-6000-6000 -> 16000 | C83: réserves | D83: =+D62 -> 75714.40737
A84: - ULM 2014 | B84: =20000-2000-4000-4000-4000 -> 6000 | C84: résultat | D84: =+'[5]résultat 2017'!H30 -> 4405.302
A85: - moteur avion 2016 | B85: =(8300.84+3300)-2320.17*2 -> 6960.5
A87: STOCK (carburant) | B87: =+[5]Stock!C7 -> 2977.44
A89: DEBITEURS | C89: DETTES | D89: =SUM(D90:D91) -> 15319.92
C90: emprunts | D90: =(9500-1900-1900-1900)+11519.92 -> 15319.92
C91: fournisseurs | D91: 0
A93: BANQUE | B93: =8289.38+57252.8 -> 65542.18 | C93: CREDITEURS | D93: 2040.49
B95: =SUM(B81:B94) -> 97480.12 | D95: =D82+D89+D93 -> 97480.11937 | E95: =+B95-D95 -> 0.0006304000126
A99: 2018
A100: ACTIF | C100: PASSIF
A102: IMMOS | C102: KX PROPRES | D102: =SUM(D103:D104) -> 75134.70257
A103: - Océanair | B103: =60000-2000-6000-6000-6000-6000-6000-6000-6000-6000 -> 10000 | C103: réserves | D103: =+D82 -> 80119.70937
A104: - ULM 2014 | B104: =20000-2000-4000-4000-4000-4000 -> 2000 | C104: résultat | D104: =+'Resultat 2022'!H33 -> -4985.0068
A105: - moteur avion 2016 | B105: =(8300.84+3300)-2320.17*3 -> 4640.33
A106: - moteur ULM 2018 | B106: =14896.8-372.42 -> 14524.38
A107: IMMOS EN-COURS
A108: - Entoilage 2018-2019 | B108: 3000
A110: STOCK (carburant) | B110: =+Stock!C7 -> 15380.8212
A112: DEBITEURS | C112: DETTES | D112: =SUM(D113:D114) -> 10918.73
C113: emprunts | D113: =(9500-1900-1900-1900-1900)+9018.73 -> 10918.73
C114: fournisseurs | D114: 0
A116: BANQUE | B116: =1454.03+39752.82 -> 41206.85 | C116: CREDITEURS | D116: 4698.95
B118: =SUM(B101:B117) -> 90752.3812 | D118: =D102+D112+D116 -> 90752.38257 | E118: =+B118-D118 -> -0.001369599981
A120: 2019
A121: ACTIF | C121: PASSIF
A123: IMMOS | C123: KX PROPRES | D123: =SUM(D124:D125) -> 73646.49885
A124: - Océanair | B124: =Immos!C14 -> 4000 | C124: réserves | D124: =+D103+D104 -> 75134.70257
A125: - ULM 2014 | B125: 0 | C125: résultat | D125: ='Resultat 2022'!I33 -> -1488.203715
A126: - moteur avion 2016 | B126: =Immos!C32 -> 2320.168
A127: - moteur ULM 2018 | B127: =Immos!C39 -> 11545.02
A128: - Entoilage 2018-2019 | B128: =Immos!C49 -> 35333.8245
C130: DETTES | D130: =SUM(D131:D133) -> 20822.16566
A131: STOCK (carburant) | B131: =Stock!D7 -> 6393.522127 | C131: Prêt ULM | D131: ='Prêt ULM'!I73 -> 6456.0731
C132: Prêt Réentoilage | D132: ='Prêt 4204'!I9 -> 14266.09256
A133: DEBITEURS | C133: Souscription ULM | D133: 100
A137: BANQUE | B137: 44483.22 | C137: CREDITEURS | D137: 9607.09
B139: =SUM(B122:B138) -> 104075.7546 | D139: =D123+D130+D137 -> 104075.7545 | E139: =+B139-D139 -> 0.00011327432
A141: 2020
A142: ACTIF | C142: PASSIF
A144: IMMOS | C144: KX PROPRES | D144: =SUM(D145:D146) -> 82482.77246
A145: - Océanair | B145: =Immos!C15 -> 0 | C145: réserves | D145: =+D124+D125 -> 73646.49885
A146: - ULM 2014 | B146: 0 | C146: résultat | D146: ='Resultat 2022'!L33 -> 8836.273605
A147: - moteur avion 2016 | B147: =Immos!C33 -> 0
A148: - moteur ULM 2018 | B148: =Immos!C40 -> 8565.66
A149: - Entoilage 2018-2019 | B149: =Immos!C50 -> 33521.8335
C151: DETTES | D151: =SUM(D152:D154) -> 15244.16593
A152: STOCK (carburant) | B152: =Stock!H7 -> 12873.545 | C152: Prêt ULM | D152: ='Prêt ULM'!I85 -> 3830.450278
C153: Prêt Réentoilage | D153: ='Prêt 4204'!I21 -> 11313.71565
A154: DEBITEURS | C154: Souscription ULM | D154: 100
A158: BANQUE | B158: ='Situation bancaire'!I6+'Situation bancaire'!I7 -> 51440.06 | C158: CREDITEURS | D158: ='Situation bancaire'!I8 -> 8674.16
B160: =SUM(B143:B159) -> 106401.0985 | D160: =D144+D151+D158 -> 106401.0984 | E160: =+B160-D160 -> 0.00011327432
A162: 2021
A163: ACTIF | C163: PASSIF
A165: IMMOS | C165: KX PROPRES | D165: =SUM(D166:D167) -> 90807.54072
A166: - Océanair | B166: =Immos!C15 -> 0 | C166: réserves | D166: =+D145+D146 -> 82482.77246
A167: - ULM 2014 | B167: 0 | C167: résultat | D167: ='Resultat 2022'!O33 -> 8324.768257
A168: - moteur avion 2016 | B168: 0
A169: - moteur ULM 2018 | B169: =Immos!C41 -> 5586.3
A170: - Entoilage 2018-2019 | B170: =Immos!C51 -> 31709.8425
A171: - Kit ULM | B171: =Immos!C63 -> 21000
C172: DETTES | D172: =SUM(D173:D176) -> 30974.66917
A173: STOCK (carburant) | B173: =Stock!I7 -> 15768.5475 | C173: Prêt ULM | D173: ='Prêt ULM'!I97 -> 1140.309401
C174: Prêt Réentoilage | D174: ='Prêt 4204'!I33 -> 8334.359769
A175: DEBITEURS | C175: Prêt Kit ULM | D175: 21400
C176: Souscription ULM | D176: 100
A179: BANQUE | B179: ='Situation bancaire'!J6+'Situation bancaire'!J7 -> 59346.55 | C179: CREDITEURS | D179: ='Situation bancaire'!J8 -> 11629.03
B181: =SUM(B164:B180) -> 133411.24 | D181: =D165+D172+D179 -> 133411.2399 | E181: =+B181-D181 -> 0.0001132742909
A183: 2022
A184: ACTIF | C184: PASSIF
A186: IMMOS | C186: KX PROPRES | D186: =SUM(D187:D188) -> 49905.04356
A187: - Océanair | C187: réserves | D187: =+D166+D167 -> 90807.54072
A188: - ULM 2014 | B188: 0 | C188: résultat | D188: ='Resultat 2022'!R33 -> -40902.49716
A189: - moteur avion 2016 | B189: 0
A190: - moteur ULM 2018 | B190: =Immos!C42 -> 2606.94
A191: - Entoilage 2018-2019 | B191: =Immos!C52 -> 29897.8515
A192: - Kit ULM | B192: =Immos!C64 -> 16800
C193: DETTES | D193: =SUM(D194:D197) -> 23340.84783
A194: STOCK (carburant) | B194: =Stock!J7 -> 15050.28 | C194: Prêt ULM | D194: ='Prêt ULM'!I109 -> 3.950617611e-12
C195: Prêt Réentoilage | D195: ='Prêt 4204'!I45 -> 5327.778384
A196: DEBITEURS | C196: Prêt Kit ULM | D196: ='Prêt Kit ULM'!I18 -> 17913.06944
C197: Souscription ULM | D197: 100
A200: BANQUE | B200: ='Situation bancaire'!K6+'Situation bancaire'!K7 -> 18779.75 | C200: CREDITEURS | D200: ='Situation bancaire'!K8 -> 9888.93
B202: =SUM(B185:B201) -> 83134.8215 | D202: =D186+D193+D200 -> 83134.82139 | E202: =+B202-D202 -> 0.0001132742909

Sheet Resultat 2022
A1: AERO CLUB DU BOCAGE | K1: =+'Bilan 2022'!D1 -> 2023-01-11
F2: COMPTE DE RESULTAT
C4: 2017 | F4: 2018 | I4: 2019 | L4: 2020 | O4: 2021 | R4: 2022
C5: Résultat | D5: reclassement | E5: Résultat | F5: Résultat | G5: reclassement | H5: Résultat | I5: Résultat | J5: reclassement | K5: Résultat | L5: Résultat | M5: reclassement | N5: Résultat | O5: Résultat | P5: reclassement | Q5: Résultat | R5: Résultat | S5: reclassement | T5: Résultat
C6: présenté | E6: reclassé | F6: présenté | H6: reclassé | I6: présenté | K6: reclassé | L6: présenté | N6: reclassé | O6: présenté | Q6: reclassé | R6: présenté | T6: reclassé
A7: PRODUITS | C7: =SUM(C8:C14) -> 62849.85 | D7: =SUM(D8:D14) -> 0 | E7: =+C7+D7 -> 62849.85 | F7: 55296.14 | G7: 0 | H7: 55296.14 | I7: =SUM(I8:I14) -> 63174.94 | J7: =SUM(J8:J14) -> 0 | K7: =+I7+J7 -> 63174.94 | L7: =SUM(L8:L14) -> 70827.18 | M7: =SUM(M8:M14) -> 0 | N7: =+L7+M7 -> 70827.18 | O7: =SUM(O8:O14) -> 106252.8 | P7: =SUM(P8:P14) -> 0 | Q7: =+O7+P7 -> 106252.8 | R7: =SUM(R8:R15) -> 75491.19 | S7: =SUM(S8:S14) -> 0 | T7: =+R7+S7 -> 75491.19
B8: Adhésions, participation | C8: =420+4167.5 -> 4587.5 | E8: =+C8+D8 -> 4587.5 | F8: 4464.2 | H8: 4464.2 | I8: =Exercice!X11+Exercice!X12 -> 4075 | K8: =+I8+J8 -> 4075 | L8: =Exercice!AD11+Exercice!AD12 -> 5080 | N8: =+L8+M8 -> 5080 | O8: =Exercice!AJ11+Exercice!AJ12 -> 5685 | Q8: =+O8+P8 -> 5685 | R8: =Exercice!AP11+Exercice!AP12 -> 5435 | T8: =+R8+S8 -> 5435
B9: Heures de vol | C9: =16093+10374+712+2856+8194.2+159.2 -> 38388.4 | E9: =+C9+D9 -> 38388.4 | F9: 34318.8 | H9: 34318.8 | I9: =Exercice!X13+Exercice!X14+Exercice!X15+Exercice!X27+Exercice!X28+Exercice!X29 -> 43115.9 | K9: =+I9+J9 -> 43115.9 | L9: =Exercice!AD13+Exercice!AD14+Exercice!AD15+Exercice!AD27+Exercice!AD28+Exercice!AD29 -> 41053.1 | N9: =+L9+M9 -> 41053.1 | O9: =Exercice!AJ13+Exercice!AJ14+Exercice!AJ15+Exercice!AJ27+Exercice!AJ28+Exercice!AJ29 -> 54114.2 | Q9: =+O9+P9 -> 54114.2 | R9: =Exercice!AP13+Exercice!AP14+Exercice!AP15+Exercice!AP27+Exercice!AP28+Exercice!AP29 -> 43221.87 | T9: =+R9+S9 -> 43221.87
B10: Ventes carburants | C10: =1018.6+6184.85 -> 7203.45 | E10: 7203.45 | F10: 5252.37 | H10: 5252.37 | I10: =Exercice!X9+Exercice!X10 -> 4192.38 | K10: 4192.38 | L10: =Exercice!AD9+Exercice!AD10 -> 4162.21 | N10: 4162.21 | O10: =Exercice!AJ9+Exercice!AJ10 -> 6349.57 | Q10: 6349.57 | R10: =Exercice!AP9+Exercice!AP10 -> 10247.35 | T10: 10247.35
B11: Souscription | C11: 0 | E11: 0 | F11: 0 | H11: 0 | K11: 0 | N11: 0 | Q11: 0 | T11: 0
B12: Bar | C12: 450.18 | E12: 450.18 | F12: 645 | H12: 645 | I12: =Exercice!X17 -> 862 | K12: 862 | L12: =Exercice!AD17 -> 805.05 | N12: 805.05 | O12: =Exercice!AJ17 -> 1129.6 | Q12: 1129.6 | R12: =Exercice!AP17 -> 1065.5 | T12: 1065.5
B13: Subventions reçus | C13: 300 | E13: 300 | F13: 700 | H13: 700 | I13: =Exercice!X19+Exercice!X33 -> 590.96 | K13: 590.96 | L13: =Exercice!AD18 -> 1000 | N13: 1000 | O13: =Exercice!AJ18+Exercice!AJ33 -> 2000 | Q13: 2000 | R13: =Exercice!AP18+Exercice!AP33 -> 0 | T13: 0
B14: Autres produits exploitation | C14: =322.3+490+1016.9+3800+175.13+2688+156+200+252.8+800+2019.19 -> 11920.32 | D14: 0 | E14: 11920.32 | F14: 9915.77 | G14: 0 | H14: 9915.77 | I14: =SUM(Exercice!X4:X8)+SUM(Exercice!X16)+SUM(Exercice!X20:X26) -> 10338.7 | J14: 0 | K14: 10338.7 | L14: =SUM(Exercice!AD4:AD8)+SUM(Exercice!AD16)+SUM(Exercice!AD20:AD26) -> 18726.82 | M14: 0 | N14: 18726.82 | O14: =SUM(Exercice!AJ4:AJ8)+SUM(Exercice!AJ16)+SUM(Exercice!AJ20:AJ26)+Exercice!AJ32 -> 36974.43 | P14: 0 | Q14: 36974.43 | R14: =SUM(Exercice!AP4:AP8)+SUM(Exercice!AP16)+SUM(Exercice!AP20:AP26)+Exercice!AP32+Exercice!AP37 -> 13220.02 | S14: 0 | T14: 13220.02
B15: Kit ULM | R15: =Exercice!AP36 -> 2301.45
A16: CHARGES | C16: =SUM(C17:C27) -> 58444.55 | D16: =SUM(D17:D27) -> 0 | E16: =+C16+D16 -> 58444.55 | F16: 60281.1468 | G16: 0 | H16: 60281.1468 | I16: =SUM(I17:I27) -> 64663.14371 | J16: =SUM(J17:J27) -> 0 | K16: =+I16+J16 -> 64663.14371 | L16: =SUM(L17:L27) -> 61990.90639 | M16: =SUM(M17:M27) -> 0 | N16: =+L16+M16 -> 61990.90639 | O16: =SUM(O17:O27) -> 97928.03174 | P16: =SUM(P17:P27) -> 0 | Q16: =+O16+P16 -> 97928.03174 | R16: =SUM(R17:R27) -> 116393.6872 | S16: =SUM(S17:S27) -> 0 | T16: =+R16+S16 -> 116393.6872
B17: Carburant | C17: 7470.4 | E17: 7470.4 | F17: 26717.79 | H17: 26717.79 | I17: =Exercice!U9+Exercice!U10 -> 8367.07 | K17: 8367.07 | L17: =Exercice!AA9+Exercice!AA10 -> 25210.83 | N17: 25210.83 | O17: =Exercice!AG9+Exercice!AG10 -> 25904.89 | Q17: 25904.89 | R17: =Exercice!AM9+Exercice!AM10 -> 22935.17 | T17: 22935.17
B18: var stock carburant | C18: 7629.13 | E18: 7629.13 | F18: -12403.3812 | H18: -12403.3812 | I18: =-Stock!D8 -> 8987.299073 | K18: 8987.299073 | L18: =-Stock!H8 -> -6480.022873 | N18: -6480.022873 | O18: =-Stock!I8 -> -2895.0025 | Q18: -2895.0025 | R18: =-Stock!J8 -> 718.2675 | T18: 718.2675
B19: Entretien | C19: =2927.08+557.67 -> 3484.75 | E19: 3484.75 | F19: 13991.59 | H19: 13991.59 | I19: =Exercice!U13+Exercice!U29-19231.79-13500-508.03 -> 5680.69 | K19: 5680.69 | L19: =Exercice!AA13+Exercice!AA29+Exercice!AA30 -> 6624.87 | N19: 6624.87 | O19: =Exercice!AG13+Exercice!AG29+Exercice!AG30 -> 11157.7 | Q19: 11157.7 | R19: =Exercice!AM13+Exercice!AM29+Exercice!AM30 -> 15182.06 | T19: 15182.06
B20: Intérêt emprunt et frais | C20: =28.27+27.86+27.46+27.05+26.64+26.23+25.81+25.4+24.99+24.57+24.16+23.74+0.03 -> 312.21 | E20: 312.21 | F20: 252.21 | H20: 252.21 | I20: ='Prêt ULM'!N73+'Prêt 4204'!N9+Exercice!U34-SUM('Prêt 4204'!M9:N9) -> 290.1811415 | K20: 290.1811415 | L20: =-'Prêt ULM'!M85-'Prêt 4204'!M21+Exercice!AA34+Exercice!AA28 -> 245.3602682 | N20: 245.3602682 | O20: =-'Prêt ULM'!M97-'Prêt 4204'!M33+Exercice!AG34+Exercice!AG28 -> 153.8632435 | Q20: 153.8632435 | R20: =-'Prêt ULM'!M109-'Prêt 4204'!M45+Exercice!AM34+Exercice!AM28+Exercice!AM36-'Prêt Kit ULM'!M18 -> 235.5686573 | T20: 235.5686573
B21: Bar | C21: 344.14 | E21: 344.14 | F21: 353.41 | H21: 353.41 | I21: =Exercice!U17 -> 655.05 | K21: 655.05 | L21: =Exercice!AA17 -> 648.27 | N21: 648.27 | O21: =Exercice!AG17 -> 884.09 | Q21: 884.09 | R21: =Exercice!AM17 -> 1289.65 | T21: 1289.65
B22: Frais deplacement | C22: 1276 | E22: 1276 | F22: 1309 | H22: 1309 | I22: =Exercice!U15 -> 1463 | K22: 1463 | L22: =Exercice!AA15 -> 1725 | N22: 1725 | O22: =Exercice!AG15 -> 2847.6 | Q22: 2847.6 | R22: =Exercice!AM15 -> 1872.6 | T22: 1872.6
B23: Assurances | F23: =Exercice!O14+Exercice!O31 -> 3960.27 | H23: 3960.27 | I23: =Exercice!U14+Exercice!U31 -> 5235.14 | K23: 5235.14 | L23: =Exercice!AA14+Exercice!AA31 -> 4500.77 | N23: 4500.77 | O23: =Exercice!AG14+Exercice!AG31 -> 4819.87 | Q23: 4819.87 | R23: =Exercice!AM14+Exercice!AM31 -> 6732.19 | T23: 6732.19
B24: Locatoin avion extérieur | F24: 710.25 | H24: 710.25 | I24: =Exercice!U25 -> 3971.52 | K24: 3971.52 | L24: =Exercice!AA25 -> 501 | N24: 501 | O24: =Exercice!AG25 -> 0 | Q24: 0 | R24: =Exercice!AM25 -> 170 | T24: 170
B25: Autres | C25: =658.4+358.54+1108.38+3800+175.13+2174.07+83+2555.13+2947.5+840+665.97+23.95+800+701.8+358+240+550.65+23.7+3966.45+2213.14+1333.94+30 -> 25607.75 | E25: 25607.75 | F25: =17367.94-3960.27-710.25 -> 12697.42 | H25: 12697.42 | I25: =SUM(Exercice!U4:U8)+SUM(Exercice!U11:U12)+SUM(Exercice!U18:U27)+Exercice!U32+Exercice!U16-I24 -> 15807.67 | K25: 15807.67 | L25: =SUM(Exercice!AA4:AA8)+SUM(Exercice!AA11:AA12)+SUM(Exercice!AA18:AA27)+Exercice!AA32+Exercice!AA16-L24 -> 17903.31 | N25: 17903.31 | O25: =SUM(Exercice!AG4:AG8)+SUM(Exercice!AG11:AG12)+SUM(Exercice!AG18:AG27)+Exercice!AG32+Exercice!AG16+Exercice!AG33-O24 -> 49863.67 | Q25: 49863.67 | R25: =SUM(Exercice!AM4:AM8)+SUM(Exercice!AM11:AM12)+SUM(Exercice!AM18:AM27)+Exercice!AM16+Exercice!AM33-R24+Exercice!AM37 -> 17466.75 | T25: 17466.75
B26: Kit ULM | K26: 0 | N26: 0 | Q26: 0 | R26: =Exercice!AM35+Exercice!AM32 -> 40800.08 | T26: 40800.08
B27: Amortissement | C27: 12320.17 | E27: 12320.17 | F27: 12692.588 | H27: 12692.588 | I27: =Immos!B71 -> 14205.5235 | K27: 14205.5235 | L27: =Immos!B73 -> 11111.519 | N27: 11111.519 | O27: =Immos!B75 -> 5191.351 | Q27: 5191.351 | R27: =Immos!B77 -> 8991.351 | T27: 8991.351
A29: RESULTAT EXPLOITATION | C29: =+C7-C16 -> 4405.3 | D29: =+D7-D16 -> 0 | E29: =+C29+D29 -> 4405.3 | F29: -4985.0068 | G29: 0 | H29: -4985.0068 | I29: =+I7-I16 -> -1488.203715 | J29: =+J7-J16 -> 0 | K29: =+I29+J29 -> -1488.203715 | L29: =+L7-L16 -> 8836.273605 | M29: =+M7-M16 -> 0 | N29: =+L29+M29 -> 8836.273605 | O29: =+O7-O16 -> 8324.768257 | P29: =+P7-P16 -> 0 | Q29: =+O29+P29 -> 8324.768257 | R29: =+R7-R16 -> -40902.49716 | S29: =+S7-S16 -> 0 | T29: =+R29+S29 -> -40902.49716
A31: Produit (ou perte) exceptionel | E31: =+C31+D31 -> 0 | H31: 0 | K31: =+I31+J31 -> 0 | N31: =+L31+M31 -> 0 | Q31: =+O31+P31 -> 0 | T31: =+R31+S31 -> 0
A33: BENEFICE OU PERTE | C33: =C29+C31 -> 4405.3 | D33: =D29+D31 -> 0 | E33: =+C33+D33 -> 4405.3 | F33: -4985.0068 | G33: 0 | H33: -4985.0068 | I33: =I29+I31 -> -1488.203715 | J33: =J29+J31 -> 0 | K33: =+I33+J33 -> -1488.203715 | L33: =L29+L31 -> 8836.273605 | M33: =M29+M31 -> 0 | N33: =+L33+M33 -> 8836.273605 | O33: =O29+O31 -> 8324.768257 | P33: =P29+P31 -> 0 | Q33: =+O33+P33 -> 8324.768257 | R33: =R29+R31 -> -40902.49716 | S33: =S29+S31 -> 0 | T33: =+R33+S33 -> -40902.49716
E37: vérif si = dépenses | F37: =+F16+1900+'Prêt ULM - OLd'!A15+Immos!B36+Immos!B46-F18-F27 -> 115529.75

Sheet Immos
A1: Immo et amort
A3: Base | B3: 60000 | C3: Oceanair 2010
B4: AMORT | C4: VNC | D4: durée = 10 ans
A5: 2010 | B5: 2000 | C5: =+B3-B5 -> 58000
A6: 2011 | B6: 6000 | C6: =C5-B6 -> 52000
A7: 2012 | B7: 6000 | C7: =C6-B7 -> 46000
A8: 2013 | B8: 6000 | C8: =C7-B8 -> 40000
A9: 2014 | B9: 6000 | C9: =C8-B9 -> 34000
A10: 2015 | B10: 6000 | C10: =C9-B10 -> 28000
A11: 2016 | B11: 6000 | C11: 22000
A12: 2017 | B12: 6000 | C12: 16000
A13: 2018 | B13: 6000 | C13: 10000
A14: 2019 | B14: 6000 | C14: 4000
A15: 2020 | B15: 4000 | C15: 0
A17: Base | B17: 20000 | C17: ULM 2014 | D17: 2014-06-02
B18: AMORT | C18: VNC | D18: durée = 5 ans
A19: 2014 | B19: =$B$17/5*6/12 -> 2000 | C19: =+B17-B19 -> 18000
A20: 2015 | B20: =$B$17/5 -> 4000 | C20: =C19-B20 -> 14000
A21: 2016 | B21: =$B$17/5 -> 4000 | C21: =C20-B21 -> 10000
A22: 2017 | B22: =$B$17/5 -> 4000 | C22: =C21-B22 -> 6000
A23: 2018 | B23: =$B$17/5 -> 4000 | C23: =C22-B23 -> 2000
A24: 2019 | B24: =$B$17/5*6/12 -> 2000 | C24: =C23-B24 -> 0
A27: Base | B27: =8300.84+3300 -> 11600.84 | C27: moteur avion | D27: 2016-01-01
B28: AMORT | C28: VNC | D28: durée = 5 ans
A29: 2016 | B29: =$B$27/5 -> 2320.168 | C29: =+B27-B29 -> 9280.672
A30: 2017 | B30: =$B$27/5 -> 2320.168 | C30: =C29-B30 -> 6960.504
A31: 2018 | B31: =$B$27/5 -> 2320.168 | C31: =C30-B31 -> 4640.336
A32: 2019 | B32: =$B$27/5 -> 2320.168 | C32: =C31-B32 -> 2320.168
A33: 2020 | B33: =$B$27/5 -> 2320.168 | C33: =C32-B33 -> 0
A36: Base | B36: 14896.8 | C36: moteur ULM | D36: 2018-11-14 | E36: ( sans emprunt )
B37: AMORT | C37: VNC | D37: durée = 5 ans
A38: 2018 | B38: =$B$36/5*1.5/12 -> 372.42 | C38: =+B36-B38 -> 14524.38
A39: 2019 | B39: =$B$36/5 -> 2979.36 | C39: =C38-B39 -> 11545.02
A40: 2020 | B40: =$B$36/5 -> 2979.36 | C40: =C39-B40 -> 8565.66
A41: 2021 | B41: 2979.36 | C41: =C40-B41 -> 5586.3
A42: 2022 | B42: 2979.36 | C42: =C41-B42 -> 2606.94
A43: 2023 | B43: =$B$36/5*10.5/12 -> 2606.94 | C43: =C42-B43 -> 0
A46: Base | B46: =19231.79+3000+13500+508.03 -> 36239.82 | C46: Entoilage | D46: mi - 2019 | G46: =11500+2000 -> 13500
B47: AMORT | C47: VNC | D47: durée = 20 ans
A48: 2018 | B48: 0 | C48: =+B46-B48 -> 36239.82
A49: 2019 | B49: =$B$46/20/2 -> 905.9955 | C49: =C48-B49 -> 35333.8245
A50: 2020 | B50: =$B$46/20 -> 1811.991 | C50: =C49-B50 -> 33521.8335
A51: 2021 | B51: =$B$46/20 -> 1811.991 | C51: =C50-B51 -> 31709.8425
A52: 2022 | B52: 1811.991 | C52: =C51-B52 -> 29897.8515
A53: 2023 | B53: 1811.991 | C53: =C52-B53 -> 28085.8605
A54: 2024 | B54: 1811.991 | C54: =C53-B54 -> 26273.8695
A55: 2025 | B55: 1811.991 | C55: 24461.8785
A56: 2026 | B56: 1811.991 | C56: 22649.8875
A57: 2027 | B57: 1811.991 | C57: 20837.8965
A58: 2028 | B58: 1811.991 | C58: 19025.9055
A59: 2029 | B59: 1811.991 | C59: 17213.9145
A61: Base | B61: 21400 | D61: 2021-12-09
B62: AMORT | C62: VNC | D62: durée = 6 ans
A63: 2021 | B63: 400 | C63: =B61-B63 -> 21000
A64: 2022 | B64: =21000/5 -> 4200 | C64: =C63-B64 -> 16800
A65: 2023 | B65: =21000/5 -> 4200 | C65: =C64-B65 -> 12600
A66: 2024 | B66: 4200 | C66: 8400
A67: 2025 | B67: 4200 | C67: 4200
A68: 2026 | B68: 4200 | C68: 0
B71: =+B14+B24+B32+B39+B49 -> 14205.5235 | C71: =+C14+C24+C32+C39+C49 -> 53199.0125
B73: =+B15+B25+B33+B40+B50 -> 11111.519 | C73: =+C15+C25+C33+C40+C50 -> 42087.4935
B75: =+B41+B51+B63 -> 5191.351 | C75: =+C41+C51+C63 -> 58296.1425
B77: =+B42+B52+B64 -> 8991.351 | C77: =+C42+C52+C64 -> 49304.7915

Sheet Stock
A2: Stock carburant | C2: EN EURO | F2: En LITRE
K3: le 26/12/2018
B4: 2017 | C4: 2018 | D4: 2019 | E4: 2015 | F4: 2016 | H4: 2020 | I4: 2021 | J4: 2022 | K4: 7207 | L4: litres | M4: 1.599 | N4: =K4*M4 -> 11523.993
K5: le 23/05/2018
A6: SI | B6: 10606.57 | C6: =B7 -> 2977.44 | D6: =C7 -> 15380.8212 | E6: 7563 | F6: =E7 -> 10257 | H6: =D7 -> 6393.522127 | I6: =H7 -> 12873.545 | J6: =I7 -> 15768.5475 | K6: =9800-K4 -> 2593 | L6: litres | M6: 1.4874 | N6: =K6*M6 -> 3856.8282
A7: SF | B7: =2000*1.48872 -> 2977.44 | C7: =+K4*M4+K6*M6 -> 15380.8212 | D7: =K11*M10 -> 6393.522127 | E7: 10257 | F7: 7426 | H7: =K14*M14 -> 12873.545 | I7: =K17*M17 -> 15768.5475 | J7: =K20*M20 -> 15050.28
A8: VAR | B8: =B7-B6 -> -7629.13 | C8: =C7-C6 -> 12403.3812 | D8: =D7-D6 -> -8987.299073 | E8: =E7-E6 -> 2694 | F8: =F7-F6 -> -2831 | H8: =H7-H6 -> 6480.022873 | I8: =I7-I6 -> 2895.0025 | J8: =J7-J6 -> -718.2675 | K8: =SUM(K4:K7) -> 9800 | N8: =SUM(N4:N7) -> 15380.8212
K9: 2019-09-02
K10: 5003 | L10: litres | M10: =N10/K10 -> 1.574759145 | N10: 7878.52
K11: 4060 | M11: =M10 -> 1.574759145
K13: 2020-12-31
K14: 9500 | L14: litres | M14: 1.35511
K16: 2021-12-31
K17: 8675 | L17: litres | M17: 1.8177
K19: 2022-12-31
K20: 5453 | L20: litres | M20: 2.76

Sheet Prêt ULM - OLd (hidden)
A1: K | B1: INT
A2: 206.12 | B2: 23.33
A3: 206.54 | B3: 22.91
A4: 206.96 | B4: 22.49
A5: 207.38 | B5: 22.07
A6: 207.8 | B6: 21.65
A7: 208.22 | B7: 21.23
A8: 208.64 | B8: 20.81
A9: 209.06 | B9: 20.39
A10: 209.48 | B10: 19.96
A11: 209.91 | B11: 19.54
A12: 210.33 | B12: 19.12
A13: 210.76 | B13: 18.69
A14: -0.01 | B14: 0.02
A15: =SUM(A2:A14) -> 2501.19 | B15: =SUM(B2:B14) -> 252.21 | D15: =+A15+B15 -> 2753.4 | E15: = dépenses 2018
A18: 11519.92
A19: =+A18-A15 -> 9018.73
A20: 6671.97 | B20: =A19-A20 -> 2346.76

Sheet Prêt ULM
C1: Montant | D1: 20000
C2: Durée | D2: 96
C3: Taux | D3: =2.43%/12 -> 0.002025
C4: Décalage en mois | D4: 0
A6: Période | B6: Année | C6: Mois | D6: Capital début Période | E6: Mensualité | F6: Capital Remboursé | G6: Intérêts | H6: Assurance | I6: Capital Fin de Période | K6: Contrôle
A7: 1 | B7: =YEAR(C7) -> 2014 | C7: 2014-06-01 | D7: =D1 -> 20000 | E7: =IF(D1=0,,-PMT(D3,D2,D1)+H7) -> 229.4492247 | F7: =IF(D1=0,,-PPMT($D$3,A7,$D$2,$D$1)) -> 188.9492247 | G7: =E7-F7 -> 40.5 | H7: 0 | I7: =D7-F7 -> 19811.05078 | K7: =IF(D$1=0,,-IPMT($D$3,A7,$D$2,$D$1)) -> 40.5 | L7: =SUMIF($B$7:$G$165,$B$7:$B$165,$G$7:$G$165) -> 275.4377609
A8: =IF(ROUND(I7,0)=0,0,A7+1) -> 2 | B8: 2014 | C8: =EDATE(C7,1) -> 2014-07-01 | D8: =I7 -> 19811.05078 | E8: =IF(A8=0,0,E7) -> 229.4492247 | F8: =IF(A8=0,,-PPMT($D$3,A8,$D$2,$D$1)) -> 189.3318469 | G8: 40.11737782 | H8: =H7 -> 0 | I8: 19621.71893 | K8: 40.11737782 | L8: 275.4377609
A9: 3 | B9: 2014 | C9: 2014-08-01 | D9: 19621.71893 | E9: 229.4492247 | F9: 189.7152439 | G9: 39.73398083 | H9: 0 | I9: 19432.00368 | K9: 39.73398083 | L9: 275.4377609
A10: 4 | B10: 2014 | C10: 2014-09-01 | D10: 19432.00368 | E10: 229.4492247 | F10: 190.0994172 | G10: 39.34980746 | H10: 0 | I10: 19241.90427 | K10: 39.34980746 | L10: 275.4377609
A11: 5 | B11: 2014 | C11: 2014-10-01 | D11: 19241.90427 | E11: 229.4492247 | F11: 190.4843685 | G11: 38.96485614 | H11: 0 | I11: 19051.4199 | K11: 38.96485614 | L11: 275.4377609
A12: 6 | B12: 2014 | C12: 2014-11-01 | D12: 19051.4199 | E12: 229.4492247 | F12: 190.8700994 | G12: 38.5791253 | H12: 0 | I12: 18860.5498 | K12: 38.5791253 | L12: 275.4377609
A13: 7 | B13: 2014 | C13: 2014-12-01 | D13: 18860.5498 | E13: 229.4492247 | F13: 191.2566113 | G13: 38.19261334 | H13: 0 | I13: 18669.29319 | K13: 38.19261334 | L13: 275.4377609
A14: 8 | B14: 2015 | C14: 2015-01-01 | D14: 18669.29319 | E14: 229.4492247 | F14: 191.643906 | G14: 37.80531871 | H14: 0 | I14: 18477.64928 | K14: 37.80531871 | L14: 427.876937
A15: 9 | B15: 2015 | C15: 2015-02-01 | D15: 18477.64928 | E15: 229.4492247 | F15: 192.0319849 | G15: 37.4172398 | H15: 0 | I15: 18285.6173 | K15: 37.4172398 | L15: 427.876937
A16: 10 | B16: 2015 | C16: 2015-03-01 | D16: 18285.6173 | E16: 229.4492247 | F16: 192.4208497 | G16: 37.02837503 | H16: 0 | I16: 18093.19645 | K16: 37.02837503 | L16: 427.876937
A17: 11 | B17: 2015 | C17: 2015-04-01 | D17: 18093.19645 | E17: 229.4492247 | F17: 192.8105019 | G17: 36.63872281 | H17: 0 | I17: 17900.38595 | K17: 36.63872281 | L17: 427.876937
A18: 12 | B18: 2015 | C18: 2015-05-01 | D18: 17900.38595 | E18: 229.4492247 | F18: 193.2009431 | G18: 36.24828154 | H18: 0 | I18: 17707.185 | K18: 36.24828154 | L18: 427.876937
A19: 13 | B19: 2015 | C19: 2015-06-01 | D19: 17707.185 | E19: 229.4492247 | F19: 193.5921751 | G19: 35.85704963 | H19: 0 | I19: 17513.59283 | K19: 35.85704963 | L19: 427.876937
A20: 14 | B20: 2015 | C20: 2015-07-01 | D20: 17513.59283 | E20: 229.4492247 | F20: 193.9841992 | G20: 35.46502548 | H20: 0 | I20: 17319.60863 | K20: 35.46502548 | L20: 427.876937
A21: 15 | B21: 2015 | C21: 2015-08-01 | D21: 17319.60863 | E21: 229.4492247 | F21: 194.3770172 | G21: 35.07220747 | H21: 0 | I21: 17125.23161 | K21: 35.07220747 | L21: 427.876937
A22: 16 | B22: 2015 | C22: 2015-09-01 | D22: 17125.23161 | E22: 229.4492247 | F22: 194.7706307 | G22: 34.67859401 | H22: 0 | I22: 16930.46098 | K22: 34.67859401 | L22: 427.876937
A23: 17 | B23: 2015 | C23: 2015-10-01 | D23: 16930.46098 | E23: 229.4492247 | F23: 195.1650412 | G23: 34.28418349 | H23: 0 | I23: 16735.29594 | K23: 34.28418349 | L23: 427.876937
A24: 18 | B24: 2015 | C24: 2015-11-01 | D24: 16735.29594 | E24: 229.4492247 | F24: 195.5602504 | G24: 33.88897428 | H24: 0 | I24: 16539.73569 | K24: 33.88897428 | L24: 427.876937
A25: 19 | B25: 2015 | C25: 2015-12-01 | D25: 16539.73569 | E25: 229.4492247 | F25: 195.9562599 | G25: 33.49296477 | H25: 0 | I25: 16343.77943 | K25: 33.49296477 | L25: 427.876937
A26: 20 | B26: 2016 | C26: 2016-01-01 | D26: 16343.77943 | E26: 229.4492247 | F26: 196.3530713 | G26: 33.09615334 | H26: 0 | I26: 16147.42636 | K26: 33.09615334 | L26: 370.733305
A27: 21 | B27: 2016 | C27: 2016-02-01 | D27: 16147.42636 | E27: 229.4492247 | F27: 196.7506863 | G27: 32.69853837 | H27: 0 | I27: 15950.67567 | K27: 32.69853837 | L27: 370.733305
A28: 22 | B28: 2016 | C28: 2016-03-01 | D28: 15950.67567 | E28: 229.4492247 | F28: 197.1491064 | G28: 32.30011823 | H28: 0 | I28: 15753.52656 | K28: 32.30011823 | L28: 370.733305
A29: 23 | B29: 2016 | C29: 2016-04-01 | D29: 15753.52656 | E29: 229.4492247 | F29: 197.5483334 | G29: 31.90089129 | H29: 0 | I29: 15555.97823 | K29: 31.90089129 | L29: 370.733305
A30: 24 | B30: 2016 | C30: 2016-05-01 | D30: 15555.97823 | E30: 229.4492247 | F30: 197.9483688 | G30: 31.50085592 | H30: 0 | I30: 15358.02986 | K30: 31.50085592 | L30: 370.733305
A31: 25 | B31: 2016 | C31: 2016-06-01 | D31: 15358.02986 | E31: 229.4492247 | F31: 198.3492142 | G31: 31.10001047 | H31: 0 | I31: 15159.68065 | K31: 31.10001047 | L31: 370.733305
A32: 26 | B32: 2016 | C32: 2016-07-01 | D32: 15159.68065 | E32: 229.4492247 | F32: 198.7508714 | G32: 30.69835331 | H32: 0 | I32: 14960.92978 | K32: 30.69835331 | L32: 370.733305
A33: 27 | B33: 2016 | C33: 2016-08-01 | D33: 14960.92978 | E33: 229.4492247 | F33: 199.1533419 | G33: 30.2958828 | H33: 0 | I33: 14761.77644 | K33: 30.2958828 | L33: 370.733305
A34: 28 | B34: 2016 | C34: 2016-09-01 | D34: 14761.77644 | E34: 229.4492247 | F34: 199.5566274 | G34: 29.89259728 | H34: 0 | I34: 14562.21981 | K34: 29.89259728 | L34: 370.733305
A35: 29 | B35: 2016 | C35: 2016-10-01 | D35: 14562.21981 | E35: 229.4492247 | F35: 199.9607296 | G35: 29.48849511 | H35: 0 | I35: 14362.25908 | K35: 29.48849511 | L35: 370.733305
A36: 30 | B36: 2016 | C36: 2016-11-01 | D36: 14362.25908 | E36: 229.4492247 | F36: 200.36565 | G36: 29.08357463 | H36: 0 | I36: 14161.89343 | K36: 29.08357463 | L36: 370.733305
A37: 31 | B37: 2016 | C37: 2016-12-01 | D37: 14161.89343 | E37: 229.4492247 | F37: 200.7713905 | G37: 28.67783419 | H37: 0 | I37: 13961.12204 | K37: 28.67783419 | L37: 370.733305
A38: 32 | B38: 2017 | C38: 2017-01-01 | D38: 13961.12204 | E38: 229.4492247 | F38: 201.1779526 | G38: 28.27127213 | H38: 0 | I38: 13759.94409 | K38: 28.27127213 | L38: 312.1855124
A39: 33 | B39: =YEAR(C39) -> 2017 | C39: 2017-02-01 | D39: 13759.94409 | E39: 229.4492247 | F39: 201.5853379 | G39: =E39-F39 -> 27.86388677 | H39: 0 | I39: =D39-F39 -> 13558.35875 | K39: =IF(D$1=0,,-IPMT($D$3,A39,$D$2,$D$1)) -> 27.86388677 | L39: =SUMIF($B$7:$G$165,$B$7:$B$165,$G$7:$G$165) -> 312.1855124
A40: =IF(ROUND(I39,0)=0,0,A39+1) -> 34 | B40: 2017 | C40: =EDATE(C39,1) -> 2017-03-01 | D40: =I39 -> 13558.35875 | E40: =IF(A40=0,0,E39) -> 229.4492247 | F40: =IF(A40=0,,-PPMT($D$3,A40,$D$2,$D$1)) -> 201.9935482 | G40: 27.45567646 | H40: =H39 -> 0 | I40: 13356.3652 | K40: 27.45567646 | L40: 312.1855124
A41: 35 | B41: 2017 | C41: 2017-04-01 | D41: 13356.3652 | E41: 229.4492247 | F41: 202.4025852 | G41: 27.04663953 | H41: 0 | I41: 13153.96261 | K41: 27.04663953 | L41: 312.1855124
A42: 36 | B42: 2017 | C42: 2017-05-01 | D42: 13153.96261 | E42: 229.4492247 | F42: 202.8124504 | G42: 26.63677429 | H42: 0 | I42: 12951.15016 | K42: 26.63677429 | L42: 312.1855124
A43: 37 | B43: 2017 | C43: 2017-06-01 | D43: 12951.15016 | E43: 229.4492247 | F43: 203.2231456 | G43: 26.22607908 | H43: 0 | I43: 12747.92702 | K43: 26.22607908 | L43: 312.1855124
A44: 38 | B44: 2017 | C44: 2017-07-01 | D44: 12747.92702 | E44: 229.4492247 | F44: 203.6346725 | G44: 25.81455221 | H44: 0 | I44: 12544.29235 | K44: 25.81455221 | L44: 312.1855124
A45: 39 | B45: 2017 | C45: 2017-08-01 | D45: 12544.29235 | E45: 229.4492247 | F45: 204.0470327 | G45: 25.402192 | H45: 0 | I45: 12340.24531 | K45: 25.402192 | L45: 312.1855124
A46: 40 | B46: 2017 | C46: 2017-09-01 | D46: 12340.24531 | E46: 229.4492247 | F46: 204.4602279 | G46: 24.98899676 | H46: 0 | I46: 12135.78508 | K46: 24.98899676 | L46: 312.1855124
A47: 41 | B47: 2017 | C47: 2017-10-01 | D47: 12135.78508 | E47: 229.4492247 | F47: 204.8742599 | G47: 24.5749648 | H47: 0 | I47: 11930.91082 | K47: 24.5749648 | L47: 312.1855124
A48: 42 | B48: 2017 | C48: 2017-11-01 | D48: 11930.91082 | E48: 229.4492247 | F48: 205.2891303 | G48: 24.16009442 | H48: 0 | I48: 11725.62169 | K48: 24.16009442 | L48: 312.1855124
A49: 43 | B49: 2017 | C49: 2017-12-01 | D49: 11725.62169 | E49: 229.4492247 | F49: 205.7048407 | G49: 23.74438393 | H49: 0 | I49: 11519.91685 | K49: 23.74438393 | L49: 312.1855124
A50: 44 | B50: 2018 | C50: 2018-01-01 | D50: 11519.91685 | E50: 229.4492247 | F50: 206.1213931 | G50: 23.32783163 | H50: 0 | I50: 11313.79546 | K50: 23.32783163 | L50: 252.1990555
A51: 45 | B51: 2018 | C51: 2018-02-01 | D51: 11313.79546 | E51: 229.4492247 | F51: 206.5387889 | G51: 22.91043581 | H51: 0 | I51: 11107.25667 | K51: 22.91043581 | L51: 252.1990555
A52: 46 | B52: 2018 | C52: 2018-03-01 | D52: 11107.25667 | E52: 229.4492247 | F52: 206.9570299 | G52: 22.49219476 | H52: 0 | I52: 10900.29964 | K52: 22.49219476 | L52: 252.1990555
A53: 47 | B53: 2018 | C53: 2018-04-01 | D53: 10900.29964 | E53: 229.4492247 | F53: 207.3761179 | G53: 22.07310678 | H53: 0 | I53: 10692.92352 | K53: 22.07310678 | L53: 252.1990555
A54: 48 | B54: 2018 | C54: 2018-05-01 | D54: 10692.92352 | E54: 229.4492247 | F54: 207.7960545 | G54: 21.65317014 | H54: 0 | I54: 10485.12747 | K54: 21.65317014 | L54: 252.1990555
A55: 49 | B55: 2018 | C55: 2018-06-01 | D55: 10485.12747 | E55: 229.4492247 | F55: 208.2168416 | G55: 21.23238313 | H55: 0 | I55: 10276.91063 | K55: 21.23238313 | L55: 252.1990555
A56: 50 | B56: 2018 | C56: 2018-07-01 | D56: 10276.91063 | E56: 229.4492247 | F56: 208.6384807 | G56: 20.81074402 | H56: 0 | I56: 10068.27215 | K56: 20.81074402 | L56: 252.1990555
A57: 51 | B57: 2018 | C57: 2018-08-01 | D57: 10068.27215 | E57: 229.4492247 | F57: 209.0609736 | G57: 20.3882511 | H57: 0 | I57: 9859.211174 | K57: 20.3882511 | L57: 252.1990555
A58: 52 | B58: 2018 | C58: 2018-09-01 | D58: 9859.211174 | E58: 229.4492247 | F58: 209.4843221 | G58: 19.96490263 | H58: 0 | I58: 9649.726852 | K58: 19.96490263 | L58: 252.1990555
A59: 53 | B59: 2018 | C59: 2018-10-01 | D59: 9649.726852 | E59: 229.4492247 | F59: 209.9085278 | G59: 19.54069687 | H59: 0 | I59: 9439.818324 | K59: 19.54069687 | L59: 252.1990555
A60: 54 | B60: 2018 | C60: 2018-11-01 | D60: 9439.818324 | E60: 229.4492247 | F60: 210.3335926 | G60: 19.11563211 | H60: 0 | I60: 9229.484731 | K60: 19.11563211 | L60: 252.1990555
A61: 55 | B61: 2018 | C61: 2018-12-01 | D61: 9229.484731 | E61: 229.4492247 | F61: 210.7595181 | G61: 18.68970658 | H61: 0 | I61: 9018.725213 | K61: 18.68970658 | L61: 252.1990555
A62: 56 | B62: 2019 | C62: 2019-01-01 | D62: 9018.725213 | E62: 229.4492247 | F62: 211.1863061 | G62: 18.26291856 | H62: 0 | I62: 8807.538907 | K62: 18.26291856 | L62: 190.7385829
A63: 57 | B63: 2019 | C63: 2019-02-01 | D63: 8807.538907 | E63: 229.4492247 | F63: 211.6139584 | G63: 17.83526629 | H63: 0 | I63: 8595.924949 | K63: 17.83526629 | L63: 190.7385829
A64: 58 | B64: 2019 | C64: 2019-03-01 | D64: 8595.924949 | E64: 229.4492247 | F64: 212.0424767 | G64: 17.40674802 | H64: 0 | I64: 8383.882472 | K64: 17.40674802 | L64: 190.7385829
A65: 59 | B65: 2019 | C65: 2019-04-01 | D65: 8383.882472 | E65: 229.4492247 | F65: 212.4718627 | G65: 16.97736201 | H65: 0 | I65: 8171.410609 | K65: 16.97736201 | L65: 190.7385829
A66: 60 | B66: 2019 | C66: 2019-05-01 | D66: 8171.410609 | E66: 229.4492247 | F66: 212.9021182 | G66: 16.54710648 | H66: 0 | I66: 7958.508491 | K66: 16.54710648 | L66: 190.7385829
A67: 61 | B67: 2019 | C67: 2019-06-01 | D67: 7958.508491 | E67: 229.4492247 | F67: 213.333245 | G67: 16.11597969 | H67: 0 | I67: 7745.175246 | K67: 16.11597969 | L67: 190.7385829
A68: 62 | B68: 2019 | C68: 2019-07-01 | D68: 7745.175246 | E68: 229.4492247 | F68: 213.7652448 | G68: 15.68397987 | H68: 0 | I68: 7531.410001 | K68: 15.68397987 | L68: 190.7385829
A69: 63 | B69: 2019 | C69: 2019-08-01 | D69: 7531.410001 | E69: 229.4492247 | F69: 214.1981194 | G69: 15.25110525 | H69: 0 | I69: 7317.211882 | K69: 15.25110525 | L69: 190.7385829
A70: 64 | B70: 2019 | C70: 2019-09-01 | D70: 7317.211882 | E70: 229.4492247 | F70: 214.6318706 | G70: 14.81735406 | H70: 0 | I70: 7102.580011 | K70: 14.81735406 | L70: 190.7385829
A71: 65 | B71: =YEAR(C71) -> 2019 | C71: 2019-10-01 | D71: 7102.580011 | E71: 229.4492247 | F71: 215.0665002 | G71: =E71-F71 -> 14.38272452 | H71: 0 | I71: =D71-F71 -> 6887.513511 | K71: =IF(D$1=0,,-IPMT($D$3,A71,$D$2,$D$1)) -> 14.38272452 | L71: =SUMIF($B$7:$G$165,$B$7:$B$165,$G$7:$G$165) -> 190.7385829
A72: =IF(ROUND(I71,0)=0,0,A71+1) -> 66 | B72: 2019 | C72: =EDATE(C71,1) -> 2019-11-01 | D72: =I71 -> 6887.513511 | E72: =IF(A72=0,0,E71) -> 229.4492247 | F72: =IF(A72=0,,-PPMT($D$3,A72,$D$2,$D$1)) -> 215.5020098 | G72: 13.94721486 | H72: =H71 -> 0 | I72: 6672.011501 | K72: 13.94721486 | L72: 190.7385829
A73: 67 | B73: 2019 | C73: 2019-12-01 | D73: 6672.011501 | E73: 229.4492247 | F73: 215.9384014 | G73: 13.51082329 | H73: 0 | I73: 6456.0731 | K73: 13.51082329 | L73: 190.7385829 | M73: =SUM(F62:F73) -> 2562.652113 | N73: =SUM(G62:G73) -> 190.7385829
A74: 68 | B74: 2020 | C74: 2020-01-01 | D74: 6456.0731 | E74: 229.4492247 | F74: 216.3756767 | G74: 13.07354803 | H74: 0 | I74: 6239.697423 | K74: 13.07354803 | L74: 127.7678743
A75: 69 | B75: 2020 | C75: 2020-02-01 | D75: 6239.697423 | E75: 229.4492247 | F75: 216.8138374 | G75: 12.63538728 | H75: 0 | I75: 6022.883586 | K75: 12.63538728 | L75: 127.7678743
A76: 70 | B76: 2020 | C76: 2020-03-01 | D76: 6022.883586 | E76: 229.4492247 | F76: 217.2528854 | G76: 12.19633926 | H76: 0 | I76: 5805.630701 | K76: 12.19633926 | L76: 127.7678743
A77: 71 | B77: 2020 | C77: 2020-04-01 | D77: 5805.630701 | E77: 229.4492247 | F77: 217.6928225 | G77: 11.75640217 | H77: 0 | I77: 5587.937878 | K77: 11.75640217 | L77: 127.7678743
A78: 72 | B78: 2020 | C78: 2020-05-01 | D78: 5587.937878 | E78: 229.4492247 | F78: 218.1336505 | G78: 11.3155742 | H78: 0 | I78: 5369.804228 | K78: 11.3155742 | L78: 127.7678743
A79: 73 | B79: 2020 | C79: 2020-06-01 | D79: 5369.804228 | E79: 229.4492247 | F79: 218.5753711 | G79: 10.87385356 | H79: 0 | I79: 5151.228856 | K79: 10.87385356 | L79: 127.7678743
A80: 74 | B80: 2020 | C80: 2020-07-01 | D80: 5151.228856 | E80: 229.4492247 | F80: 219.0179862 | G80: 10.43123843 | H80: 0 | I80: 4932.21087 | K80: 10.43123843 | L80: 127.7678743
A81: 75 | B81: 2020 | C81: 2020-08-01 | D81: 4932.21087 | E81: 229.4492247 | F81: 219.4614977 | G81: 9.987727012 | H81: 0 | I81: 4712.749373 | K81: 9.987727012 | L81: 127.7678743
A82: 76 | B82: 2020 | C82: 2020-09-01 | D82: 4712.749373 | E82: 229.4492247 | F82: 219.9059072 | G82: 9.543317479 | H82: 0 | I82: 4492.843465 | K82: 9.543317479 | L82: 127.7678743
A83: 77 | B83: 2020 | C83: 2020-10-01 | D83: 4492.843465 | E83: 229.4492247 | F83: 220.3512167 | G83: 9.098008017 | H83: 0 | I83: 4272.492249 | K83: 9.098008017 | L83: 127.7678743
A84: 78 | B84: 2020 | C84: 2020-11-01 | D84: 4272.492249 | E84: 229.4492247 | F84: 220.7974279 | G84: 8.651796804 | H84: 0 | I84: 4051.694821 | K84: 8.651796804 | L84: 127.7678743
A85: 79 | B85: 2020 | C85: 2020-12-01 | D85: 4051.694821 | E85: 229.4492247 | F85: 221.2445427 | G85: 8.204682012 | H85: 0 | I85: 3830.450278 | K85: 8.204682012 | L85: 127.7678743 | M85: =SUM(F74:F85) -> 2625.622822 | N85: =SUM(G74:G85) -> 127.7678743
A86: 80 | B86: 2021 | C86: 2021-01-01 | D86: 3830.450278 | E86: 229.4492247 | F86: 221.6925629 | G86: 7.756661813 | H86: 0 | I86: 3608.757715 | K86: 7.756661813 | L86: 63.24981936
A87: 81 | B87: 2021 | C87: 2021-02-01 | D87: 3608.757715 | E87: 229.4492247 | F87: 222.1414903 | G87: 7.307734373 | H87: 0 | I87: 3386.616225 | K87: 7.307734373 | L87: 63.24981936
A88: 82 | B88: 2021 | C88: 2021-03-01 | D88: 3386.616225 | E88: 229.4492247 | F88: 222.5913268 | G88: 6.857897856 | H88: 0 | I88: 3164.024898 | K88: 6.857897856 | L88: 63.24981936
A89: 83 | B89: 2021 | C89: 2021-04-01 | D89: 3164.024898 | E89: 229.4492247 | F89: 223.0420743 | G89: 6.407150419 | H89: 0 | I89: 2940.982824 | K89: 6.407150419 | L89: 63.24981936
A90: 84 | B90: 2021 | C90: 2021-05-01 | D90: 2940.982824 | E90: 229.4492247 | F90: 223.4937345 | G90: 5.955490218 | H90: 0 | I90: 2717.489089 | K90: 5.955490218 | L90: 63.24981936
A91: 85 | B91: 2021 | C91: 2021-06-01 | D91: 2717.489089 | E91: 229.4492247 | F91: 223.9463093 | G91: 5.502915406 | H91: 0 | I91: 2493.54278 | K91: 5.502915406 | L91: 63.24981936
A92: 86 | B92: 2021 | C92: 2021-07-01 | D92: 2493.54278 | E92: 229.4492247 | F92: 224.3998006 | G92: 5.04942413 | H92: 0 | I92: 2269.14298 | K92: 5.04942413 | L92: 63.24981936
A93: 87 | B93: 2021 | C93: 2021-08-01 | D93: 2269.14298 | E93: 229.4492247 | F93: 224.8542101 | G93: 4.595014534 | H93: 0 | I93: 2044.288769 | K93: 4.595014534 | L93: 63.24981936
A94: 88 | B94: 2021 | C94: 2021-09-01 | D94: 2044.288769 | E94: 229.4492247 | F94: 225.3095399 | G94: 4.139684758 | H94: 0 | I94: 1818.979229 | K94: 4.139684758 | L94: 63.24981936
A95: 89 | B95: 2021 | C95: 2021-10-01 | D95: 1818.979229 | E95: 229.4492247 | F95: 225.7657917 | G95: 3.68343294 | H95: 0 | I95: 1593.213438 | K95: 3.68343294 | L95: 63.24981936
A96: 90 | B96: 2021 | C96: 2021-11-01 | D96: 1593.213438 | E96: 229.4492247 | F96: 226.2229675 | G96: 3.226257211 | H96: 0 | I96: 1366.99047 | K96: 3.226257211 | L96: 63.24981936
A97: 91 | B97: 2021 | C97: 2021-12-01 | D97: 1366.99047 | E97: 229.4492247 | F97: 226.681069 | G97: 2.768155702 | H97: 0 | I97: 1140.309401 | K97: 2.768155702 | L97: 63.24981936 | M97: =SUM(F86:F97) -> 2690.140877 | N97: =SUM(G86:G97) -> 63.24981936
A98: 92 | B98: 2022 | C98: 2022-01-01 | D98: 1140.309401 | E98: 229.4492247 | F98: 227.1400981 | G98: 2.309126538 | H98: 0 | I98: 913.1693032 | K98: 2.309126538 | L98: 6.936722103
A99: 93 | B99: 2022 | C99: 2022-02-01 | D99: 913.1693032 | E99: 229.4492247 | F99: 227.6000568 | G99: 1.849167839 | H99: 0 | I99: 685.5692463 | K99: 1.849167839 | L99: 6.936722103
A100: 94 | B100: 2022 | C100: 2022-03-01 | D100: 685.5692463 | E100: 229.4492247 | F100: 228.060947 | G100: 1.388277724 | H100: 0 | I100: 457.5082994 | K100: 1.388277724 | L100: 6.936722103
A101: 95 | B101: 2022 | C101: 2022-04-01 | D101: 457.5082994 | E101: 229.4492247 | F101: 228.5227704 | G101: 0.9264543062 | H101: 0 | I101: 228.985529 | K101: 0.9264543062 | L101: 6.936722103
A102: 96 | B102: 2022 | C102: 2022-05-01 | D102: 228.985529 | E102: 229.4492247 | F102: 228.985529 | G102: 0.4636956962 | H102: 0 | I102: 3.950617611e-12 | K102: 0.4636956962 | L102: 6.936722103
A103: 0 | B103: =YEAR(C103) -> 2022 | C103: 2022-06-01 | D103: 3.950617611e-12 | E103: 0 | F103: 0 | G103: =E103-F103 -> 0 | H103: 0 | I103: =D103-F103 -> 3.950617611e-12 | K103: =IF(D$1=0,,-IPMT($D$3,A103,$D$2,$D$1)) ->  | L103: =SUMIF($B$7:$G$165,$B$7:$B$165,$G$7:$G$165) -> 6.936722103
A104: =IF(ROUND(I103,0)=0,0,A103+1) -> 0 | B104: 2022 | C104: =EDATE(C103,1) -> 2022-07-01 | D104: =I103 -> 3.950617611e-12 | E104: =IF(A104=0,0,E103) -> 0 | F104: =IF(A104=0,,-PPMT($D$3,A104,$D$2,$D$1)) -> 0 | G104: 0 | H104: =H103 -> 0 | I104: 3.950617611e-12 | L104: 6.936722103
A105: 0 | B105: 2022 | C105: 2022-08-01 | D105: 3.950617611e-12 | E105: 0 | F105: 0 | G105: 0 | H105: 0 | I105: 3.950617611e-12 | L105: 6.936722103
A106: 0 | B106: 2022 | C106: 2022-09-01 | D106: 3.950617611e-12 | E106: 0 | F106: 0 | G106: 0 | H106: 0 | I106: 3.950617611e-12 | L106: 6.936722103
A107: 0 | B107: 2022 | C107: 2022-10-01 | D107: 3.950617611e-12 | E107: 0 | F107: 0 | G107: 0 | H107: 0 | I107: 3.950617611e-12 | L107: 6.936722103
A108: 0 | B108: 2022 | C108: 2022-11-01 | D108: 3.950617611e-12 | E108: 0 | F108: 0 | G108: 0 | H108: 0 | I108: 3.950617611e-12 | L108: 6.936722103
A109: 0 | B109: 2022 | C109: 2022-12-01 | D109: 3.950617611e-12 | E109: 0 | F109: 0 | G109: 0 | H109: 0 | I109: 3.950617611e-12 | L109: 6.936722103 | M109: =SUM(F98:F109) -> 1140.309401 | N109: =SUM(G98:G109) -> 6.936722103
A110: 0 | B110: 2023 | C110: 2023-01-01 | D110: 3.950617611e-12 | E110: 0 | F110: 0 | G110: 0 | H110: 0 | I110: 3.950617611e-12 | L110: 0
A111: 0 | B111: 2023 | C111: 2023-02-01 | D111: 3.950617611e-12 | E111: 0 | F111: 0 | G111: 0 | H111: 0 | I111: 3.950617611e-12 | L111: 0
A112: 0 | B112: 2023 | C112: 2023-03-01 | D112: 3.950617611e-12 | E112: 0 | F112: 0 | G112: 0 | H112: 0 | I112: 3.950617611e-12 | L112: 0
A113: 0 | B113: 2023 | C113: 2023-04-01 | D113: 3.950617611e-12 | E113: 0 | F113: 0 | G113: 0 | H113: 0 | I113: 3.950617611e-12 | L113: 0
A114: 0 | B114: 2023 | C114: 2023-05-01 | D114: 3.950617611e-12 | E114: 0 | F114: 0 | G114: 0 | H114: 0 | I114: 3.950617611e-12 | L114: 0
A115: 0 | B115: 2023 | C115: 2023-06-01 | D115: 3.950617611e-12 | E115: 0 | F115: 0 | G115: 0 | H115: 0 | I115: 3.950617611e-12 | L115: 0
A116: 0 | B116: 2023 | C116: 2023-07-01 | D116: 3.950617611e-12 | E116: 0 | F116: 0 | G116: 0 | H116: 0 | I116: 3.950617611e-12 | L116: 0
A117: 0 | B117: 2023 | C117: 2023-08-01 | D117: 3.950617611e-12 | E117: 0 | F117: 0 | G117: 0 | H117: 0 | I117: 3.950617611e-12 | L117: 0
A118: 0 | B118: 2023 | C118: 2023-09-01 | D118: 3.950617611e-12 | E118: 0 | F118: 0 | G118: 0 | H118: 0 | I118: 3.950617611e-12 | L118: 0
A119: 0 | B119: 2023 | C119: 2023-10-01 | D119: 3.950617611e-12 | E119: 0 | F119: 0 | G119: 0 | H119: 0 | I119: 3.950617611e-12 | L119: 0
A120: 0 | B120: 2023 | C120: 2023-11-01 | D120: 3.950617611e-12 | E120: 0 | F120: 0 | G120: 0 | H120: 0 | I120: 3.950617611e-12 | L120: 0
A121: 0 | B121: 2023 | C121: 2023-12-01 | D121: 3.950617611e-12 | E121: 0 | F121: 0 | G121: 0 | H121: 0 | I121: 3.950617611e-12 | L121: 0
A122: 0 | B122: 2024 | C122: 2024-01-01 | D122: 3.950617611e-12 | E122: 0 | F122: 0 | G122: 0 | H122: 0 | I122: 3.950617611e-12 | L122: 0
A123: 0 | B123: 2024 | C123: 2024-02-01 | D123: 3.950617611e-12 | E123: 0 | F123: 0 | G123: 0 | H123: 0 | I123: 3.950617611e-12 | L123: 0
A124: 0 | B124: 2024 | C124: 2024-03-01 | D124: 3.950617611e-12 | E124: 0 | F124: 0 | G124: 0 | H124: 0 | I124: 3.950617611e-12 | L124: 0
A125: 0 | B125: 2024 | C125: 2024-04-01 | D125: 3.950617611e-12 | E125: 0 | F125: 0 | G125: 0 | H125: 0 | I125: 3.950617611e-12 | L125: 0
A126: 0 | B126: 2024 | C126: 2024-05-01 | D126: 3.950617611e-12 | E126: 0 | F126: 0 | G126: 0 | H126: 0 | I126: 3.950617611e-12 | L126: 0
A127: 0 | B127: 2024 | C127: 2024-06-01 | D127: 3.950617611e-12 | E127: 0 | F127: 0 | G127: 0 | H127: 0 | I127: 3.950617611e-12 | L127: 0
A128: 0 | B128: 2024 | C128: 2024-07-01 | D128: 3.950617611e-12 | E128: 0 | F128: 0 | G128: 0 | H128: 0 | I128: 3.950617611e-12 | L128: 0
A129: 0 | B129: 2024 | C129: 2024-08-01 | D129: 3.950617611e-12 | E129: 0 | F129: 0 | G129: 0 | H129: 0 | I129: 3.950617611e-12 | L129: 0
A130: 0 | B130: 2024 | C130: 2024-09-01 | D130: 3.950617611e-12 | E130: 0 | F130: 0 | G130: 0 | H130: 0 | I130: 3.950617611e-12 | L130: 0
A131: 0 | B131: 2024 | C131: 2024-10-01 | D131: 3.950617611e-12 | E131: 0 | F131: 0 | G131: 0 | H131: 0 | I131: 3.950617611e-12 | L131: 0
A132: 0 | B132: 2024 | C132: 2024-11-01 | D132: 3.950617611e-12 | E132: 0 | F132: 0 | G132: 0 | H132: 0 | I132: 3.950617611e-12 | L132: 0
A133: 0 | B133: 2024 | C133: 2024-12-01 | D133: 3.950617611e-12 | E133: 0 | F133: 0 | G133: 0 | H133: 0 | I133: 3.950617611e-12 | L133: 0
A134: 0 | B134: 2025 | C134: 2025-01-01 | D134: 3.950617611e-12 | E134: 0 | F134: 0 | G134: 0 | H134: 0 | I134: 3.950617611e-12 | L134: 0
A135: 0 | B135: =YEAR(C135) -> 2025 | C135: 2025-02-01 | D135: 3.950617611e-12 | E135: 0 | F135: 0 | G135: =E135-F135 -> 0 | H135: 0 | I135: =D135-F135 -> 3.950617611e-12 | K135: =IF(D$1=0,,-IPMT($D$3,A135,$D$2,$D$1)) ->  | L135: =SUMIF($B$7:$G$165,$B$7:$B$165,$G$7:$G$165) -> 0
A136: =IF(ROUND(I135,0)=0,0,A135+1) -> 0 | B136: 2025 | C136: =EDATE(C135,1) -> 2025-03-01 | D136: =I135 -> 3.950617611e-12 | E136: =IF(A136=0,0,E135) -> 0 | F136: =IF(A136=0,,-PPMT($D$3,A136,$D$2,$D$1)) -> 0 | G136: 0 | H136: =H135 -> 0 | I136: 3.950617611e-12 | L136: 0
A137: 0 | B137: 2025 | C137: 2025-04-01 | D137: 3.950617611e-12 | E137: 0 | F137: 0 | G137: 0 | H137: 0 | I137: 3.950617611e-12 | L137: 0
A138: 0 | B138: 2025 | C138: 2025-05-01 | D138: 3.950617611e-12 | E138: 0 | F138: 0 | G138: 0 | H138: 0 | I138: 3.950617611e-12 | L138: 0
A139: 0 | B139: 2025 | C139: 2025-06-01 | D139: 3.950617611e-12 | E139: 0 | F139: 0 | G139: 0 | H139: 0 | I139: 3.950617611e-12 | L139: 0
A140: 0 | B140: 2025 | C140: 2025-07-01 | D140: 3.950617611e-12 | E140: 0 | F140: 0 | G140: 0 | H140: 0 | I140: 3.950617611e-12 | L140: 0
A141: 0 | B141: 2025 | C141: 2025-08-01 | D141: 3.950617611e-12 | E141: 0 | F141: 0 | G141: 0 | H141: 0 | I141: 3.950617611e-12 | L141: 0
A142: 0 | B142: 2025 | C142: 2025-09-01 | D142: 3.950617611e-12 | E142: 0 | F142: 0 | G142: 0 | H142: 0 | I142: 3.950617611e-12 | L142: 0
A143: 0 | B143: 2025 | C143: 2025-10-01 | D143: 3.950617611e-12 | E143: 0 | F143: 0 | G143: 0 | H143: 0 | I143: 3.950617611e-12 | L143: 0
A144: 0 | B144: 2025 | C144: 2025-11-01 | D144: 3.950617611e-12 | E144: 0 | F144: 0 | G144: 0 | H144: 0 | I144: 3.950617611e-12 | L144: 0
A145: 0 | B145: 2025 | C145: 2025-12-01 | D145: 3.950617611e-12 | E145: 0 | F145: 0 | G145: 0 | H145: 0 | I145: 3.950617611e-12 | L145: 0
A146: 0 | B146: 2026 | C146: 2026-01-01 | D146: 3.950617611e-12 | E146: 0 | F146: 0 | G146: 0 | H146: 0 | I146: 3.950617611e-12 | L146: 0
A147: 0 | B147: 2026 | C147: 2026-02-01 | D147: 3.950617611e-12 | E147: 0 | F147: 0 | G147: 0 | H147: 0 | I147: 3.950617611e-12 | L147: 0
A148: 0 | B148: 2026 | C148: 2026-03-01 | D148: 3.950617611e-12 | E148: 0 | F148: 0 | G148: 0 | H148: 0 | I148: 3.950617611e-12 | L148: 0
A149: 0 | B149: 2026 | C149: 2026-04-01 | D149: 3.950617611e-12 | E149: 0 | F149: 0 | G149: 0 | H149: 0 | I149: 3.950617611e-12 | L149: 0
A150: 0 | B150: 2026 | C150: 2026-05-01 | D150: 3.950617611e-12 | E150: 0 | F150: 0 | G150: 0 | H150: 0 | I150: 3.950617611e-12 | L150: 0
A151: 0 | B151: 2026 | C151: 2026-06-01 | D151: 3.950617611e-12 | E151: 0 | F151: 0 | G151: 0 | H151: 0 | I151: 3.950617611e-12 | L151: 0
A152: 0 | B152: 2026 | C152: 2026-07-01 | D152: 3.950617611e-12 | E152: 0 | F152: 0 | G152: 0 | H152: 0 | I152: 3.950617611e-12 | L152: 0
A153: 0 | B153: 2026 | C153: 2026-08-01 | D153: 3.950617611e-12 | E153: 0 | F153: 0 | G153: 0 | H153: 0 | I153: 3.950617611e-12 | L153: 0
A154: 0 | B154: 2026 | C154: 2026-09-01 | D154: 3.950617611e-12 | E154: 0 | F154: 0 | G154: 0 | H154: 0 | I154: 3.950617611e-12 | L154: 0
A155: 0 | B155: 2026 | C155: 2026-10-01 | D155: 3.950617611e-12 | E155: 0 | F155: 0 | G155: 0 | H155: 0 | I155: 3.950617611e-12 | L155: 0
A156: 0 | B156: 2026 | C156: 2026-11-01 | D156: 3.950617611e-12 | E156: 0 | F156: 0 | G156: 0 | H156: 0 | I156: 3.950617611e-12 | L156: 0
A157: 0 | B157: 2026 | C157: 2026-12-01 | D157: 3.950617611e-12 | E157: 0 | F157: 0 | G157: 0 | H157: 0 | I157: 3.950617611e-12 | L157: 0
A158: 0 | B158: 2027 | C158: 2027-01-01 | D158: 3.950617611e-12 | E158: 0 | F158: 0 | G158: 0 | H158: 0 | I158: 3.950617611e-12 | L158: 0
A159: 0 | B159: 2027 | C159: 2027-02-01 | D159: 3.950617611e-12 | E159: 0 | F159: 0 | G159: 0 | H159: 0 | I159: 3.950617611e-12 | L159: 0
A160: 0 | B160: 2027 | C160: 2027-03-01 | D160: 3.950617611e-12 | E160: 0 | F160: 0 | G160: 0 | H160: 0 | I160: 3.950617611e-12 | L160: 0
A161: 0 | B161: 2027 | C161: 2027-04-01 | D161: 3.950617611e-12 | E161: 0 | F161: 0 | G161: 0 | H161: 0 | I161: 3.950617611e-12 | L161: 0
A162: 0 | B162: 2027 | C162: 2027-05-01 | D162: 3.950617611e-12 | E162: 0 | F162: 0 | G162: 0 | H162: 0 | I162: 3.950617611e-12 | L162: 0
A163: 0 | B163: 2027 | C163: 2027-06-01 | D163: 3.950617611e-12 | E163: 0 | F163: 0 | G163: 0 | H163: 0 | I163: 3.950617611e-12 | L163: 0
A164: 0 | B164: 2027 | C164: 2027-07-01 | D164: 3.950617611e-12 | E164: 0 | F164: 0 | G164: 0 | H164: 0 | I164: 3.950617611e-12 | L164: 0
A165: 0 | B165: 2027 | C165: 2027-08-01 | D165: 3.950617611e-12 | E165: 0 | F165: 0 | G165: 0 | H165: 0 | I165: 3.950617611e-12 | L165: 0
A166: 0 | B166: 2027 | C166: 2027-09-01 | D166: 3.950617611e-12 | E166: 0 | F166: 0 | G166: 0 | H166: 0 | I166: 3.950617611e-12 | L166: 0
A167: 0 | B167: =YEAR(C167) -> 2027 | C167: 2027-10-01 | D167: 3.950617611e-12 | E167: 0 | F167: 0 | G167: =E167-F167 -> 0 | H167: 0 | I167: =D167-F167 -> 3.950617611e-12 | K167: =IF(D$1=0,,-IPMT($D$3,A167,$D$2,$D$1)) ->  | L167: =SUMIF($B$7:$G$165,$B$7:$B$165,$G$7:$G$165) -> 0
A168: =IF(ROUND(I167,0)=0,0,A167+1) -> 0 | B168: 2027 | C168: =EDATE(C167,1) -> 2027-11-01 | D168: =I167 -> 3.950617611e-12 | E168: =IF(A168=0,0,E167) -> 0 | F168: =IF(A168=0,,-PPMT($D$3,A168,$D$2,$D$1)) -> 0 | G168: 0 | H168: =H167 -> 0 | I168: 3.950617611e-12 | L168: 0
A169: 0 | B169: 2027 | C169: 2027-12-01 | D169: 3.950617611e-12 | E169: 0 | F169: 0 | G169: 0 | H169: 0 | I169: 3.950617611e-12 | L169: 0
A170: 0 | B170: 2028 | C170: 2028-01-01 | D170: 3.950617611e-12 | E170: 0 | F170: 0 | G170: 0 | H170: 0 | I170: 3.950617611e-12 | L170: 0
A171: 0 | B171: 2028 | C171: 2028-02-01 | D171: 3.950617611e-12 | E171: 0 | F171: 0 | G171: 0 | H171: 0 | I171: 3.950617611e-12 | L171: 0
A172: 0 | B172: 2028 | C172: 2028-03-01 | D172: 3.950617611e-12 | E172: 0 | F172: 0 | G172: 0 | H172: 0 | I172: 3.950617611e-12 | L172: 0
A173: 0 | B173: 2028 | C173: 2028-04-01 | D173: 3.950617611e-12 | E173: 0 | F173: 0 | G173: 0 | H173: 0 | I173: 3.950617611e-12 | L173: 0
A174: 0 | B174: 2028 | C174: 2028-05-01 | D174: 3.950617611e-12 | E174: 0 | F174: 0 | G174: 0 | H174: 0 | I174: 3.950617611e-12 | L174: 0
A175: 0 | B175: 2028 | C175: 2028-06-01 | D175: 3.950617611e-12 | E175: 0 | F175: 0 | G175: 0 | H175: 0 | I175: 3.950617611e-12 | L175: 0
A176: 0 | B176: 2028 | C176: 2028-07-01 | D176: 3.950617611e-12 | E176: 0 | F176: 0 | G176: 0 | H176: 0 | I176: 3.950617611e-12 | L176: 0
A177: 0 | B177: 2028 | C177: 2028-08-01 | D177: 3.950617611e-12 | E177: 0 | F177: 0 | G177: 0 | H177: 0 | I177: 3.950617611e-12 | L177: 0
A178: 0 | B178: 2028 | C178: 2028-09-01 | D178: 3.950617611e-12 | E178: 0 | F178: 0 | G178: 0 | H178: 0 | I178: 3.950617611e-12 | L178: 0
A179: 0 | B179: 2028 | C179: 2028-10-01 | D179: 3.950617611e-12 | E179: 0 | F179: 0 | G179: 0 | H179: 0 | I179: 3.950617611e-12 | L179: 0
A180: 0 | B180: 2028 | C180: 2028-11-01 | D180: 3.950617611e-12 | E180: 0 | F180: 0 | G180: 0 | H180: 0 | I180: 3.950617611e-12 | L180: 0
A181: 0 | B181: 2028 | C181: 2028-12-01 | D181: 3.950617611e-12 | E181: 0 | F181: 0 | G181: 0 | H181: 0 | I181: 3.950617611e-12 | L181: 0
A182: 0 | B182: 2029 | C182: 2029-01-01 | D182: 3.950617611e-12 | E182: 0 | F182: 0 | G182: 0 | H182: 0 | I182: 3.950617611e-12 | L182: 0
A183: 0 | B183: 2029 | C183: 2029-02-01 | D183: 3.950617611e-12 | E183: 0 | F183: 0 | G183: 0 | H183: 0 | I183: 3.950617611e-12 | L183: 0
A184: 0 | B184: 2029 | C184: 2029-03-01 | D184: 3.950617611e-12 | E184: 0 | F184: 0 | G184: 0 | H184: 0 | I184: 3.950617611e-12 | L184: 0
A185: 0 | B185: 2029 | C185: 2029-04-01 | D185: 3.950617611e-12 | E185: 0 | F185: 0 | G185: 0 | H185: 0 | I185: 3.950617611e-12 | L185: 0
A186: 0 | B186: 2029 | C186: 2029-05-01 | D186: 3.950617611e-12 | E186: 0 | F186: 0 | G186: 0 | H186: 0 | I186: 3.950617611e-12 | L186: 0
A187: 0 | B187: 2029 | C187: 2029-06-01 | D187: 3.950617611e-12 | E187: 0 | F187: 0 | G187: 0 | I187: 3.950617611e-12
A188: 0 | B188: 2029 | C188: 2029-07-01 | D188: 3.950617611e-12 | E188: 0 | F188: 0 | G188: 0 | I188: 3.950617611e-12
A189: 0 | B189: 2029 | C189: 2029-08-01 | D189: 3.950617611e-12 | E189: 0 | F189: 0 | G189: 0 | I189: 3.950617611e-12
A190: 0 | B190: 2029 | C190: 2029-09-01 | D190: 3.950617611e-12 | E190: 0 | F190: 0 | G190: 0 | I190: 3.950617611e-12
A191: 0 | B191: 2029 | C191: 2029-10-01 | D191: 3.950617611e-12 | E191: 0 | F191: 0 | G191: 0 | I191: 3.950617611e-12
A192: 0 | B192: 2029 | C192: 2029-11-01 | D192: 3.950617611e-12 | E192: 0 | F192: 0 | G192: 0 | I192: 3.950617611e-12
A193: 0 | B193: 2029 | C193: 2029-12-01 | D193: 3.950617611e-12 | E193: 0 | F193: 0 | G193: 0 | I193: 3.950617611e-12
A194: 0 | B194: 2030 | C194: 2030-01-01 | D194: 3.950617611e-12 | E194: 0 | F194: 0 | G194: 0 | I194: 3.950617611e-12
A195: 0 | B195: 2030 | C195: 2030-02-01 | D195: 3.950617611e-12 | E195: 0 | F195: 0 | G195: 0 | I195: 3.950617611e-12
A196: 0 | B196: 2030 | C196: 2030-03-01 | D196: 3.950617611e-12 | E196: 0 | F196: 0 | G196: 0 | I196: 3.950617611e-12
A197: 0 | B197: 2030 | C197: 2030-04-01 | D197: 3.950617611e-12 | E197: 0 | F197: 0 | G197: 0 | I197: 3.950617611e-12
A198: 0 | B198: 2030 | C198: 2030-05-01 | D198: 3.950617611e-12 | E198: 0 | F198: 0 | G198: 0 | I198: 3.950617611e-12
A199: 0 | B199: =YEAR(C199) -> 2030 | C199: 2030-06-01 | D199: 3.950617611e-12 | E199: 0 | F199: 0 | G199: =E199-F199 -> 0 | I199: 3.950617611e-12
A200: 0 | B200: 2030 | C200: 2030-07-01 | D200: 3.950617611e-12 | E200: 0 | F200: 0 | G200: 0 | I200: 3.950617611e-12
A201: 0 | B201: 2030 | C201: 2030-08-01 | D201: 3.950617611e-12 | E201: 0 | F201: 0 | G201: 0 | I201: 3.950617611e-12

Sheet Prêt 4204
C1: Montant | D1: 15000
C2: Durée | D2: 60
C3: Taux | D3: =0.91%/12 -> 0.0007583333333
C4: Décalage en mois
A6: Période | B6: Année | C6: Mois | D6: Capital début Période | E6: Mensualité | F6: Capital Remboursé | G6: Intérêts | H6: Assurance | I6: Capital Fin de Période | K6: Contrôle
A7: 1 | B7: =YEAR(C7) -> 2019 | C7: 2019-10-01 | D7: =D1 -> 15000 | E7: =IF(D1=0,,-PMT(D3,D2,D1)+H7) -> 255.8253921 | F7: =IF(D1=0,,-PPMT($D$3,A7,$D$2,$D$1)) -> 244.4503921 | G7: =E7-F7 -> 11.375 | H7: 0 | I7: =D7-F7 -> 14755.54961 | K7: =IF(D$1=0,,-IPMT($D$3,A7,$D$2,$D$1)) -> 11.375 | L7: =SUMIF($B$7:$G$165,$B$7:$B$165,$G$7:$G$165) -> 33.56873478
A8: =IF(ROUND(I7,0)=0,0,A7+1) -> 2 | B8: 2019 | C8: =EDATE(C7,1) -> 2019-11-01 | D8: =I7 -> 14755.54961 | E8: =IF(A8=0,0,E7) -> 255.8253921 | F8: =IF(A8=0,,-PPMT($D$3,A8,$D$2,$D$1)) -> 244.6357669 | G8: 11.18962512 | H8: =H7 -> 0 | I8: 14510.91384 | K8: 11.18962512 | L8: 33.56873478
A9: 3 | B9: 2019 | C9: 2019-12-01 | D9: 14510.91384 | E9: 255.8253921 | F9: 244.8212824 | G9: 11.00410966 | H9: 0 | I9: 14266.09256 | K9: 11.00410966 | L9: 33.56873478 | M9: =SUM(F7:F9) -> 733.9074414 | N9: =SUM(G7:G9) -> 33.56873478
A10: 4 | B10: 2020 | C10: 2020-01-01 | D10: 14266.09256 | E10: 255.8253921 | F10: 245.0069385 | G10: 10.81845352 | H10: 0 | I10: 14021.08562 | K10: 10.81845352 | L10: 117.5277949
A11: 5 | B11: 2020 | C11: 2020-02-01 | D11: 14021.08562 | E11: 255.8253921 | F11: 245.1927355 | G11: 10.6326566 | H11: 0 | I11: 13775.89288 | K11: 10.6326566 | L11: 117.5277949
A12: 6 | B12: 2020 | C12: 2020-03-01 | D12: 13775.89288 | E12: 255.8253921 | F12: 245.3786733 | G12: 10.44671877 | H12: 0 | I12: 13530.51421 | K12: 10.44671877 | L12: 117.5277949
A13: 7 | B13: 2020 | C13: 2020-04-01 | D13: 13530.51421 | E13: 255.8253921 | F13: 245.5647521 | G13: 10.26063994 | H13: 0 | I13: 13284.94946 | K13: 10.26063994 | L13: 117.5277949
A14: 8 | B14: 2020 | C14: 2020-05-01 | D14: 13284.94946 | E14: 255.8253921 | F14: 245.7509721 | G14: 10.07442001 | H14: 0 | I14: 13039.19849 | K14: 10.07442001 | L14: 117.5277949
A15: 9 | B15: 2020 | C15: 2020-06-01 | D15: 13039.19849 | E15: 255.8253921 | F15: 245.9373332 | G15: 9.888058853 | H15: 0 | I15: 12793.26115 | K15: 9.888058853 | L15: 117.5277949
A16: 10 | B16: 2020 | C16: 2020-07-01 | D16: 12793.26115 | E16: 255.8253921 | F16: 246.1238357 | G16: 9.701556375 | H16: 0 | I16: 12547.13732 | K16: 9.701556375 | L16: 117.5277949
A17: 11 | B17: 2020 | C17: 2020-08-01 | D17: 12547.13732 | E17: 255.8253921 | F17: 246.3104796 | G17: 9.514912466 | H17: 0 | I17: 12300.82684 | K17: 9.514912466 | L17: 117.5277949
A18: 12 | B18: 2020 | C18: 2020-09-01 | D18: 12300.82684 | E18: 255.8253921 | F18: 246.497265 | G18: 9.328127019 | H18: 0 | I18: 12054.32957 | K18: 9.328127019 | L18: 117.5277949
A19: 13 | B19: 2020 | C19: 2020-10-01 | D19: 12054.32957 | E19: 255.8253921 | F19: 246.6841921 | G19: 9.141199927 | H19: 0 | I19: 11807.64538 | K19: 9.141199927 | L19: 117.5277949
A20: 14 | B20: 2020 | C20: 2020-11-01 | D20: 11807.64538 | E20: 255.8253921 | F20: 246.871261 | G20: 8.954131081 | H20: 0 | I20: 11560.77412 | K20: 8.954131081 | L20: 117.5277949
A21: 15 | B21: 2020 | C21: 2020-12-01 | D21: 11560.77412 | E21: 255.8253921 | F21: 247.0584717 | G21: 8.766920375 | H21: 0 | I21: 11313.71565 | K21: 8.766920375 | L21: 117.5277949 | M21: =SUM(F10:F21) -> 2952.37691 | N21: =SUM(G19:G21) -> 26.86225138
A22: 16 | B22: 2021 | C22: 2021-01-01 | D22: 11313.71565 | E22: 255.8253921 | F22: 247.2458244 | G22: 8.5795677 | H22: 0 | I22: 11066.46982 | K22: 8.5795677 | L22: 90.54882508
A23: 17 | B23: 2021 | C23: 2021-02-01 | D23: 11066.46982 | E23: 255.8253921 | F23: 247.4333191 | G23: 8.39207295 | H23: 0 | I23: 10819.03651 | K23: 8.39207295 | L23: 90.54882508
A24: 18 | B24: 2021 | C24: 2021-03-01 | D24: 10819.03651 | E24: 255.8253921 | F24: 247.6209561 | G24: 8.204436016 | H24: 0 | I24: 10571.41555 | K24: 8.204436016 | L24: 90.54882508
A25: 19 | B25: 2021 | C25: 2021-04-01 | D25: 10571.41555 | E25: 255.8253921 | F25: 247.8087353 | G25: 8.016656791 | H25: 0 | I25: 10323.60681 | K25: 8.016656791 | L25: 90.54882508
A26: 20 | B26: 2021 | C26: 2021-05-01 | D26: 10323.60681 | E26: 255.8253921 | F26: 247.9966569 | G26: 7.828735167 | H26: 0 | I26: 10075.61016 | K26: 7.828735167 | L26: 90.54882508
A27: 21 | B27: 2021 | C27: 2021-06-01 | D27: 10075.61016 | E27: 255.8253921 | F27: 248.184721 | G27: 7.640671036 | H27: 0 | I27: 9827.425436 | K27: 7.640671036 | L27: 90.54882508
A28: 22 | B28: 2021 | C28: 2021-07-01 | D28: 9827.425436 | E28: 255.8253921 | F28: 248.3729278 | G28: 7.452464289 | H28: 0 | I28: 9579.052508 | K28: 7.452464289 | L28: 90.54882508
A29: 23 | B29: 2021 | C29: 2021-08-01 | D29: 9579.052508 | E29: 255.8253921 | F29: 248.5612772 | G29: 7.264114819 | H29: 0 | I29: 9330.491231 | K29: 7.264114819 | L29: 90.54882508
A30: 24 | B30: 2021 | C30: 2021-09-01 | D30: 9330.491231 | E30: 255.8253921 | F30: 248.7497696 | G30: 7.075622517 | H30: 0 | I30: 9081.741461 | K30: 7.075622517 | L30: 90.54882508
A31: 25 | B31: 2021 | C31: 2021-10-01 | D31: 9081.741461 | E31: 255.8253921 | F31: 248.9384048 | G31: 6.886987275 | H31: 0 | I31: 8832.803057 | K31: 6.886987275 | L31: 90.54882508
A32: 26 | B32: 2021 | C32: 2021-11-01 | D32: 8832.803057 | E32: 255.8253921 | F32: 249.1271831 | G32: 6.698208985 | H32: 0 | I32: 8583.675874 | K32: 6.698208985 | L32: 90.54882508
A33: 27 | B33: 2021 | C33: 2021-12-01 | D33: 8583.675874 | E33: 255.8253921 | F33: 249.3161045 | G33: 6.509287537 | H33: 0 | I33: 8334.359769 | K33: 6.509287537 | L33: 90.54882508 | M33: =SUM(F22:F33) -> 2979.35588 | N33: =SUM(G31:G33) -> 20.0944838
A34: 28 | B34: 2022 | C34: 2022-01-01 | D34: 8334.359769 | E34: 255.8253921 | F34: 249.5051692 | G34: 6.320222825 | H34: 0 | I34: 8084.8546 | K34: 6.320222825 | L34: 63.32332004
A35: 29 | B35: 2022 | C35: 2022-02-01 | D35: 8084.8546 | E35: 255.8253921 | F35: 249.6943773 | G35: 6.131014738 | H35: 0 | I35: 7835.160222 | K35: 6.131014738 | L35: 63.32332004
A36: 30 | B36: 2022 | C36: 2022-03-01 | D36: 7835.160222 | E36: 255.8253921 | F36: 249.8837289 | G36: 5.941663169 | H36: 0 | I36: 7585.276494 | K36: 5.941663169 | L36: 63.32332004
A37: 31 | B37: 2022 | C37: 2022-04-01 | D37: 7585.276494 | E37: 255.8253921 | F37: 250.0732241 | G37: 5.752168008 | H37: 0 | I37: 7335.203269 | K37: 5.752168008 | L37: 63.32332004
A38: 32 | B38: 2022 | C38: 2022-05-01 | D38: 7335.203269 | E38: 255.8253921 | F38: 250.2628629 | G38: 5.562529146 | H38: 0 | I38: 7084.940407 | K38: 5.562529146 | L38: 63.32332004
A39: 33 | B39: =YEAR(C39) -> 2022 | C39: 2022-06-01 | D39: 7084.940407 | E39: 255.8253921 | F39: 250.4526456 | G39: =E39-F39 -> 5.372746475 | H39: 0 | I39: =D39-F39 -> 6834.487761 | K39: =IF(D$1=0,,-IPMT($D$3,A39,$D$2,$D$1)) -> 5.372746475 | L39: =SUMIF($B$7:$G$165,$B$7:$B$165,$G$7:$G$165) -> 63.32332004
A40: =IF(ROUND(I39,0)=0,0,A39+1) -> 34 | B40: 2022 | C40: =EDATE(C39,1) -> 2022-07-01 | D40: =I39 -> 6834.487761 | E40: =IF(A40=0,0,E39) -> 255.8253921 | F40: =IF(A40=0,,-PPMT($D$3,A40,$D$2,$D$1)) -> 250.6425722 | G40: 5.182819885 | H40: =H39 -> 0 | I40: 6583.845189 | K40: 5.182819885 | L40: 63.32332004
A41: 35 | B41: 2022 | C41: 2022-08-01 | D41: 6583.845189 | E41: 255.8253921 | F41: 250.8326428 | G41: 4.992749268 | H41: 0 | I41: 6333.012546 | K41: 4.992749268 | L41: 63.32332004
A42: 36 | B42: 2022 | C42: 2022-09-01 | D42: 6333.012546 | E42: 255.8253921 | F42: 251.0228576 | G42: 4.802534514 | H42: 0 | I42: 6081.989688 | K42: 4.802534514 | L42: 63.32332004
A43: 37 | B43: 2022 | C43: 2022-10-01 | D43: 6081.989688 | E43: 255.8253921 | F43: 251.2132166 | G43: 4.612175514 | H43: 0 | I43: 5830.776472 | K43: 4.612175514 | L43: 63.32332004
A44: 38 | B44: 2022 | C44: 2022-11-01 | D44: 5830.776472 | E44: 255.8253921 | F44: 251.4037199 | G44: 4.421672158 | H44: 0 | I44: 5579.372752 | K44: 4.421672158 | L44: 63.32332004
A45: 39 | B45: 2022 | C45: 2022-12-01 | D45: 5579.372752 | E45: 255.8253921 | F45: 251.5943677 | G45: 4.231024337 | H45: 0 | I45: 5327.778384 | K45: 4.231024337 | L45: 63.32332004 | M45: =SUM(F34:F45) -> 3006.581385 | N45: =SUM(G43:G45) -> 13.26487201
A46: 40 | B46: 2023 | C46: 2023-01-01 | D46: 5327.778384 | E46: 255.8253921 | F46: 251.7851601 | G46: 4.040231941 | H46: 0 | I46: 5075.993224 | K46: 4.040231941 | L46: 35.84902694
A47: 41 | B47: 2023 | C47: 2023-02-01 | D47: 5075.993224 | E47: 255.8253921 | F47: 251.9760972 | G47: 3.849294862 | H47: 0 | I47: 4824.017127 | K47: 3.849294862 | L47: 35.84902694
A48: 42 | B48: 2023 | C48: 2023-03-01 | D48: 4824.017127 | E48: 255.8253921 | F48: 252.1671791 | G48: 3.658212988 | H48: 0 | I48: 4571.849948 | K48: 3.658212988 | L48: 35.84902694
A49: 43 | B49: 2023 | C49: 2023-04-01 | D49: 4571.849948 | E49: 255.8253921 | F49: 252.3584059 | G49: 3.46698621 | H49: 0 | I49: 4319.491542 | K49: 3.46698621 | L49: 35.84902694
A50: 44 | B50: 2023 | C50: 2023-05-01 | D50: 4319.491542 | E50: 255.8253921 | F50: 252.5497776 | G50: 3.275614419 | H50: 0 | I50: 4066.941764 | K50: 3.275614419 | L50: 35.84902694
A51: 45 | B51: 2023 | C51: 2023-06-01 | D51: 4066.941764 | E51: 255.8253921 | F51: 252.7412946 | G51: 3.084097505 | H51: 0 | I51: 3814.20047 | K51: 3.084097505 | L51: 35.84902694
A52: 46 | B52: 2023 | C52: 2023-07-01 | D52: 3814.20047 | E52: 255.8253921 | F52: 252.9329567 | G52: 2.892435356 | H52: 0 | I52: 3561.267513 | K52: 2.892435356 | L52: 35.84902694
A53: 47 | B53: 2023 | C53: 2023-08-01 | D53: 3561.267513 | E53: 255.8253921 | F53: 253.1247642 | G53: 2.700627864 | H53: 0 | I53: 3308.142749 | K53: 2.700627864 | L53: 35.84902694
A54: 48 | B54: 2023 | C54: 2023-09-01 | D54: 3308.142749 | E54: 255.8253921 | F54: 253.3167171 | G54: 2.508674918 | H54: 0 | I54: 3054.826032 | K54: 2.508674918 | L54: 35.84902694
A55: 49 | B55: 2023 | C55: 2023-10-01 | D55: 3054.826032 | E55: 255.8253921 | F55: 253.5088157 | G55: 2.316576407 | H55: 0 | I55: 2801.317216 | K55: 2.316576407 | L55: 35.84902694
A56: 50 | B56: 2023 | C56: 2023-11-01 | D56: 2801.317216 | E56: 255.8253921 | F56: 253.7010598 | G56: 2.124332222 | H56: 0 | I56: 2547.616156 | K56: 2.124332222 | L56: 35.84902694
A57: 51 | B57: 2023 | C57: 2023-12-01 | D57: 2547.616156 | E57: 255.8253921 | F57: 253.8934498 | G57: 1.931942252 | H57: 0 | I57: 2293.722706 | K57: 1.931942252 | L57: 35.84902694
A58: 52 | B58: 2024 | C58: 2024-01-01 | D58: 2293.722706 | E58: 255.8253921 | F58: 254.0859857 | G58: 1.739406386 | H58: 0 | I58: 2039.636721 | K58: 1.739406386 | L58: 8.705822254
A59: 53 | B59: 2024 | C59: 2024-02-01 | D59: 2039.636721 | E59: 255.8253921 | F59: 254.2786676 | G59: 1.546724513 | H59: 0 | I59: 1785.358053 | K59: 1.546724513 | L59: 8.705822254
A60: 54 | B60: 2024 | C60: 2024-03-01 | D60: 1785.358053 | E60: 255.8253921 | F60: 254.4714955 | G60: 1.353896524 | H60: 0 | I60: 1530.886558 | K60: 1.353896524 | L60: 8.705822254
A61: 55 | B61: 2024 | C61: 2024-04-01 | D61: 1530.886558 | E61: 255.8253921 | F61: 254.6644698 | G61: 1.160922306 | H61: 0 | I61: 1276.222088 | K61: 1.160922306 | L61: 8.705822254
A62: 56 | B62: 2024 | C62: 2024-05-01 | D62: 1276.222088 | E62: 255.8253921 | F62: 254.8575903 | G62: 0.9678017499 | H62: 0 | I62: 1021.364497 | K62: 0.9678017499 | L62: 8.705822254
A63: 57 | B63: 2024 | C63: 2024-06-01 | D63: 1021.364497 | E63: 255.8253921 | F63: 255.0508573 | G63: 0.7745347439 | H63: 0 | I63: 766.3136402 | K63: 0.7745347439 | L63: 8.705822254
A64: 58 | B64: 2024 | C64: 2024-07-01 | D64: 766.3136402 | E64: 255.8253921 | F64: 255.2442709 | G64: 0.5811211771 | H64: 0 | I64: 511.0693693 | K64: 0.5811211771 | L64: 8.705822254
A65: 59 | B65: 2024 | C65: 2024-08-01 | D65: 511.0693693 | E65: 255.8253921 | F65: 255.4378311 | G65: 0.3875609384 | H65: 0 | I65: 255.6315382 | K65: 0.3875609384 | L65: 8.705822254
A66: 60 | B66: 2024 | C66: 2024-09-01 | D66: 255.6315382 | E66: 255.8253921 | F66: 255.6315382 | G66: 0.1938539164 | H66: 0 | I66: -1.762145985e-12 | K66: 0.1938539164 | L66: 8.705822254
A67: 0 | B67: 2024 | C67: 2024-10-01 | D67: -1.762145985e-12 | E67: 0 | F67: 0 | G67: 0 | H67: 0 | I67: -1.762145985e-12 | L67: 8.705822254
A68: 0 | B68: 2024 | C68: 2024-11-01 | D68: -1.762145985e-12 | E68: 0 | F68: 0 | G68: 0 | H68: 0 | I68: -1.762145985e-12 | L68: 8.705822254
A69: 0 | B69: 2024 | C69: 2024-12-01 | D69: -1.762145985e-12 | E69: 0 | F69: 0 | G69: 0 | H69: 0 | I69: -1.762145985e-12 | L69: 8.705822254
A70: 0 | B70: 2025 | C70: 2025-01-01 | D70: -1.762145985e-12 | E70: 0 | F70: 0 | G70: 0 | H70: 0 | I70: -1.762145985e-12 | L70: 0
A71: 0 | B71: =YEAR(C71) -> 2025 | C71: 2025-02-01 | D71: -1.762145985e-12 | E71: 0 | F71: 0 | G71: =E71-F71 -> 0 | H71: 0 | I71: =D71-F71 -> -1.762145985e-12 | K71: =IF(D$1=0,,-IPMT($D$3,A71,$D$2,$D$1)) ->  | L71: =SUMIF($B$7:$G$165,$B$7:$B$165,$G$7:$G$165) -> 0
A72: =IF(ROUND(I71,0)=0,0,A71+1) -> 0 | B72: 2025 | C72: =EDATE(C71,1) -> 2025-03-01 | D72: =I71 -> -1.762145985e-12 | E72: =IF(A72=0,0,E71) -> 0 | F72: =IF(A72=0,,-PPMT($D$3,A72,$D$2,$D$1)) -> 0 | G72: 0 | H72: =H71 -> 0 | I72: -1.762145985e-12 | L72: 0
A73: 0 | B73: 2025 | C73: 2025-04-01 | D73: -1.762145985e-12 | E73: 0 | F73: 0 | G73: 0 | H73: 0 | I73: -1.762145985e-12 | L73: 0 | M73: =SUM(F62:F73) -> 1276.222088 | N73: =SUM(G62:G73) -> 2.904872526
A74: 0 | B74: 2025 | C74: 2025-05-01 | D74: -1.762145985e-12 | E74: 0 | F74: 0 | G74: 0 | H74: 0 | I74: -1.762145985e-12 | L74: 0
A75: 0 | B75: 2025 | C75: 2025-06-01 | D75: -1.762145985e-12 | E75: 0 | F75: 0 | G75: 0 | H75: 0 | I75: -1.762145985e-12 | L75: 0
A76: 0 | B76: 2025 | C76: 2025-07-01 | D76: -1.762145985e-12 | E76: 0 | F76: 0 | G76: 0 | H76: 0 | I76: -1.762145985e-12 | L76: 0
A77: 0 | B77: 2025 | C77: 2025-08-01 | D77: -1.762145985e-12 | E77: 0 | F77: 0 | G77: 0 | H77: 0 | I77: -1.762145985e-12 | L77: 0
A78: 0 | B78: 2025 | C78: 2025-09-01 | D78: -1.762145985e-12 | E78: 0 | F78: 0 | G78: 0 | H78: 0 | I78: -1.762145985e-12 | L78: 0
A79: 0 | B79: 2025 | C79: 2025-10-01 | D79: -1.762145985e-12 | E79: 0 | F79: 0 | G79: 0 | H79: 0 | I79: -1.762145985e-12 | L79: 0
A80: 0 | B80: 2025 | C80: 2025-11-01 | D80: -1.762145985e-12 | E80: 0 | F80: 0 | G80: 0 | H80: 0 | I80: -1.762145985e-12 | L80: 0
A81: 0 | B81: 2025 | C81: 2025-12-01 | D81: -1.762145985e-12 | E81: 0 | F81: 0 | G81: 0 | H81: 0 | I81: -1.762145985e-12 | L81: 0
A82: 0 | B82: 2026 | C82: 2026-01-01 | D82: -1.762145985e-12 | E82: 0 | F82: 0 | G82: 0 | H82: 0 | I82: -1.762145985e-12 | L82: 0
A83: 0 | B83: 2026 | C83: 2026-02-01 | D83: -1.762145985e-12 | E83: 0 | F83: 0 | G83: 0 | H83: 0 | I83: -1.762145985e-12 | L83: 0
A84: 0 | B84: 2026 | C84: 2026-03-01 | D84: -1.762145985e-12 | E84: 0 | F84: 0 | G84: 0 | H84: 0 | I84: -1.762145985e-12 | L84: 0
A85: 0 | B85: 2026 | C85: 2026-04-01 | D85: -1.762145985e-12 | E85: 0 | F85: 0 | G85: 0 | H85: 0 | I85: -1.762145985e-12 | L85: 0
A86: 0 | B86: 2026 | C86: 2026-05-01 | D86: -1.762145985e-12 | E86: 0 | F86: 0 | G86: 0 | H86: 0 | I86: -1.762145985e-12 | L86: 0
A87: 0 | B87: 2026 | C87: 2026-06-01 | D87: -1.762145985e-12 | E87: 0 | F87: 0 | G87: 0 | H87: 0 | I87: -1.762145985e-12 | L87: 0
A88: 0 | B88: 2026 | C88: 2026-07-01 | D88: -1.762145985e-12 | E88: 0 | F88: 0 | G88: 0 | H88: 0 | I88: -1.762145985e-12 | L88: 0
A89: 0 | B89: 2026 | C89: 2026-08-01 | D89: -1.762145985e-12 | E89: 0 | F89: 0 | G89: 0 | H89: 0 | I89: -1.762145985e-12 | L89: 0
A90: 0 | B90: 2026 | C90: 2026-09-01 | D90: -1.762145985e-12 | E90: 0 | F90: 0 | G90: 0 | H90: 0 | I90: -1.762145985e-12 | L90: 0
A91: 0 | B91: 2026 | C91: 2026-10-01 | D91: -1.762145985e-12 | E91: 0 | F91: 0 | G91: 0 | H91: 0 | I91: -1.762145985e-12 | L91: 0
A92: 0 | B92: 2026 | C92: 2026-11-01 | D92: -1.762145985e-12 | E92: 0 | F92: 0 | G92: 0 | H92: 0 | I92: -1.762145985e-12 | L92: 0
A93: 0 | B93: 2026 | C93: 2026-12-01 | D93: -1.762145985e-12 | E93: 0 | F93: 0 | G93: 0 | H93: 0 | I93: -1.762145985e-12 | L93: 0
A94: 0 | B94: 2027 | C94: 2027-01-01 | D94: -1.762145985e-12 | E94: 0 | F94: 0 | G94: 0 | H94: 0 | I94: -1.762145985e-12 | L94: 0
A95: 0 | B95: 2027 | C95: 2027-02-01 | D95: -1.762145985e-12 | E95: 0 | F95: 0 | G95: 0 | H95: 0 | I95: -1.762145985e-12 | L95: 0
A96: 0 | B96: 2027 | C96: 2027-03-01 | D96: -1.762145985e-12 | E96: 0 | F96: 0 | G96: 0 | H96: 0 | I96: -1.762145985e-12 | L96: 0
A97: 0 | B97: 2027 | C97: 2027-04-01 | D97: -1.762145985e-12 | E97: 0 | F97: 0 | G97: 0 | H97: 0 | I97: -1.762145985e-12 | L97: 0
A98: 0 | B98: 2027 | C98: 2027-05-01 | D98: -1.762145985e-12 | E98: 0 | F98: 0 | G98: 0 | H98: 0 | I98: -1.762145985e-12 | L98: 0
A99: 0 | B99: 2027 | C99: 2027-06-01 | D99: -1.762145985e-12 | E99: 0 | F99: 0 | G99: 0 | H99: 0 | I99: -1.762145985e-12 | L99: 0
A100: 0 | B100: 2027 | C100: 2027-07-01 | D100: -1.762145985e-12 | E100: 0 | F100: 0 | G100: 0 | H100: 0 | I100: -1.762145985e-12 | L100: 0
A101: 0 | B101: 2027 | C101: 2027-08-01 | D101: -1.762145985e-12 | E101: 0 | F101: 0 | G101: 0 | H101: 0 | I101: -1.762145985e-12 | L101: 0
A102: 0 | B102: 2027 | C102: 2027-09-01 | D102: -1.762145985e-12 | E102: 0 | F102: 0 | G102: 0 | H102: 0 | I102: -1.762145985e-12 | L102: 0
A103: 0 | B103: =YEAR(C103) -> 2027 | C103: 2027-10-01 | D103: -1.762145985e-12 | E103: 0 | F103: 0 | G103: =E103-F103 -> 0 | H103: 0 | I103: =D103-F103 -> -1.762145985e-12 | K103: =IF(D$1=0,,-IPMT($D$3,A103,$D$2,$D$1)) ->  | L103: =SUMIF($B$7:$G$165,$B$7:$B$165,$G$7:$G$165) -> 0
A104: =IF(ROUND(I103,0)=0,0,A103+1) -> 0 | B104: 2027 | C104: =EDATE(C103,1) -> 2027-11-01 | D104: =I103 -> -1.762145985e-12 | E104: =IF(A104=0,0,E103) -> 0 | F104: =IF(A104=0,,-PPMT($D$3,A104,$D$2,$D$1)) -> 0 | G104: 0 | H104: =H103 -> 0 | I104: -1.762145985e-12 | L104: 0
A105: 0 | B105: 2027 | C105: 2027-12-01 | D105: -1.762145985e-12 | E105: 0 | F105: 0 | G105: 0 | H105: 0 | I105: -1.762145985e-12 | L105: 0
A106: 0 | B106: 2028 | C106: 2028-01-01 | D106: -1.762145985e-12 | E106: 0 | F106: 0 | G106: 0 | H106: 0 | I106: -1.762145985e-12 | L106: 0
A107: 0 | B107: 2028 | C107: 2028-02-01 | D107: -1.762145985e-12 | E107: 0 | F107: 0 | G107: 0 | H107: 0 | I107: -1.762145985e-12 | L107: 0
A108: 0 | B108: 2028 | C108: 2028-03-01 | D108: -1.762145985e-12 | E108: 0 | F108: 0 | G108: 0 | H108: 0 | I108: -1.762145985e-12 | L108: 0
A109: 0 | B109: 2028 | C109: 2028-04-01 | D109: -1.762145985e-12 | E109: 0 | F109: 0 | G109: 0 | H109: 0 | I109: -1.762145985e-12 | L109: 0
A110: 0 | B110: 2028 | C110: 2028-05-01 | D110: -1.762145985e-12 | E110: 0 | F110: 0 | G110: 0 | H110: 0 | I110: -1.762145985e-12 | L110: 0
A111: 0 | B111: 2028 | C111: 2028-06-01 | D111: -1.762145985e-12 | E111: 0 | F111: 0 | G111: 0 | H111: 0 | I111: -1.762145985e-12 | L111: 0
A112: 0 | B112: 2028 | C112: 2028-07-01 | D112: -1.762145985e-12 | E112: 0 | F112: 0 | G112: 0 | H112: 0 | I112: -1.762145985e-12 | L112: 0
A113: 0 | B113: 2028 | C113: 2028-08-01 | D113: -1.762145985e-12 | E113: 0 | F113: 0 | G113: 0 | H113: 0 | I113: -1.762145985e-12 | L113: 0
A114: 0 | B114: 2028 | C114: 2028-09-01 | D114: -1.762145985e-12 | E114: 0 | F114: 0 | G114: 0 | H114: 0 | I114: -1.762145985e-12 | L114: 0
A115: 0 | B115: 2028 | C115: 2028-10-01 | D115: -1.762145985e-12 | E115: 0 | F115: 0 | G115: 0 | H115: 0 | I115: -1.762145985e-12 | L115: 0
A116: 0 | B116: 2028 | C116: 2028-11-01 | D116: -1.762145985e-12 | E116: 0 | F116: 0 | G116: 0 | H116: 0 | I116: -1.762145985e-12 | L116: 0
A117: 0 | B117: 2028 | C117: 2028-12-01 | D117: -1.762145985e-12 | E117: 0 | F117: 0 | G117: 0 | H117: 0 | I117: -1.762145985e-12 | L117: 0
A118: 0 | B118: 2029 | C118: 2029-01-01 | D118: -1.762145985e-12 | E118: 0 | F118: 0 | G118: 0 | H118: 0 | I118: -1.762145985e-12 | L118: 0
A119: 0 | B119: 2029 | C119: 2029-02-01 | D119: -1.762145985e-12 | E119: 0 | F119: 0 | G119: 0 | H119: 0 | I119: -1.762145985e-12 | L119: 0
A120: 0 | B120: 2029 | C120: 2029-03-01 | D120: -1.762145985e-12 | E120: 0 | F120: 0 | G120: 0 | H120: 0 | I120: -1.762145985e-12 | L120: 0
A121: 0 | B121: 2029 | C121: 2029-04-01 | D121: -1.762145985e-12 | E121: 0 | F121: 0 | G121: 0 | H121: 0 | I121: -1.762145985e-12 | L121: 0
A122: 0 | B122: 2029 | C122: 2029-05-01 | D122: -1.762145985e-12 | E122: 0 | F122: 0 | G122: 0 | H122: 0 | I122: -1.762145985e-12 | L122: 0
A123: 0 | B123: 2029 | C123: 2029-06-01 | D123: -1.762145985e-12 | E123: 0 | F123: 0 | G123: 0 | H123: 0 | I123: -1.762145985e-12 | L123: 0
A124: 0 | B124: 2029 | C124: 2029-07-01 | D124: -1.762145985e-12 | E124: 0 | F124: 0 | G124: 0 | H124: 0 | I124: -1.762145985e-12 | L124: 0
A125: 0 | B125: 2029 | C125: 2029-08-01 | D125: -1.762145985e-12 | E125: 0 | F125: 0 | G125: 0 | H125: 0 | I125: -1.762145985e-12 | L125: 0
A126: 0 | B126: 2029 | C126: 2029-09-01 | D126: -1.762145985e-12 | E126: 0 | F126: 0 | G126: 0 | H126: 0 | I126: -1.762145985e-12 | L126: 0
A127: 0 | B127: 2029 | C127: 2029-10-01 | D127: -1.762145985e-12 | E127: 0 | F127: 0 | G127: 0 | H127: 0 | I127: -1.762145985e-12 | L127: 0
A128: 0 | B128: 2029 | C128: 2029-11-01 | D128: -1.762145985e-12 | E128: 0 | F128: 0 | G128: 0 | H128: 0 | I128: -1.762145985e-12 | L128: 0
A129: 0 | B129: 2029 | C129: 2029-12-01 | D129: -1.762145985e-12 | E129: 0 | F129: 0 | G129: 0 | H129: 0 | I129: -1.762145985e-12 | L129: 0
A130: 0 | B130: 2030 | C130: 2030-01-01 | D130: -1.762145985e-12 | E130: 0 | F130: 0 | G130: 0 | H130: 0 | I130: -1.762145985e-12 | L130: 0
A131: 0 | B131: 2030 | C131: 2030-02-01 | D131: -1.762145985e-12 | E131: 0 | F131: 0 | G131: 0 | H131: 0 | I131: -1.762145985e-12 | L131: 0
A132: 0 | B132: 2030 | C132: 2030-03-01 | D132: -1.762145985e-12 | E132: 0 | F132: 0 | G132: 0 | H132: 0 | I132: -1.762145985e-12 | L132: 0
A133: 0 | B133: 2030 | C133: 2030-04-01 | D133: -1.762145985e-12 | E133: 0 | F133: 0 | G133: 0 | H133: 0 | I133: -1.762145985e-12 | L133: 0
A134: 0 | B134: 2030 | C134: 2030-05-01 | D134: -1.762145985e-12 | E134: 0 | F134: 0 | G134: 0 | H134: 0 | I134: -1.762145985e-12 | L134: 0
A135: 0 | B135: =YEAR(C135) -> 2030 | C135: 2030-06-01 | D135: -1.762145985e-12 | E135: 0 | F135: 0 | G135: =E135-F135 -> 0 | H135: 0 | I135: =D135-F135 -> -1.762145985e-12 | K135: =IF(D$1=0,,-IPMT($D$3,A135,$D$2,$D$1)) ->  | L135: =SUMIF($B$7:$G$165,$B$7:$B$165,$G$7:$G$165) -> 0
A136: =IF(ROUND(I135,0)=0,0,A135+1) -> 0 | B136: 2030 | C136: =EDATE(C135,1) -> 2030-07-01 | D136: =I135 -> -1.762145985e-12 | E136: =IF(A136=0,0,E135) -> 0 | F136: =IF(A136=0,,-PPMT($D$3,A136,$D$2,$D$1)) -> 0 | G136: 0 | H136: =H135 -> 0 | I136: -1.762145985e-12 | L136: 0
A137: 0 | B137: 2030 | C137: 2030-08-01 | D137: -1.762145985e-12 | E137: 0 | F137: 0 | G137: 0 | H137: 0 | I137: -1.762145985e-12 | L137: 0
A138: 0 | B138: 2030 | C138: 2030-09-01 | D138: -1.762145985e-12 | E138: 0 | F138: 0 | G138: 0 | H138: 0 | I138: -1.762145985e-12 | L138: 0
A139: 0 | B139: 2030 | C139: 2030-10-01 | D139: -1.762145985e-12 | E139: 0 | F139: 0 | G139: 0 | H139: 0 | I139: -1.762145985e-12 | L139: 0
A140: 0 | B140: 2030 | C140: 2030-11-01 | D140: -1.762145985e-12 | E140: 0 | F140: 0 | G140: 0 | H140: 0 | I140: -1.762145985e-12 | L140: 0
A141: 0 | B141: 2030 | C141: 2030-12-01 | D141: -1.762145985e-12 | E141: 0 | F141: 0 | G141: 0 | H141: 0 | I141: -1.762145985e-12 | L141: 0
A142: 0 | B142: 2031 | C142: 2031-01-01 | D142: -1.762145985e-12 | E142: 0 | F142: 0 | G142: 0 | H142: 0 | I142: -1.762145985e-12 | L142: 0
A143: 0 | B143: 2031 | C143: 2031-02-01 | D143: -1.762145985e-12 | E143: 0 | F143: 0 | G143: 0 | H143: 0 | I143: -1.762145985e-12 | L143: 0
A144: 0 | B144: 2031 | C144: 2031-03-01 | D144: -1.762145985e-12 | E144: 0 | F144: 0 | G144: 0 | H144: 0 | I144: -1.762145985e-12 | L144: 0
A145: 0 | B145: 2031 | C145: 2031-04-01 | D145: -1.762145985e-12 | E145: 0 | F145: 0 | G145: 0 | H145: 0 | I145: -1.762145985e-12 | L145: 0
A146: 0 | B146: 2031 | C146: 2031-05-01 | D146: -1.762145985e-12 | E146: 0 | F146: 0 | G146: 0 | H146: 0 | I146: -1.762145985e-12 | L146: 0
A147: 0 | B147: 2031 | C147: 2031-06-01 | D147: -1.762145985e-12 | E147: 0 | F147: 0 | G147: 0 | H147: 0 | I147: -1.762145985e-12 | L147: 0
A148: 0 | B148: 2031 | C148: 2031-07-01 | D148: -1.762145985e-12 | E148: 0 | F148: 0 | G148: 0 | H148: 0 | I148: -1.762145985e-12 | L148: 0
A149: 0 | B149: 2031 | C149: 2031-08-01 | D149: -1.762145985e-12 | E149: 0 | F149: 0 | G149: 0 | H149: 0 | I149: -1.762145985e-12 | L149: 0
A150: 0 | B150: 2031 | C150: 2031-09-01 | D150: -1.762145985e-12 | E150: 0 | F150: 0 | G150: 0 | H150: 0 | I150: -1.762145985e-12 | L150: 0
A151: 0 | B151: 2031 | C151: 2031-10-01 | D151: -1.762145985e-12 | E151: 0 | F151: 0 | G151: 0 | H151: 0 | I151: -1.762145985e-12 | L151: 0
A152: 0 | B152: 2031 | C152: 2031-11-01 | D152: -1.762145985e-12 | E152: 0 | F152: 0 | G152: 0 | H152: 0 | I152: -1.762145985e-12 | L152: 0
A153: 0 | B153: 2031 | C153: 2031-12-01 | D153: -1.762145985e-12 | E153: 0 | F153: 0 | G153: 0 | H153: 0 | I153: -1.762145985e-12 | L153: 0
A154: 0 | B154: 2032 | C154: 2032-01-01 | D154: -1.762145985e-12 | E154: 0 | F154: 0 | G154: 0 | H154: 0 | I154: -1.762145985e-12 | L154: 0
A155: 0 | B155: 2032 | C155: 2032-02-01 | D155: -1.762145985e-12 | E155: 0 | F155: 0 | G155: 0 | H155: 0 | I155: -1.762145985e-12 | L155: 0
A156: 0 | B156: 2032 | C156: 2032-03-01 | D156: -1.762145985e-12 | E156: 0 | F156: 0 | G156: 0 | H156: 0 | I156: -1.762145985e-12 | L156: 0
A157: 0 | B157: 2032 | C157: 2032-04-01 | D157: -1.762145985e-12 | E157: 0 | F157: 0 | G157: 0 | H157: 0 | I157: -1.762145985e-12 | L157: 0
A158: 0 | B158: 2032 | C158: 2032-05-01 | D158: -1.762145985e-12 | E158: 0 | F158: 0 | G158: 0 | H158: 0 | I158: -1.762145985e-12 | L158: 0
A159: 0 | B159: 2032 | C159: 2032-06-01 | D159: -1.762145985e-12 | E159: 0 | F159: 0 | G159: 0 | H159: 0 | I159: -1.762145985e-12 | L159: 0
A160: 0 | B160: 2032 | C160: 2032-07-01 | D160: -1.762145985e-12 | E160: 0 | F160: 0 | G160: 0 | H160: 0 | I160: -1.762145985e-12 | L160: 0
A161: 0 | B161: 2032 | C161: 2032-08-01 | D161: -1.762145985e-12 | E161: 0 | F161: 0 | G161: 0 | H161: 0 | I161: -1.762145985e-12 | L161: 0
A162: 0 | B162: 2032 | C162: 2032-09-01 | D162: -1.762145985e-12 | E162: 0 | F162: 0 | G162: 0 | H162: 0 | I162: -1.762145985e-12 | L162: 0
A163: 0 | B163: 2032 | C163: 2032-10-01 | D163: -1.762145985e-12 | E163: 0 | F163: 0 | G163: 0 | H163: 0 | I163: -1.762145985e-12 | L163: 0
A164: 0 | B164: 2032 | C164: 2032-11-01 | D164: -1.762145985e-12 | E164: 0 | F164: 0 | G164: 0 | H164: 0 | I164: -1.762145985e-12 | L164: 0
A165: 0 | B165: 2032 | C165: 2032-12-01 | D165: -1.762145985e-12 | E165: 0 | F165: 0 | G165: 0 | H165: 0 | I165: -1.762145985e-12 | L165: 0
A166: 0 | B166: 2033 | C166: 2033-01-01 | D166: -1.762145985e-12 | E166: 0 | F166: 0 | G166: 0 | H166: 0 | I166: -1.762145985e-12 | L166: 0
A167: 0 | B167: =YEAR(C167) -> 2033 | C167: 2033-02-01 | D167: -1.762145985e-12 | E167: 0 | F167: 0 | G167: =E167-F167 -> 0 | H167: 0 | I167: =D167-F167 -> -1.762145985e-12 | K167: =IF(D$1=0,,-IPMT($D$3,A167,$D$2,$D$1)) ->  | L167: =SUMIF($B$7:$G$165,$B$7:$B$165,$G$7:$G$165) -> 0
A168: =IF(ROUND(I167,0)=0,0,A167+1) -> 0 | B168: 2033 | C168: =EDATE(C167,1) -> 2033-03-01 | D168: =I167 -> -1.762145985e-12 | E168: =IF(A168=0,0,E167) -> 0 | F168: =IF(A168=0,,-PPMT($D$3,A168,$D$2,$D$1)) -> 0 | G168: 0 | H168: =H167 -> 0 | I168: -1.762145985e-12 | L168: 0
A169: 0 | B169: 2033 | C169: 2033-04-01 | D169: -1.762145985e-12 | E169: 0 | F169: 0 | G169: 0 | H169: 0 | I169: -1.762145985e-12 | L169: 0
A170: 0 | B170: 2033 | C170: 2033-05-01 | D170: -1.762145985e-12 | E170: 0 | F170: 0 | G170: 0 | H170: 0 | I170: -1.762145985e-12 | L170: 0
A171: 0 | B171: 2033 | C171: 2033-06-01 | D171: -1.762145985e-12 | E171: 0 | F171: 0 | G171: 0 | H171: 0 | I171: -1.762145985e-12 | L171: 0
A172: 0 | B172: 2033 | C172: 2033-07-01 | D172: -1.762145985e-12 | E172: 0 | F172: 0 | G172: 0 | H172: 0 | I172: -1.762145985e-12 | L172: 0
A173: 0 | B173: 2033 | C173: 2033-08-01 | D173: -1.762145985e-12 | E173: 0 | F173: 0 | G173: 0 | H173: 0 | I173: -1.762145985e-12 | L173: 0
A174: 0 | B174: 2033 | C174: 2033-09-01 | D174: -1.762145985e-12 | E174: 0 | F174: 0 | G174: 0 | H174: 0 | I174: -1.762145985e-12 | L174: 0
A175: 0 | B175: 2033 | C175: 2033-10-01 | D175: -1.762145985e-12 | E175: 0 | F175: 0 | G175: 0 | H175: 0 | I175: -1.762145985e-12 | L175: 0
A176: 0 | B176: 2033 | C176: 2033-11-01 | D176: -1.762145985e-12 | E176: 0 | F176: 0 | G176: 0 | H176: 0 | I176: -1.762145985e-12 | L176: 0
A177: 0 | B177: 2033 | C177: 2033-12-01 | D177: -1.762145985e-12 | E177: 0 | F177: 0 | G177: 0 | H177: 0 | I177: -1.762145985e-12 | L177: 0
A178: 0 | B178: 2034 | C178: 2034-01-01 | D178: -1.762145985e-12 | E178: 0 | F178: 0 | G178: 0 | H178: 0 | I178: -1.762145985e-12 | L178: 0
A179: 0 | B179: 2034 | C179: 2034-02-01 | D179: -1.762145985e-12 | E179: 0 | F179: 0 | G179: 0 | H179: 0 | I179: -1.762145985e-12 | L179: 0
A180: 0 | B180: 2034 | C180: 2034-03-01 | D180: -1.762145985e-12 | E180: 0 | F180: 0 | G180: 0 | H180: 0 | I180: -1.762145985e-12 | L180: 0
A181: 0 | B181: 2034 | C181: 2034-04-01 | D181: -1.762145985e-12 | E181: 0 | F181: 0 | G181: 0 | H181: 0 | I181: -1.762145985e-12 | L181: 0
A182: 0 | B182: 2034 | C182: 2034-05-01 | D182: -1.762145985e-12 | E182: 0 | F182: 0 | G182: 0 | H182: 0 | I182: -1.762145985e-12 | L182: 0
A183: 0 | B183: 2034 | C183: 2034-06-01 | D183: -1.762145985e-12 | E183: 0 | F183: 0 | G183: 0 | H183: 0 | I183: -1.762145985e-12 | L183: 0
A184: 0 | B184: 2034 | C184: 2034-07-01 | D184: -1.762145985e-12 | E184: 0 | F184: 0 | G184: 0 | H184: 0 | I184: -1.762145985e-12 | L184: 0
A185: 0 | B185: 2034 | C185: 2034-08-01 | D185: -1.762145985e-12 | E185: 0 | F185: 0 | G185: 0 | H185: 0 | I185: -1.762145985e-12 | L185: 0
A186: 0 | B186: 2034 | C186: 2034-09-01 | D186: -1.762145985e-12 | E186: 0 | F186: 0 | G186: 0 | H186: 0 | I186: -1.762145985e-12 | L186: 0
A187: 0 | B187: 2034 | C187: 2034-10-01 | D187: -1.762145985e-12 | E187: 0 | F187: 0 | G187: 0 | I187: -1.762145985e-12
A188: 0 | B188: 2034 | C188: 2034-11-01 | D188: -1.762145985e-12 | E188: 0 | F188: 0 | G188: 0 | I188: -1.762145985e-12
A189: 0 | B189: 2034 | C189: 2034-12-01 | D189: -1.762145985e-12 | E189: 0 | F189: 0 | G189: 0 | I189: -1.762145985e-12
A190: 0 | B190: 2035 | C190: 2035-01-01 | D190: -1.762145985e-12 | E190: 0 | F190: 0 | G190: 0 | I190: -1.762145985e-12
A191: 0 | B191: 2035 | C191: 2035-02-01 | D191: -1.762145985e-12 | E191: 0 | F191: 0 | G191: 0 | I191: -1.762145985e-12
A192: 0 | B192: 2035 | C192: 2035-03-01 | D192: -1.762145985e-12 | E192: 0 | F192: 0 | G192: 0 | I192: -1.762145985e-12
A193: 0 | B193: 2035 | C193: 2035-04-01 | D193: -1.762145985e-12 | E193: 0 | F193: 0 | G193: 0 | I193: -1.762145985e-12
A194: 0 | B194: 2035 | C194: 2035-05-01 | D194: -1.762145985e-12 | E194: 0 | F194: 0 | G194: 0 | I194: -1.762145985e-12
A195: 0 | B195: 2035 | C195: 2035-06-01 | D195: -1.762145985e-12 | E195: 0 | F195: 0 | G195: 0 | I195: -1.762145985e-12
A196: 0 | B196: 2035 | C196: 2035-07-01 | D196: -1.762145985e-12 | E196: 0 | F196: 0 | G196: 0 | I196: -1.762145985e-12
A197: 0 | B197: 2035 | C197: 2035-08-01 | D197: -1.762145985e-12 | E197: 0 | F197: 0 | G197: 0 | I197: -1.762145985e-12
A198: 0 | B198: 2035 | C198: 2035-09-01 | D198: -1.762145985e-12 | E198: 0 | F198: 0 | G198: 0 | I198: -1.762145985e-12
A199: 0 | B199: =YEAR(C199) -> 2035 | C199: 2035-10-01 | D199: -1.762145985e-12 | E199: 0 | F199: 0 | G199: =E199-F199 -> 0 | I199: -1.762145985e-12
A200: 0 | B200: 2035 | C200: 2035-11-01 | D200: -1.762145985e-12 | E200: 0 | F200: 0 | G200: 0 | I200: -1.762145985e-12
A201: 0 | B201: 2035 | C201: 2035-12-01 | D201: -1.762145985e-12 | E201: 0 | F201: 0 | G201: 0 | I201: -1.762145985e-12

Sheet Prêt Kit ULM
C1: Montant | D1: 21400
C2: Durée | D2: 72
C3: Taux | D3: =0.9%/12 -> 0.00075
C4: Décalage en mois | D4: 1
A6: Période | B6: Année | C6: Mois | D6: Capital début Période | E6: Mensualité | F6: Capital Remboursé | G6: Intérêts | H6: Assurance | I6: Capital Fin de Période | K6: Contrôle
A7: 1 | B7: =YEAR(C7) -> 2022 | C7: 2022-01-01 | D7: =D1 -> 21400 | E7: =IF(D1=0,,-PMT(D3,D2,D1)+H7) -> 305.4308611 | F7: =IF(A7=0,,-PPMT($D$3,A7,$D$2,$D$1)) -> 289.3808611 | G7: =E7-F7 -> 16.05 | H7: 0 | I7: =D7-F7 -> 21110.61914 | K7: =IF(D$1=0,,-IPMT($D$3,A7,$D$2,$D$1)) -> 16.05 | L7: =SUMIF($B$7:$G$165,$B$7:$B$165,$G$7:$G$165) -> 178.239776
A8: =IF(ROUND(I7,0)=0,0,A7+1) -> 2 | B8: 2022 | C8: =EDATE(C7,1) -> 2022-02-01 | D8: =I7 -> 21110.61914 | E8: =IF(A8=0,0,E7) -> 305.4308611 | F8: =IF(A8=0,,-PPMT($D$3,A8,$D$2,$D$1)) -> 289.5978967 | G8: 15.83296435 | H8: =H7 -> 0 | I8: 20821.02124 | K8: =IF(D$1=0,,-IPMT($D$3,A8,$D$2,$D$1)) -> 15.83296435 | L8: =SUMIF($B$7:$G$162,$B$7:$B$162,$G$7:$G$162) -> 178.239776
A9: 3 | B9: 2022 | C9: 2022-03-01 | D9: 20821.02124 | E9: 305.4308611 | F9: 289.8150951 | G9: 15.61576593 | H9: 0 | I9: 20531.20615 | K9: 15.61576593 | L9: =SUMIF($B$4:$G$162,$B$4:$B$162,$G$4:$G$162) -> 178.239776 | M9: =SUM(F7:F9) -> 868.7938529 | N9: =SUM(G7:G9) -> 47.49873029
A10: 4 | B10: 2022 | C10: 2022-04-01 | D10: 20531.20615 | E10: 305.4308611 | F10: 290.0324564 | G10: 15.39840461 | H10: 0 | I10: 20241.17369 | K10: 15.39840461 | L10: 178.239776
A11: 5 | B11: 2022 | C11: 2022-05-01 | D11: 20241.17369 | E11: 305.4308611 | F11: 290.2499808 | G11: 15.18088027 | H11: 0 | I11: 19950.92371 | K11: 15.18088027 | L11: 178.239776
A12: 6 | B12: 2022 | C12: 2022-06-01 | D12: 19950.92371 | E12: 305.4308611 | F12: 290.4676683 | G12: 14.96319278 | H12: 0 | I12: 19660.45604 | K12: 14.96319278 | L12: 178.239776
A13: 7 | B13: 2022 | C13: 2022-07-01 | D13: 19660.45604 | E13: 305.4308611 | F13: 290.685519 | G13: 14.74534203 | H13: 0 | I13: 19369.77052 | K13: 14.74534203 | L13: 178.239776
A14: 8 | B14: 2022 | C14: 2022-08-01 | D14: 19369.77052 | E14: 305.4308611 | F14: =IF(D8=0,,-PPMT($D$3,A14,$D$2,$D$1)) -> 290.9035332 | G14: 14.52732789 | H14: 0 | I14: 19078.86699 | K14: 14.52732789 | L14: 178.239776
A15: 9 | B15: 2022 | C15: 2022-09-01 | D15: 19078.86699 | E15: 305.4308611 | F15: 291.1217108 | G15: 14.30915024 | H15: 0 | I15: 18787.74528 | K15: 14.30915024 | L15: 178.239776
A16: 10 | B16: 2022 | C16: 2022-10-01 | D16: 18787.74528 | E16: 305.4308611 | F16: 291.3400521 | G16: 14.09080896 | H16: 0 | I16: 18496.40523 | K16: 14.09080896 | L16: 178.239776
A17: 11 | B17: 2022 | C17: 2022-11-01 | D17: 18496.40523 | E17: 305.4308611 | F17: 291.5585571 | G17: 13.87230392 | H17: 0 | I17: 18204.84667 | K17: 13.87230392 | L17: 178.239776
A18: 12 | B18: 2022 | C18: 2022-12-01 | D18: 18204.84667 | E18: 305.4308611 | F18: 291.777226 | G18: 13.653635 | H18: 0 | I18: 17913.06944 | K18: 13.653635 | L18: 178.239776 | M18: =SUM(F7:F18) -> 3486.930557
A19: 13 | B19: 2023 | C19: 2023-01-01 | D19: 17913.06944 | E19: 305.4308611 | F19: 291.996059 | G19: 13.43480208 | H19: 0 | I19: 17621.07338 | K19: 13.43480208 | L19: 146.7276245
A20: 14 | B20: 2023 | C20: 2023-02-01 | D20: 17621.07338 | E20: 305.4308611 | F20: 292.215056 | G20: 13.21580504 | H20: 0 | I20: 17328.85833 | K20: 13.21580504 | L20: 146.7276245
A21: 15 | B21: 2023 | C21: 2023-03-01 | D21: 17328.85833 | E21: 305.4308611 | F21: 292.4342173 | G21: 12.99664375 | H21: 0 | I21: 17036.42411 | K21: 12.99664375 | L21: 146.7276245 | M21: =SUM(F10:F21) -> 3494.782036 | N21: =SUM(G19:G21) -> 39.64725087
A22: 16 | B22: 2023 | C22: 2023-04-01 | D22: 17036.42411 | E22: 305.4308611 | F22: 292.653543 | G22: 12.77731808 | H22: 0 | I22: 16743.77057 | K22: 12.77731808 | L22: 146.7276245
A23: 17 | B23: 2023 | C23: 2023-05-01 | D23: 16743.77057 | E23: 305.4308611 | F23: 292.8730331 | G23: 12.55782793 | H23: 0 | I23: 16450.89753 | K23: 12.55782793 | L23: 146.7276245
A24: 18 | B24: 2023 | C24: 2023-06-01 | D24: 16450.89753 | E24: 305.4308611 | F24: 293.0926879 | G24: 12.33817315 | H24: 0 | I24: 16157.80485 | K24: 12.33817315 | L24: 146.7276245
A25: 19 | B25: 2023 | C25: 2023-07-01 | D25: 16157.80485 | E25: 305.4308611 | F25: 293.3125074 | G25: 12.11835364 | H25: 0 | I25: 15864.49234 | K25: 12.11835364 | L25: 146.7276245
A26: 20 | B26: 2023 | C26: 2023-08-01 | D26: 15864.49234 | E26: 305.4308611 | F26: 293.5324918 | G26: 11.89836925 | H26: 0 | I26: 15570.95985 | K26: 11.89836925 | L26: 146.7276245
A27: 21 | B27: 2023 | C27: 2023-09-01 | D27: 15570.95985 | E27: 305.4308611 | F27: 293.7526412 | G27: 11.67821989 | H27: 0 | I27: 15277.20721 | K27: 11.67821989 | L27: 146.7276245
A28: 22 | B28: 2023 | C28: 2023-10-01 | D28: 15277.20721 | E28: 305.4308611 | F28: 293.9729556 | G28: 11.45790541 | H28: 0 | I28: 14983.23425 | K28: 11.45790541 | L28: 146.7276245
A29: 23 | B29: 2023 | C29: 2023-11-01 | D29: 14983.23425 | E29: 305.4308611 | F29: 294.1934354 | G29: 11.23742569 | H29: 0 | I29: 14689.04082 | K29: 11.23742569 | L29: 146.7276245
A30: 24 | B30: 2023 | C30: 2023-12-01 | D30: 14689.04082 | E30: 305.4308611 | F30: 294.4140804 | G30: 11.01678061 | H30: 0 | I30: 14394.62674 | K30: 11.01678061 | L30: 146.7276245
A31: 25 | B31: 2024 | C31: 2024-01-01 | D31: 14394.62674 | E31: 305.4308611 | F31: 294.634891 | G31: 10.79597005 | H31: 0 | I31: 14099.99184 | K31: 10.79597005 | L31: 114.9306908
A32: 26 | B32: 2024 | C32: 2024-02-01 | D32: 14099.99184 | E32: 305.4308611 | F32: 294.8558672 | G32: 10.57499388 | H32: 0 | I32: 13805.13598 | K32: 10.57499388 | L32: 114.9306908
A33: 27 | B33: 2024 | C33: 2024-03-01 | D33: 13805.13598 | E33: 305.4308611 | F33: 295.0770091 | G33: 10.35385198 | H33: 0 | I33: 13510.05897 | K33: 10.35385198 | L33: 114.9306908 | M33: =SUM(F22:F33) -> 3526.365143 | N33: =SUM(G31:G33) -> 31.72481592
A34: 28 | B34: 2024 | C34: 2024-04-01 | D34: 13510.05897 | E34: 305.4308611 | F34: 295.2983168 | G34: 10.13254423 | H34: 0 | I34: 13214.76065 | K34: 10.13254423 | L34: 114.9306908
A35: 29 | B35: 2024 | C35: 2024-05-01 | D35: 13214.76065 | E35: 305.4308611 | F35: 295.5197906 | G35: 9.911070488 | H35: 0 | I35: 12919.24086 | K35: 9.911070488 | L35: 114.9306908
A36: 30 | B36: 2024 | C36: 2024-06-01 | D36: 12919.24086 | E36: 305.4308611 | F36: 295.7414304 | G36: 9.689430645 | H36: 0 | I36: 12623.49943 | K36: 9.689430645 | L36: 114.9306908
A37: 31 | B37: 2024 | C37: 2024-07-01 | D37: 12623.49943 | E37: 305.4308611 | F37: 295.9632365 | G37: 9.467624573 | H37: 0 | I37: 12327.53619 | K37: 9.467624573 | L37: 114.9306908
A38: 32 | B38: 2024 | C38: 2024-08-01 | D38: 12327.53619 | E38: 305.4308611 | F38: =IF(D32=0,,-PPMT($D$3,A38,$D$2,$D$1)) -> 296.1852089 | G38: 9.245652145 | H38: 0 | I38: 12031.35098 | K38: 9.245652145 | L38: 114.9306908
A39: 33 | B39: 2024 | C39: 2024-09-01 | D39: 12031.35098 | E39: 305.4308611 | F39: =IF(D33=0,,-PPMT($D$3,A39,$D$2,$D$1)) -> 296.4073478 | G39: 9.023513239 | H39: 0 | I39: 11734.94364 | K39: 9.023513239 | L39: 114.9306908
A40: 34 | B40: 2024 | C40: 2024-10-01 | D40: 11734.94364 | E40: 305.4308611 | F40: =IF(D34=0,,-PPMT($D$3,A40,$D$2,$D$1)) -> 296.6296533 | G40: 8.801207728 | H40: 0 | I40: 11438.31398 | K40: 8.801207728 | L40: 114.9306908
A41: 35 | B41: 2024 | C41: 2024-11-01 | D41: 11438.31398 | E41: 305.4308611 | F41: 296.8521256 | G41: 8.578735488 | H41: 0 | I41: 11141.46186 | K41: 8.578735488 | L41: 114.9306908
A42: 36 | B42: 2024 | C42: 2024-12-01 | D42: 11141.46186 | E42: 305.4308611 | F42: 297.0747647 | G42: 8.356096394 | H42: 0 | I42: 10844.38709 | K42: 8.356096394 | L42: 114.9306908
A43: 37 | B43: 2025 | C43: 2025-01-01 | D43: 10844.38709 | E43: 305.4308611 | F43: 297.2975707 | G43: 8.13329032 | H43: 0 | I43: 10547.08952 | K43: 8.13329032 | L43: 82.84640136
A44: 38 | B44: 2025 | C44: 2025-02-01 | D44: 10547.08952 | E44: 305.4308611 | F44: 297.5205439 | G44: 7.910317142 | H44: 0 | I44: 10249.56898 | K44: 7.910317142 | L44: 82.84640136
A45: 39 | B45: 2025 | C45: 2025-03-01 | D45: 10249.56898 | E45: 305.4308611 | F45: 297.7436843 | G45: 7.687176734 | H45: 0 | I45: 9951.825295 | K45: 7.687176734 | L45: 82.84640136
A46: 40 | B46: 2025 | C46: 2025-04-01 | D46: 9951.825295 | E46: 305.4308611 | F46: 297.9669921 | G46: 7.463868971 | H46: 0 | I46: 9653.858302 | K46: 7.463868971 | L46: 82.84640136
A47: 41 | B47: 2025 | C47: 2025-05-01 | D47: 9653.858302 | E47: 305.4308611 | F47: 298.1904673 | G47: 7.240393727 | H47: 0 | I47: 9355.667835 | K47: 7.240393727 | L47: 82.84640136
A48: 42 | B48: 2025 | C48: 2025-06-01 | D48: 9355.667835 | E48: 305.4308611 | F48: 298.4141102 | G48: 7.016750876 | H48: 0 | I48: 9057.253725 | K48: 7.016750876 | L48: 82.84640136
A49: 43 | B49: 2025 | C49: 2025-07-01 | D49: 9057.253725 | E49: 305.4308611 | F49: 298.6379208 | G49: 6.792940294 | H49: 0 | I49: 8758.615804 | K49: 6.792940294 | L49: 82.84640136
A50: 44 | B50: 2025 | C50: 2025-08-01 | D50: 8758.615804 | E50: 305.4308611 | F50: 298.8618992 | G50: 6.568961853 | H50: 0 | I50: 8459.753905 | K50: 6.568961853 | L50: 82.84640136
A51: 45 | B51: 2025 | C51: 2025-09-01 | D51: 8459.753905 | E51: 305.4308611 | F51: 299.0860456 | G51: 6.344815429 | H51: 0 | I51: 8160.667859 | K51: 6.344815429 | L51: 82.84640136
A52: 46 | B52: 2025 | C52: 2025-10-01 | D52: 8160.667859 | E52: 305.4308611 | F52: 299.3103602 | G52: 6.120500895 | H52: 0 | I52: 7861.357499 | K52: 6.120500895 | L52: 82.84640136
A53: 47 | B53: 2025 | C53: 2025-11-01 | D53: 7861.357499 | E53: 305.4308611 | F53: 299.5348429 | G53: 5.896018124 | H53: 0 | I53: 7561.822656 | K53: 5.896018124 | L53: 82.84640136
A54: 48 | B54: 2025 | C54: 2025-12-01 | D54: 7561.822656 | E54: 305.4308611 | F54: 299.7594941 | G54: 5.671366992 | H54: 0 | I54: 7262.063162 | K54: 5.671366992 | L54: 82.84640136
A55: 49 | B55: 2026 | C55: 2026-01-01 | D55: 7262.063162 | E55: 305.4308611 | F55: =IF(D49=0,,-PPMT($D$3,A55,$D$2,$D$1)) -> 299.9843137 | G55: 5.446547372 | H55: 0 | I55: 6962.078849 | K55: 5.446547372 | L55: 50.47215915
A56: 50 | B56: 2026 | C56: 2026-02-01 | D56: 6962.078849 | E56: 305.4308611 | F56: =IF(D50=0,,-PPMT($D$3,A56,$D$2,$D$1)) -> 300.2093019 | G56: 5.221559136 | H56: 0 | I56: 6661.869547 | K56: 5.221559136 | L56: 50.47215915
A57: 51 | B57: 2026 | C57: 2026-03-01 | D57: 6661.869547 | E57: 305.4308611 | F57: =IF(D51=0,,-PPMT($D$3,A57,$D$2,$D$1)) -> 300.4344589 | G57: 4.99640216 | H57: 0 | I57: 6361.435088 | K57: 4.99640216 | L57: 50.47215915
A58: 52 | B58: 2026 | C58: 2026-04-01 | D58: 6361.435088 | E58: 305.4308611 | F58: 300.6597847 | G58: 4.771076316 | H58: 0 | I58: 6060.775303 | K58: 4.771076316 | L58: 50.47215915
A59: 53 | B59: 2026 | C59: 2026-05-01 | D59: 6060.775303 | E59: 305.4308611 | F59: 300.8852796 | G59: 4.545581477 | H59: 0 | I59: 5759.890023 | K59: 4.545581477 | L59: 50.47215915
A60: 54 | B60: 2026 | C60: 2026-06-01 | D60: 5759.890023 | E60: 305.4308611 | F60: 301.1109435 | G60: 4.319917518 | H60: 0 | I60: 5458.77908 | K60: 4.319917518 | L60: 50.47215915
A61: 55 | B61: 2026 | C61: 2026-07-01 | D61: 5458.77908 | E61: 305.4308611 | F61: 301.3367767 | G61: 4.09408431 | H61: 0 | I61: 5157.442303 | K61: 4.09408431 | L61: 50.47215915
A62: 56 | B62: 2026 | C62: 2026-08-01 | D62: 5157.442303 | E62: 305.4308611 | F62: 301.5627793 | G62: 3.868081727 | H62: 0 | I62: 4855.879524 | K62: 3.868081727 | L62: 50.47215915
A63: 57 | B63: 2026 | C63: 2026-09-01 | D63: 4855.879524 | E63: 305.4308611 | F63: 301.7889514 | G63: 3.641909643 | H63: 0 | I63: 4554.090572 | K63: 3.641909643 | L63: 50.47215915
A64: 58 | B64: 2026 | C64: 2026-10-01 | D64: 4554.090572 | E64: 305.4308611 | F64: 302.0152931 | G64: 3.415567929 | H64: 0 | I64: 4252.075279 | K64: 3.415567929 | L64: 50.47215915
A65: 59 | B65: 2026 | C65: 2026-11-01 | D65: 4252.075279 | E65: 305.4308611 | F65: 302.2418046 | G65: 3.189056459 | H65: 0 | I65: 3949.833475 | K65: 3.189056459 | L65: 50.47215915
A66: 60 | B66: 2026 | C66: 2026-12-01 | D66: 3949.833475 | E66: 305.4308611 | F66: 302.4684859 | G66: 2.962375106 | H66: 0 | I66: 3647.364989 | K66: 2.962375106 | L66: 50.47215915
A67: 61 | B67: 2027 | C67: 2027-01-01 | D67: 3647.364989 | E67: 305.4308611 | F67: 302.6953373 | G67: 2.735523742 | H67: 0 | I67: 3344.669651 | K67: 2.735523742 | L67: 17.80534387
A68: 62 | B68: 2027 | C68: 2027-02-01 | D68: 3344.669651 | E68: 305.4308611 | F68: 302.9223588 | G68: 2.508502239 | H68: 0 | I68: 3041.747293 | K68: 2.508502239 | L68: 17.80534387
A69: 63 | B69: 2027 | C69: 2027-03-01 | D69: 3041.747293 | E69: 305.4308611 | F69: 303.1495506 | G69: 2.281310469 | H69: 0 | I69: 2738.597742 | K69: 2.281310469 | L69: 17.80534387
A70: 64 | B70: 2027 | C70: 2027-04-01 | D70: 2738.597742 | E70: 305.4308611 | F70: 303.3769127 | G70: 2.053948307 | H70: 0 | I70: 2435.220829 | K70: 2.053948307 | L70: 17.80534387
A71: 65 | B71: =YEAR(C71) -> 2027 | C71: 2027-05-01 | D71: 2435.220829 | E71: 305.4308611 | F71: 303.6044454 | G71: =E71-F71 -> 1.826415622 | H71: 0 | I71: =D71-F71 -> 2131.616384 | K71: 1.826415622 | L71: =SUMIF($B$4:$G$162,$B$4:$B$162,$G$4:$G$162) -> 17.80534387
A72: =IF(ROUND(I71,0)=0,0,A71+1) -> 66 | B72: 2027 | C72: =EDATE(C71,1) -> 2027-06-01 | D72: =I71 -> 2131.616384 | E72: =IF(A72=0,0,E71) -> 305.4308611 | F72: 303.8321488 | G72: 1.598712288 | H72: =H71 -> 0 | I72: 1827.784235 | K72: =IF(D$1=0,,-IPMT($D$3,A72,$D$2,$D$1)) -> 1.598712288 | L72: 17.80534387
A73: 67 | B73: 2027 | C73: 2027-07-01 | D73: 1827.784235 | E73: 305.4308611 | F73: 304.0600229 | G73: 1.370838176 | H73: 0 | I73: 1523.724212 | K73: 1.370838176 | L73: 17.80534387 | M73: =SUM(F62:F73) -> 3633.718091 | N73: =SUM(G62:G73) -> 31.45224171
A74: 68 | B74: 2027 | C74: 2027-08-01 | D74: 1523.724212 | E74: 305.4308611 | F74: =IF(D68=0,,-PPMT($D$3,A74,$D$2,$D$1)) -> 304.2880679 | G74: 1.142793159 | H74: 0 | I74: 1219.436144 | K74: 1.142793159 | L74: 17.80534387
A75: 69 | B75: 2027 | C75: 2027-09-01 | D75: 1219.436144 | E75: 305.4308611 | F75: =IF(D69=0,,-PPMT($D$3,A75,$D$2,$D$1)) -> 304.5162839 | G75: 0.9145771083 | H75: 0 | I75: 914.9198604 | K75: 0.9145771083 | L75: 17.80534387
A76: 70 | B76: 2027 | C76: 2027-10-01 | D76: 914.9198604 | E76: 305.4308611 | F76: =IF(D70=0,,-PPMT($D$3,A76,$D$2,$D$1)) -> 304.7446712 | G76: 0.6861898953 | H76: 0 | I76: 610.1751892 | K76: 0.6861898953 | L76: 17.80534387
A77: 71 | B77: 2027 | C77: 2027-11-01 | D77: 610.1751892 | E77: 305.4308611 | F77: 304.9732297 | G77: 0.4576313919 | H77: 0 | I77: 305.2019596 | K77: 0.4576313919 | L77: 17.80534387
A78: 72 | B78: 2027 | C78: 2027-12-01 | D78: 305.2019596 | E78: 305.4308611 | F78: 305.2019596 | G78: 0.2289014697 | H78: 0 | I78: 0 | K78: 0.2289014697 | L78: 17.80534387
